Workbook

Sheet Control
B2: IMPORTING DATA:
B4: File Location: | C4: C:\Users\dan_r\Dropbox\Book Stuff\Mandestroy\
B6: Filename: | C6: Mandestroy Version 4.2.docx
B8: Output Location: | C8: MND_4_2
B10: Start Point: | C10: 1
B14: EXPORTING DATA:
B16: Export From: | C16: MND_4_1
B18: Starting Chapter to Export: | C18: 1 | D18: Opening Sentance: | E18: 1
B20: Ending Chapter to Export: | C20: 9 | D20: Closing Sentance: | E20: 10000
B22: Output Location: | C22: C:\Users\dan_r\Dropbox\Book Stuff\Mandestroy
B24: Output Filename: | C24: Mandestroy Version 4.1.docx

Sheet MND_4_0
C2: =COUNTIF($L$5:$L$10004,"Y")/MAX($C$5:$C$10004) -> 0 | E2: =SUMIF($L$5:$L$10004,"Y",$E$5:$E$10004)/SUM($E$5:$E$10004) -> 0 | F2: 30 | G2: Y | H2: N
B4: REF | C4: SENT | D4: TEXT | E4: WDS | F4: AVG | G4: PARA | H4: SECT | I4: CHAP | J4: CHNMB | K4: SECTION | M4: NOTES
B5: 1 | C5: =IF(D5="","",1) -> 1 | D5: Prequel novella to Fear’s Union | draft 4.0 | E5: =IF(LEN(TRIM(D5))=0,"",LEN(TRIM(D5))-LEN(SUBSTITUTE(D5," ",""))+1) -> 8 | F5: =AVERAGE(INDIRECT("E"&MAX(ROW()-$F$2,4)&":E"&ROW())) -> 8 | G5: Y | H5: N | I5: N | J5: 1 | K5: 1
B6: 2 | C6: =IF(D6="","",MAX($C$5:$C5)+1) -> 2 | D6: Mandestroy | E6: =IF(LEN(TRIM(D6))=0,"",LEN(TRIM(D6))-LEN(SUBSTITUTE(D6," ",""))+1) -> 1 | F6: =AVERAGE(INDIRECT("E"&MAX(ROW()-$F$2,4)&":E"&ROW())) -> 4.5 | G6: Y | H6: N | I6: N | J6: =IF(I5="Y",J5+1,J5) -> 1 | K6: =IF(I5="Y",1,IF(H5="Y",K5+1,K5)) -> 1
B7: 3 | C7: =IF(D7="","",MAX($C$5:$C6)+1) -> 3 | D7: By James Hockley | E7: 3 | F7: 4 | G7: Y | H7: N | I7: N | J7: =IF(I6="Y",J6+1,J6) -> 1 | K7: =IF(I6="Y",1,IF(H6="Y",K6+1,K6)) -> 1
B8: 4 | C8: =IF(D8="","",MAX($C$5:$C7)+1) -> 4 | D8: More information and further sample chapters are | E8: 7 | F8: 4.75 | G8: Y | H8: N | I8: N | J8: 1 | K8: 1
B9: 5 | C9: =IF(D9="","",MAX($C$5:$C8)+1) -> 5 | D9: available from James’s website: www.jhockley.com | E9: 5 | F9: 4.8 | G9: Y | H9: N | I9: N | J9: 1 | K9: 1
B10: 6 | C10: =IF(D10="","",MAX($C$5:$C9)+1) -> 6 | D10: Copyright © James Hockley 2016. | E10: 5 | F10: 4.833333333 | G10: N | H10: N | I10: N | J10: 1 | K10: 1
B11: 7 | C11: =IF(D11="","",MAX($C$5:$C10)+1) -> 7 | D11: All rights reserved. | E11: 3 | F11: 4.571428571 | G11: Y | H11: N | I11: Y | J11: 1 | K11: 1
B12: 8 | C12: =IF(D12="","",MAX($C$5:$C11)+1) -> 8 | D12: The Moment | E12: 2 | F12: 4.25 | G12: Y | H12: N | I12: N | J12: 2 | K12: 1
B13: 9 | C13: =IF(D13="","",MAX($C$5:$C12)+1) -> 9 | D13: D | E13: 1 | F13: 3.888888889 | G13: Y | H13: N | I13: N | J13: 2 | K13: 1
B14: 10 | C14: =IF(D14="","",MAX($C$5:$C13)+1) -> 10 | D14: eath approached. | E14: 2 | F14: 3.7 | G14: N | H14: N | I14: N | J14: 2 | K14: 1
B15: 11 | C15: =IF(D15="","",MAX($C$5:$C14)+1) -> 11 | D15: It always did on the battlefield, but this was different. | E15: 10 | F15: 4.272727273 | G15: N | H15: N | I15: N | J15: 2 | K15: 1
B16: 12 | C16: =IF(D16="","",MAX($C$5:$C15)+1) -> 12 | D16: The Grey Plague was coming, stalking through the mist; grey cloaked by grey; the ashen shade of destruction. | E16: 18 | F16: 5.416666667 | G16: N | H16: N | I16: N | J16: 2 | K16: 1
B17: 13 | C17: =IF(D17="","",MAX($C$5:$C16)+1) -> 13 | D17: It was coming, and his smile held a manic edge. | E17: 10 | F17: 5.769230769 | G17: Y | H17: N | I17: N | J17: 2 | K17: 1
B18: 14 | C18: =IF(D18="","",MAX($C$5:$C17)+1) -> 14 | D18: Because you couldn’t beat a Mandahoi. | E18: 6 | F18: 5.785714286 | G18: Y | H18: N | I18: N | J18: 2 | K18: =IF(I17="Y",1,IF(H17="Y",K17+1,K17)) -> 1
B19: 15 | C19: =IF(D19="","",MAX($C$5:$C18)+1) -> 15 | D19: Arrows punctured the cannon-fog; piercing in sporadic displays of projectile authority. | E19: 11 | F19: 6.133333333 | G19: N | H19: N | I19: N | J19: 2 | K19: 1
B20: 16 | C20: =IF(D20="","",MAX($C$5:$C19)+1) -> 16 | D20: Each missile held destructive potential in its path, but he stood firm nonetheless. | E20: 13 | F20: 6.5625 | G20: N | H20: N | I20: N | J20: 2 | K20: 1
B21: 17 | C21: =IF(D21="","",MAX($C$5:$C20)+1) -> 17 | D21: The sound of missiles piercing plate rang through his head, oddly reminiscent of the forge – a history he refused to recognise – but that was not his death. | E21: 29 | F21: 7.882352941 | G21: N | H21: N | I21: N | J21: 2 | K21: 1
B22: 18 | C22: =IF(D22="","",MAX($C$5:$C21)+1) -> 18 | D22: The reign of the arrow was over; the reign of the Grey had begun. | E22: 14 | F22: 8.222222222 | G22: N | H22: N | I22: N | J22: 2 | K22: 1
B23: 19 | C23: =IF(D23="","",MAX($C$5:$C22)+1) -> 19 | D23: And that was another proposition altogether. | E23: 6 | F23: 8.105263158 | G23: Y | H23: N | I23: N | J23: 2 | K23: 1
B24: 20 | C24: =IF(D24="","",MAX($C$5:$C23)+1) -> 20 | D24: Because you couldn’t beat a Mandahoi. | E24: 6 | F24: 8 | G24: Y | H24: N | I24: N | J24: 2 | K24: 1
B25: 21 | C25: =IF(D25="","",MAX($C$5:$C24)+1) -> 21 | D25: Of course, he should be fleeing; that was the logical solution. | E25: 11 | F25: 8.142857143 | G25: N | H25: N | I25: N | J25: 2 | K25: 1
B26: 22 | C26: =IF(D26="","",MAX($C$5:$C25)+1) -> 22 | D26: He knew the enormity of the proposition, and knew that the odds were against him. | E26: 15 | F26: 8.454545455 | G26: N | H26: N | I26: N | J26: 2 | K26: 1
B27: 23 | C27: =IF(D27="","",MAX($C$5:$C26)+1) -> 23 | D27: Even in a fair duel the odds were against him, but there was no guarantee of such a field. | E27: 19 | F27: 8.913043478 | G27: N | H27: N | I27: N | J27: 2 | K27: 1
B28: 24 | C28: =IF(D28="","",MAX($C$5:$C27)+1) -> 24 | D28: And yet he stayed; firm; defiant; mad. | E28: 7 | F28: 8.833333333 | G28: N | H28: N | I28: N | J28: 2 | K28: 1
B29: 25 | C29: =IF(D29="","",MAX($C$5:$C28)+1) -> 25 | D29: And mostly mad; a product of his past. | E29: 8 | F29: 8.8 | G29: N | H29: N | I29: N | J29: 2 | K29: 1
B30: 26 | C30: =IF(D30="","",MAX($C$5:$C29)+1) -> 26 | D30: The only path was flight, and yet the soldier took the tougher route – the route that none other dared. | E30: 20 | F30: 9.230769231 | G30: N | H30: N | I30: N | J30: 2 | K30: 1
B31: 27 | C31: =IF(D31="","",MAX($C$5:$C30)+1) -> 27 | D31: He chose to face the Grey, and he chose the unlikely path. | E31: 12 | F31: 9.333333333 | G31: Y | H31: N | I31: N | J31: 2 | K31: 1
B32: 28 | C32: =IF(D32="","",MAX($C$5:$C31)+1) -> 28 | D32: Because you couldn’t beat a Mandahoi. | E32: 6 | F32: 9.214285714 | G32: Y | H32: N | I32: N | J32: 2 | K32: 1
B33: 29 | C33: =IF(D33="","",MAX($C$5:$C32)+1) -> 29 | D33: And yet he was calm; at least on the face he was calm. | E33: 13 | F33: 9.344827586 | G33: N | H33: N | I33: N | J33: 2 | K33: 1
B34: 30 | C34: =IF(D34="","",MAX($C$5:$C33)+1) -> 30 | D34: Within, he was a seething cauldron, the emotions that had always been inside him boiling themselves into a frenzy. | E34: 19 | F34: 9.666666667 | G34: N | H34: N | I34: N | J34: 2 | K34: 1
B35: 31 | C35: =IF(D35="","",MAX($C$5:$C34)+1) -> 31 | D35: But he would not let them show; he never had. | E35: 10 | F35: 9.677419355 | G35: N | H35: N | I35: N | J35: 2 | K35: 1
B36: 32 | C36: =IF(D36="","",MAX($C$5:$C35)+1) -> 32 | D36: He didn’t have the right. | E36: 5 | F36: 9.580645161 | G36: N | H36: N | I36: N | J36: 2 | K36: 1
B37: 33 | C37: =IF(D37="","",MAX($C$5:$C36)+1) -> 33 | D37: Instead he harvested the maelstrom, infused his body with the essence of chaos. | E37: 13 | F37: 9.967741935 | G37: N | H37: N | I37: N | J37: 2 | K37: 1
B38: 34 | C38: =IF(D38="","",MAX($C$5:$C37)+1) -> 34 | D38: His charge had been laid, and he had the purpose he required. | E38: 12 | F38: 10.25806452 | G38: N | H38: N | I38: N | J38: 2 | K38: 1
B39: 35 | C39: =IF(D39="","",MAX($C$5:$C38)+1) -> 35 | D39: Now all he needed was somewhere to focus; something to assault. | E39: 11 | F39: 10.38709677 | G39: N | H39: N | I39: N | J39: 2 | K39: 1
B40: 36 | C40: =IF(D40="","",MAX($C$5:$C39)+1) -> 36 | D40: But this was madness beyond madness, surely? | E40: 7 | F40: 10.4516129 | G40: Y | H40: N | I40: N | J40: 2 | K40: 1
B41: 37 | C41: =IF(D41="","",MAX($C$5:$C40)+1) -> 37 | D41: Because you couldn’t beat a Mandahoi. | E41: 6 | F41: 10.48387097 | G41: Y | H41: N | I41: N | J41: 2 | K41: 1
B42: 38 | C42: =IF(D42="","",MAX($C$5:$C41)+1) -> 38 | D42: He stood firm; ready; legs slightly apart. | E42: 7 | F42: 10.61290323 | G42: N | H42: N | I42: N | J42: 2 | K42: 1
B43: 39 | C43: =IF(D43="","",MAX($C$5:$C42)+1) -> 39 | D43: His arms were relaxed; by his side; resting before the exertion. | E43: 11 | F43: 10.90322581 | G43: N | H43: N | I43: N | J43: 2 | K43: 1
B44: 40 | C44: =IF(D44="","",MAX($C$5:$C43)+1) -> 40 | D44: Only his right hand was agitated, knuckles white about the grip of his great-sword. | E44: 14 | F44: 11.32258065 | G44: N | H44: N | I44: N | J44: 2 | K44: 1
B45: 41 | C45: =IF(D45="","",MAX($C$5:$C44)+1) -> 41 | D45: And damn was she a great sword. | E45: 7 | F45: 11.48387097 | G45: N | H45: N | I45: N | J45: 2 | K45: 1
B46: 42 | C46: =IF(D46="","",MAX($C$5:$C45)+1) -> 42 | D46: He gazed upon her, marvelling at the glorious multi-coloured smirk of the weapon; marvelling at the waves of her construction. | E46: 20 | F46: 11.80645161 | G46: N | H46: N | I46: N | J46: 2 | K46: 1
B47: 43 | C47: =IF(D47="","",MAX($C$5:$C46)+1) -> 43 | D47: She was a beautiful thing, made by the hands of his hateful father, and she was a mirror of the Plague’s steel; maybe even better. | E47: 25 | F47: 12.03225806 | G47: N | H47: N | I47: N | J47: 2 | K47: 1
B48: 44 | C48: =IF(D48="","",MAX($C$5:$C47)+1) -> 44 | D48: But was parity in weaponry enough? | E48: 6 | F48: 11.90322581 | G48: Y | H48: N | I48: N | J48: 2 | K48: 1
B49: 45 | C49: =IF(D49="","",MAX($C$5:$C48)+1) -> 45 | D49: After all, you couldn’t beat a Mandahoi. | E49: 7 | F49: 11.93548387 | G49: Y | H49: N | I49: N | J49: 2 | K49: 1
B50: 46 | C50: =IF(D50="","",MAX($C$5:$C49)+1) -> 46 | D50: But time was still with him. | E50: 6 | F50: 11.77419355 | G50: N | H50: N | I50: N | J50: 2 | K50: 1
B51: 47 | C51: =IF(D51="","",MAX($C$5:$C50)+1) -> 47 | D51: Yes, he had a moment. | E51: 5 | F51: 11.51612903 | G51: N | H51: N | I51: N | J51: 2 | K51: 1
B52: 48 | C52: =IF(D52="","",MAX($C$5:$C51)+1) -> 48 | D52: He could sense the coming, but it was not upon him, and so he let his mind wander; fuelled by the boiling emotions within. | E52: 24 | F52: 11.35483871 | G52: N | H52: N | I52: N | J52: 2 | K52: 1
B53: 49 | C53: =IF(D53="","",MAX($C$5:$C52)+1) -> 49 | D53: Why was he doing this? | E53: 5 | F53: 11.06451613 | G53: N | H53: N | I53: N | J53: 2 | K53: 1
B54: 50 | C54: =IF(D54="","",MAX($C$5:$C53)+1) -> 50 | D54: Why had he got here? | E54: 5 | F54: 11.03225806 | G54: N | H54: N | I54: N | J54: 2 | K54: 1
B55: 51 | C55: =IF(D55="","",MAX($C$5:$C54)+1) -> 51 | D55: A great woman had once said that ‘anything could be solved by curiosity’, and this is where his inquisitive streak had got him. | E55: 23 | F55: 11.58064516 | G55: N | H55: N | I55: N | J55: 2 | K55: 1
B56: 52 | C56: =IF(D56="","",MAX($C$5:$C55)+1) -> 52 | D56: He had always been heading for this, hurtling towards the flip of a coin. | E56: 14 | F56: 11.67741935 | G56: N | H56: N | I56: N | J56: 2 | K56: 1
B57: 53 | C57: =IF(D57="","",MAX($C$5:$C56)+1) -> 53 | D57: But it wasn’t a flip of the coin, because a coin is balanced. | E57: 13 | F57: 11.61290323 | G57: N | H57: N | I57: N | J57: 2 | K57: 1
B58: 54 | C58: =IF(D58="","",MAX($C$5:$C57)+1) -> 54 | D58: No, he was playing the house, and house always wins. | E58: 10 | F58: 11.32258065 | G58: Y | H58: N | I58: N | J58: 2 | K58: 1
B59: 55 | C59: =IF(D59="","",MAX($C$5:$C58)+1) -> 55 | D59: Because you couldn’t beat a Mandahoi. | E59: 6 | F59: 11.29032258 | G59: Y | H59: N | I59: N | J59: 2 | K59: 1
B60: 56 | C60: =IF(D60="","",MAX($C$5:$C59)+1) -> 56 | D60: But he was not alone. | E60: 5 | F60: 11.19354839 | G60: N | H60: N | I60: N | J60: 2 | K60: 1
B61: 57 | C61: =IF(D61="","",MAX($C$5:$C60)+1) -> 57 | D61: His charge was here, and the officer now screamed for his departure. | E61: 12 | F61: 10.93548387 | G61: N | H61: N | I61: N | J61: 2 | K61: 1
B62: 58 | C62: =IF(D62="","",MAX($C$5:$C61)+1) -> 58 | D62: “Get out of here you fool!” | E62: 6 | F62: 10.74193548 | G62: N | H62: N | I62: N | J62: 2 | K62: 1
B63: 59 | C63: =IF(D63="","",MAX($C$5:$C62)+1) -> 59 | D63: If anything, his officer was the fool – a shield-hand was good as tied to the master, and so here he was, waiting to die. | E63: 25 | F63: 11.35483871 | G63: N | H63: N | I63: N | J63: 2 | K63: 1
B64: 60 | C64: =IF(D64="","",MAX($C$5:$C63)+1) -> 60 | D64: He turned to face his officer, left leg broken and trapped beneath a dying horse. | E64: 15 | F64: 11.41935484 | G64: N | H64: N | I64: N | J64: 2 | K64: 1
B65: 61 | C65: =IF(D65="","",MAX($C$5:$C64)+1) -> 61 | D65: He was young for an officer, and yet he was actually far more than that. | E65: 15 | F65: 11.29032258 | G65: N | H65: N | I65: N | J65: 2 | K65: 1
B66: 62 | C66: =IF(D66="","",MAX($C$5:$C65)+1) -> 62 | D66: He was the Prince, heir to Delfinia, and he was the charge; he was the purpose that drove the crazy. | E66: 20 | F66: 11.61290323 | G66: Y | H66: N | I66: N | J66: 2 | K66: 1
B67: 63 | C67: =IF(D67="","",MAX($C$5:$C66)+1) -> 63 | D67: Because you couldn’t beat a Mandahoi. | E67: 6 | F67: 11.64516129 | G67: Y | H67: N | I67: N | J67: 2 | K67: 1
B68: 64 | C68: =IF(D68="","",MAX($C$5:$C67)+1) -> 64 | D68: As he looked to his master, he saw the plight in the eyes; but he also saw through that. | E68: 19 | F68: 11.83870968 | G68: N | H68: N | I68: N | J68: 2 | K68: 1
B69: 65 | C69: =IF(D69="","",MAX($C$5:$C68)+1) -> 65 | D69: They were one and the same, hand and shield-hand; prince and pauper; fates entwined by the Gods. | E69: 17 | F69: 12 | G69: N | H69: N | I69: N | J69: 2 | K69: 1
B70: 66 | C70: =IF(D70="","",MAX($C$5:$C69)+1) -> 66 | D70: The path to this point had been laid by the right hand of the duo, and it was time for the left hand to swing. | E70: =IF(LEN(TRIM(D70))=0,"",LEN(TRIM(D70))-LEN(SUBSTITUTE(D70," ",""))+1) -> 25 | F70: =AVERAGE(INDIRECT("E"&MAX(ROW()-$F$2,4)&":E"&ROW())) -> 12.4516129 | G70: N | H70: N | I70: N | J70: 2 | K70: 1
B71: 67 | C71: =IF(D71="","",MAX($C$5:$C70)+1) -> 67 | D71: It was time to repay his master, and indeed, repay him a thousand times. | E71: 14 | F71: 12.67741935 | G71: Y | H71: N | I71: N | J71: =IF(I70="Y",J70+1,J70) -> 2 | K71: =IF(I70="Y",1,IF(H70="Y",K70+1,K70)) -> 1
B72: 68 | C72: =IF(D72="","",MAX($C$5:$C71)+1) -> 68 | D72: Because you couldn’t beat a Mandahoi. | E72: 6 | F72: 12.67741935 | G72: Y | H72: N | I72: N | J72: 2 | K72: 1
B73: 69 | C73: =IF(D73="","",MAX($C$5:$C72)+1) -> 69 | D73: Time scraped with that frictional quality it only adopts before the chaos. | E73: 12 | F73: 12.83870968 | G73: N | H73: N | I73: N | J73: 2 | K73: 1
B74: 70 | C74: =IF(D74="","",MAX($C$5:$C73)+1) -> 70 | D74: Each moment heaved itself into the next, elongating the existential path to death’s door; but time marched forward nonetheless. | E74: 19 | F74: 13.09677419 | G74: N | H74: N | I74: N | J74: 2 | K74: 1
B75: 71 | C75: =IF(D75="","",MAX($C$5:$C74)+1) -> 71 | D75: It always did. | E75: 3 | F75: 12.74193548 | G75: N | H75: N | I75: N | J75: 2 | K75: 1
B76: 72 | C76: =IF(D76="","",MAX($C$5:$C75)+1) -> 72 | D76: He needed calm, and he needed focus. | E76: 7 | F76: 12.74193548 | G76: N | H76: N | I76: N | J76: 2 | K76: 1
B77: 73 | C77: =IF(D77="","",MAX($C$5:$C76)+1) -> 73 | D77: He needed his charge to be silenced, but he didn’t have the right. | E77: 13 | F77: 12.51612903 | G77: N | H77: N | I77: N | J77: 2 | K77: 1
B78: 74 | C78: =IF(D78="","",MAX($C$5:$C77)+1) -> 74 | D78: He did however have the means, and he released just the tiniest morsel of maelstrom to devastating effect. | E78: 18 | F78: 12.29032258 | G78: N | H78: N | I78: N | J78: 2 | K78: 1
B79: 75 | C79: =IF(D79="","",MAX($C$5:$C78)+1) -> 75 | D79: The manic smile he forged must surely have been terrible because his Prince silenced instantly. | E79: 15 | F79: 12.58064516 | G79: N | H79: N | I79: N | J79: 2 | K79: 1
B80: 76 | C80: =IF(D80="","",MAX($C$5:$C79)+1) -> 76 | D80: It was not right, unsettling his Prince, but he needed focus. | E80: 11 | F80: 12.70967742 | G80: Y | H80: N | I80: N | J80: 2 | K80: 1
B81: 77 | C81: =IF(D81="","",MAX($C$5:$C80)+1) -> 77 | D81: Because you couldn’t beat a Mandahoi. | E81: 6 | F81: 12.70967742 | G81: Y | H81: N | I81: N | J81: 2 | K81: 1
B82: 78 | C82: =IF(D82="","",MAX($C$5:$C81)+1) -> 78 | D82: He turned to face the battlefield, taking in the scene of defeat. | E82: 12 | F82: 12.93548387 | G82: N | H82: N | I82: N | J82: 2 | K82: 1
B83: 79 | C83: =IF(D83="","",MAX($C$5:$C82)+1) -> 79 | D83: And it was a defeat – an utter and catastrophic defeat. | E83: 11 | F83: 12.51612903 | G83: N | H83: N | I83: N | J83: 2 | K83: 1
B84: 80 | C84: =IF(D84="","",MAX($C$5:$C83)+1) -> 80 | D84: They had approached with hopes that Southern black magic was the answer, and for the briefest time the cannon seemed to sing. | E84: 22 | F84: 13.06451613 | G84: N | H84: N | I84: N | J84: 2 | K84: 1
B85: 81 | C85: =IF(D85="","",MAX($C$5:$C84)+1) -> 81 | D85: But then the arrows had come, and the reverse was immediate. | E85: 11 | F85: 13.25806452 | G85: N | H85: N | I85: N | J85: 2 | K85: 1
B86: 82 | C86: =IF(D86="","",MAX($C$5:$C85)+1) -> 82 | D86: Cannon-fog now cloaked the field, intoxicating the scene, and the dry scrubland was littered with the heavy markers of projectiles. | E86: 20 | F86: 13.16129032 | G86: N | H86: N | I86: N | J86: 2 | K86: 1
B87: 83 | C87: =IF(D87="","",MAX($C$5:$C86)+1) -> 83 | D87: The archers had done their work; Delfinia was in retreat; and now the Plague was upon them. | E87: 17 | F87: 13.25806452 | G87: N | H87: N | I87: N | J87: 2 | K87: 1
B88: 84 | C88: =IF(D88="","",MAX($C$5:$C87)+1) -> 84 | D88: Mopping up. | E88: 2 | F88: 12.90322581 | G88: N | H88: N | I88: N | J88: 2 | K88: 1
B89: 85 | C89: =IF(D89="","",MAX($C$5:$C88)+1) -> 85 | D89: And what a mop to have. | E89: 6 | F89: 12.77419355 | G89: Y | H89: N | I89: N | J89: 2 | K89: 1
B90: 86 | C90: =IF(D90="","",MAX($C$5:$C89)+1) -> 86 | D90: Because you couldn’t beat a Mandahoi. | E90: 6 | F90: 12.77419355 | G90: Y | H90: N | I90: N | J90: 2 | K90: 1
B91: 87 | C91: =IF(D91="","",MAX($C$5:$C90)+1) -> 87 | D91: Two desperate bodies burst from the vapid blanket, running as fast as their breath would allow and as their heavy armour would permit. | E91: 23 | F91: 13.35483871 | G91: N | H91: N | I91: N | J91: 2 | K91: 1
B92: 88 | C92: =IF(D92="","",MAX($C$5:$C91)+1) -> 88 | D92: They were allies, the last fragments of the shattered infantry, and their faces betrayed the defeat that had spread through the ranks. | E92: 22 | F92: 13.67741935 | G92: N | H92: N | I92: N | J92: 2 | K92: 1
B93: 89 | C93: =IF(D93="","",MAX($C$5:$C92)+1) -> 89 | D93: A spike of darkness punctured the fog, and suddenly one of the men fell forward; arrow burying itself into his back. | E93: 21 | F93: 14.16129032 | G93: N | H93: N | I93: N | J93: 2 | K93: 1
B94: 90 | C94: =IF(D94="","",MAX($C$5:$C93)+1) -> 90 | D94: The second continued desperately on, terror on his face, but also frustration; he had seen this all before. | E94: 18 | F94: 13.93548387 | G94: Y | H94: N | I94: N | J94: 2 | K94: 1
B95: 91 | C95: =IF(D95="","",MAX($C$5:$C94)+1) -> 91 | D95: Because you couldn’t beat a Mandahoi. | E95: 6 | F95: 13.64516129 | G95: Y | H95: N | I95: N | J95: 2 | K95: 1
B96: 92 | C96: =IF(D96="","",MAX($C$5:$C95)+1) -> 92 | D96: And they were coming. | E96: 4 | F96: 13.29032258 | G96: N | H96: N | I96: N | J96: 2 | K96: 1
B97: 93 | C97: =IF(D97="","",MAX($C$5:$C96)+1) -> 93 | D97: The shadow in the fog was deepening, the form of the Plague sure and threatening. | E97: 15 | F97: 13.12903226 | G97: N | H97: N | I97: N | J97: 2 | K97: 1
B98: 94 | C98: =IF(D98="","",MAX($C$5:$C97)+1) -> 94 | D98: The fleeing ally screamed for him to turn, run, but that was not the way to greatness. | E98: 17 | F98: 13.48387097 | G98: N | H98: N | I98: N | J98: 2 | K98: 1
B99: 95 | C99: =IF(D99="","",MAX($C$5:$C98)+1) -> 95 | D99: That was in fact the exact opposite direction to greatness, for it was a strange quirk that the pinnacle and the abyss held the same directional quality. | E99: 27 | F99: 13.74193548 | G99: N | H99: N | I99: N | J99: 2 | K99: 1
B100: 96 | C100: =IF(D100="","",MAX($C$5:$C99)+1) -> 96 | D100: To flirt with one was to face the other, and as the shadow stalked forward, the chasm opened up. | E100: 19 | F100: 13.80645161 | G100: N | H100: N | I100: N | J100: 2 | K100: 1
B101: 97 | C101: =IF(D101="","",MAX($C$5:$C100)+1) -> 97 | D101: Death was here; the stuff of nightmares; the eternal rot. | E101: 10 | F101: 13.32258065 | G101: Y | H101: N | I101: N | J101: 2 | K101: 1
B102: 98 | C102: =IF(D102="","",MAX($C$5:$C101)+1) -> 98 | D102: The Mandahoi were upon him, and they would not be beaten. | E102: 11 | F102: 13.22580645 | G102: Y | H102: N | I102: N | J102: 2 | K102: 1
B103: 99 | C103: =IF(D103="","",MAX($C$5:$C102)+1) -> 99 | D103: It burst from the swirling fog, and for just the briefest moment, the Plague seemed mortal. | E103: 16 | F103: 13.5483871 | G103: N | H103: N | I103: N | J103: 2 | K103: 1
B104: 100 | C104: =IF(D104="","",MAX($C$5:$C103)+1) -> 100 | D104: A man; grey clothed; bare arms littered with heavy rings. | E104: 10 | F104: 13.48387097 | G104: N | H104: N | I104: N | J104: 2 | K104: 1
B105: 101 | C105: =IF(D105="","",MAX($C$5:$C104)+1) -> 101 | D105: A hood concealed much of the head, and the rest was covered by a silver mask in the likeness of a bear – only the eyes were visible. | E105: 28 | F105: 13.77419355 | G105: N | H105: N | I105: N | J105: 2 | K105: 1
B106: 102 | C106: =IF(D106="","",MAX($C$5:$C105)+1) -> 102 | D106: A confident man yes, but a man nonetheless. | E106: 8 | F106: 13.93548387 | G106: N | H106: N | I106: N | J106: 2 | K106: 1
B107: 103 | C107: =IF(D107="","",MAX($C$5:$C106)+1) -> 103 | D107: And yet reputation was everything, and this was a Mandahoi. | E107: 10 | F107: 14.03225806 | G107: N | H107: N | I107: N | J107: 2 | K107: 1
B108: 104 | C108: =IF(D108="","",MAX($C$5:$C107)+1) -> 104 | D108: Death followed where this man led, and the two blades held before him sang of profound ability. | E108: 17 | F108: 14.16129032 | G108: N | H108: N | I108: N | J108: 2 | K108: 1
B109: 105 | C109: =IF(D109="","",MAX($C$5:$C108)+1) -> 105 | D109: If killing was an art, then this man was the master. | E109: 11 | F109: 13.93548387 | G109: N | H109: N | I109: N | J109: 2 | K109: 1
B110: 106 | C110: =IF(D110="","",MAX($C$5:$C109)+1) -> 106 | D110: The odds were long indeed. | E110: 5 | F110: 13.61290323 | G110: Y | H110: N | I110: N | J110: 2 | K110: 1
B111: 107 | C111: =IF(D111="","",MAX($C$5:$C110)+1) -> 107 | D111: Because you couldn’t beat a Mandahoi. | E111: 6 | F111: 13.4516129 | G111: Y | H111: N | I111: N | J111: 2 | K111: 1
B112: 108 | C112: =IF(D112="","",MAX($C$5:$C111)+1) -> 108 | D112: And then the odds grew longer. | E112: 6 | F112: 13.4516129 | G112: N | H112: N | I112: N | J112: 2 | K112: 1
B113: 109 | C113: =IF(D113="","",MAX($C$5:$C112)+1) -> 109 | D113: Two further Mandahoi melted from the fog-bank, moving forward with terrible surety. | E113: 12 | F113: 13.4516129 | G113: N | H113: N | I113: N | J113: 2 | K113: 1
B114: 110 | C114: =IF(D114="","",MAX($C$5:$C113)+1) -> 110 | D114: The first was almost upon him, casual eagerness in his set, weapons flickering dangerously. | E114: 14 | F114: 13.5483871 | G114: N | H114: N | I114: N | J114: 2 | K114: 1
B115: 111 | C115: =IF(D115="","",MAX($C$5:$C114)+1) -> 111 | D115: But the shield-hand did not falter. | E115: 6 | F115: 13.03225806 | G115: N | H115: N | I115: N | J115: 2 | K115: 1
B116: 112 | C116: =IF(D116="","",MAX($C$5:$C115)+1) -> 112 | D116: The infusion of his body was complete; the chaos was consumed; and his purpose was set. | E116: 16 | F116: 13.19354839 | G116: N | H116: N | I116: N | J116: 2 | K116: 1
B117: 113 | C117: =IF(D117="","",MAX($C$5:$C116)+1) -> 113 | D117: All his life had been moving to this moment, and now it was here. | E117: 14 | F117: 13 | G117: N | H117: N | I117: N | J117: 2 | K117: 1
B118: 114 | C118: =IF(D118="","",MAX($C$5:$C117)+1) -> 114 | D118: Now it was here. | E118: 4 | F118: 12.58064516 | G118: N | H118: N | I118: N | J118: 2 | K118: 1
B119: 115 | C119: =IF(D119="","",MAX($C$5:$C118)+1) -> 115 | D119: He smiled at death herself. | E119: 5 | F119: 12.67741935 | G119: Y | H119: N | I119: N | J119: 2 | K119: 1
B120: 116 | C120: =IF(D120="","",MAX($C$5:$C119)+1) -> 116 | D120: For he was Adnan ap Kantal, and he chose the barely trodden path. | E120: 13 | F120: 12.90322581 | G120: N | H120: N | I120: N | J120: 2 | K120: 1
B121: 117 | C121: =IF(D121="","",MAX($C$5:$C120)+1) -> 117 | D121: Eminence or extinction, that was the coin he faced, but it was the path he’d been treading all his life. | E121: 20 | F121: 13.35483871 | G121: N | H121: N | I121: N | J121: 2 | K121: 1
B122: 118 | C122: =IF(D122="","",MAX($C$5:$C121)+1) -> 118 | D122: If he wasn’t ready now, then when? | E122: 7 | F122: 12.83870968 | G122: N | H122: N | I122: N | J122: 2 | K122: 1
B123: 119 | C123: =IF(D123="","",MAX($C$5:$C122)+1) -> 119 | D123: The Plague approached, and he stepped forward. | E123: 7 | F123: 12.35483871 | G123: N | H123: N | I123: N | J123: 2 | K123: 1
B124: 120 | C124: =IF(D124="","",MAX($C$5:$C123)+1) -> 120 | D124: This was a one-way journey; as it had ever been. | E124: 10 | F124: 12 | G124: N | H124: N | I124: N | J124: 2 | K124: 1
B125: 121 | C125: =IF(D125="","",MAX($C$5:$C124)+1) -> 121 | D125: Whether it ended today was now down to the Gods, and to the strength of Kantal’s stubborn resolve. | E125: 18 | F125: 12 | G125: Y | H125: N | I125: Y | J125: 2 | K125: 1
B126: 122 | C126: =IF(D126="","",MAX($C$5:$C125)+1) -> 122 | D126: The Now | E126: 2 | F126: 11.87096774 | G126: Y | H126: N | I126: N | J126: 3 | K126: 1
B127: 123 | C127: =IF(D127="","",MAX($C$5:$C126)+1) -> 123 | D127: One | E127: 1 | F127: 11.77419355 | G127: Y | H127: N | I127: N | J127: 3 | K127: 1
B128: 124 | C128: =IF(D128="","",MAX($C$5:$C127)+1) -> 124 | D128: S | E128: 1 | F128: 11.32258065 | G128: Y | H128: N | I128: N | J128: 3 | K128: 1
B129: 125 | C129: =IF(D129="","",MAX($C$5:$C128)+1) -> 125 | D129: ome people actually liked riding, but not him. | E129: 8 | F129: 11.03225806 | G129: N | H129: N | I129: N | J129: 3 | K129: 1
B130: 126 | C130: =IF(D130="","",MAX($C$5:$C129)+1) -> 126 | D130: Definitely not him. | E130: 3 | F130: 10.25806452 | G130: N | H130: N | I130: N | J130: 3 | K130: 1
B131: 127 | C131: =IF(D131="","",MAX($C$5:$C130)+1) -> 127 | D131: Some people must have immunity to the pain and discomfort, but for him it was like a form of slow torture. | E131: 21 | F131: 10.32258065 | G131: N | H131: N | I131: N | J131: 3 | K131: 1
B132: 128 | C132: =IF(D132="","",MAX($C$5:$C131)+1) -> 128 | D132: The act of sitting in a saddle started a steady descent in comfort, each moment sliding immaculately into the more painful next. | E132: 22 | F132: 10.70967742 | G132: N | H132: N | I132: N | J132: 3 | K132: 1
B133: 129 | C133: =IF(D133="","",MAX($C$5:$C132)+1) -> 129 | D133: And the flavours of punishment were exquisite too: there were aches; sharp pains; dull throbs; numbness; those terrible pins at the other end of the spectrum. | E133: 26 | F133: 11.19354839 | G133: N | H133: N | I133: N | J133: 3 | K133: 1
B134: 130 | C134: =IF(D134="","",MAX($C$5:$C133)+1) -> 130 | D134: The only reprise was to stand in the stirrups, cocking one's arse at the riders behind, but even then legs would grow tired; the saddle was always calling, and so was the punishment. | E134: =IF(LEN(TRIM(D134))=0,"",LEN(TRIM(D134))-LEN(SUBSTITUTE(D134," ",""))+1) -> 33 | F134: =AVERAGE(INDIRECT("E"&MAX(ROW()-$F$2,4)&":E"&ROW())) -> 11.74193548 | G134: Y | H134: N | I134: N | J134: 3 | K134: 1
B135: 131 | C135: =IF(D135="","",MAX($C$5:$C134)+1) -> 131 | D135: "Pfff." | E135: 1 | F135: 11.4516129 | G135: Y | H135: N | I135: N | J135: =IF(I134="Y",J134+1,J134) -> 3 | K135: =IF(I134="Y",1,IF(H134="Y",K134+1,K134)) -> 1
B136: 132 | C136: =IF(D136="","",MAX($C$5:$C135)+1) -> 132 | D136: The only man riding ahead of him turned and offered a disapproving glance, a look which caused him to go stiff with unease; pain gnawing at his consciousness. | E136: 28 | F136: 11.4516129 | G136: N | H136: N | I136: N | J136: 3 | K136: 1
B137: 133 | C137: =IF(D137="","",MAX($C$5:$C136)+1) -> 133 | D137: He was still in awe of this man, even despite the years behind them. | E137: 14 | F137: 11.64516129 | G137: N | H137: N | I137: N | J137: 3 | K137: 1
B138: 134 | C138: =IF(D138="","",MAX($C$5:$C137)+1) -> 134 | D138: He was immediately obedient. | E138: 4 | F138: 11.4516129 | G138: Y | H138: N | I138: N | J138: 3 | K138: 1
B139: 135 | C139: =IF(D139="","",MAX($C$5:$C138)+1) -> 135 | D139: "Are we boring you, General?" | E139: 5 | F139: 11.06451613 | G139: Y | H139: N | I139: N | J139: 3 | K139: 1
B140: 136 | C140: =IF(D140="","",MAX($C$5:$C139)+1) -> 136 | D140: The authority in the stare unnerved him – he was not used to that look, being as he was a favourite of the man. | E140: 24 | F140: 11.48387097 | G140: N | H140: N | I140: N | J140: 3 | K140: 1
B141: 137 | C141: =IF(D141="","",MAX($C$5:$C140)+1) -> 137 | D141: He stuttered for a moment, before wheeling out the correct response. | E141: 11 | F141: 11.67741935 | G141: Y | H141: N | I141: N | J141: 3 | K141: 1
B142: 138 | C142: =IF(D142="","",MAX($C$5:$C141)+1) -> 138 | D142: "Of course not, Highness. | E142: 4 | F142: 11.61290323 | G142: N | H142: N | I142: N | J142: 3 | K142: 1
B143: 139 | C143: =IF(D143="","",MAX($C$5:$C142)+1) -> 139 | D143: I am entranced by your wise direction. | E143: 7 | F143: 11.64516129 | G143: N | H143: N | I143: N | J143: 3 | K143: 1
B144: 140 | C144: =IF(D144="","",MAX($C$5:$C143)+1) -> 140 | D144: I only exhaled at my unfortunate discomfort." | E144: 7 | F144: 11.48387097 | G144: Y | H144: N | I144: N | J144: 3 | K144: 1
B145: 141 | C145: =IF(D145="","",MAX($C$5:$C144)+1) -> 141 | D145: The words came out smoothly enough, but each one grated on his throat. | E145: 13 | F145: 11.4516129 | G145: N | H145: N | I145: N | J145: 3 | K145: 1
B146: 142 | C146: =IF(D146="","",MAX($C$5:$C145)+1) -> 142 | D146: He was unused to such delicacy, and his common accent butchered the finesse. | E146: 13 | F146: 11.67741935 | G146: Y | H146: N | I146: N | J146: 3 | K146: 1
B147: 143 | C147: =IF(D147="","",MAX($C$5:$C146)+1) -> 143 | D147: "Do not oil your words, Kantal; it doesn’t suit you. | E147: 10 | F147: 11.48387097 | G147: N | H147: N | I147: N | J147: 3 | K147: 1
B148: 144 | C148: =IF(D148="","",MAX($C$5:$C147)+1) -> 144 | D148: What's wrong?" | E148: 2 | F148: 11.09677419 | G148: Y | H148: N | I148: N | J148: 3 | K148: 1
B149: 145 | C149: =IF(D149="","",MAX($C$5:$C148)+1) -> 145 | D149: Kantal felt the snigger at his back; the twitter of a dozen scheming aristocrats. | E149: 14 | F149: 11.41935484 | G149: N | H149: N | I149: N | J149: 3 | K149: 1
B150: 146 | C150: =IF(D150="","",MAX($C$5:$C149)+1) -> 146 | D150: He was the one out of place, the commoner amongst the elite, but he had every right. | E150: 17 | F150: 11.80645161 | G150: N | H150: N | I150: N | J150: 3 | K150: 1
B151: 147 | C151: =IF(D151="","",MAX($C$5:$C150)+1) -> 147 | D151: No, he had more than every right. | E151: 7 | F151: 11.61290323 | G151: N | H151: N | I151: N | J151: 3 | K151: 1
B152: 148 | C152: =IF(D152="","",MAX($C$5:$C151)+1) -> 148 | D152: The king, his master, put up with him because he was worth putting up with. | E152: 15 | F152: 11.4516129 | G152: N | H152: N | I152: N | J152: 3 | K152: 1
B153: 149 | C153: =IF(D153="","",MAX($C$5:$C152)+1) -> 149 | D153: Kantal turned to the powdered fools and sneered. | E153: 8 | F153: 11.48387097 | G153: N | H153: N | I153: N | J153: 3 | K153: 1
B154: 150 | C154: =IF(D154="","",MAX($C$5:$C153)+1) -> 150 | D154: When he turned back, the king still glared. | E154: 8 | F154: 11.51612903 | G154: Y | H154: N | I154: N | J154: 3 | K154: 1
B155: 151 | C155: =IF(D155="","",MAX($C$5:$C154)+1) -> 151 | D155: "My arse hurts." | E155: 3 | F155: 11.29032258 | G155: Y | H155: N | I155: N | J155: 3 | K155: 1
B156: 152 | C156: =IF(D156="","",MAX($C$5:$C155)+1) -> 152 | D156: There was just the tiniest elevation in the right side of his lip, his blond moustache tilting in consequence. | E156: 19 | F156: 11.32258065 | G156: N | H156: N | I156: N | J156: 3 | K156: 1
B157: 153 | C157: =IF(D157="","",MAX($C$5:$C156)+1) -> 153 | D157: The authority didn't leave the man's face, and the twittering fools expressed their shock before whispering against Kantal's vulgar words. | E157: 20 | F157: 11.90322581 | G157: N | H157: N | I157: N | J157: 3 | K157: 1
B158: 154 | C158: =IF(D158="","",MAX($C$5:$C157)+1) -> 154 | D158: They would be calling him a fool, uncouth, a piece of gutter scum. | E158: 13 | F158: 12.29032258 | G158: N | H158: N | I158: N | J158: 3 | K158: 1
B159: 155 | C159: =IF(D159="","",MAX($C$5:$C158)+1) -> 155 | D159: He wasn't good enough to grace their company, let alone lead their army, and for the most awkward moment, he believed them. | E159: 22 | F159: 12.96774194 | G159: N | H159: N | I159: N | J159: 3 | K159: 1
B160: 156 | C160: =IF(D160="","",MAX($C$5:$C159)+1) -> 156 | D160: The king stared on with stony friction, displeasure rampant on his face. | E160: 12 | F160: 13.09677419 | G160: Y | H160: N | I160: N | J160: 3 | K160: 1
B161: 157 | C161: =IF(D161="","",MAX($C$5:$C160)+1) -> 157 | D161: And then it contorted, ready to strike. | E161: 7 | F161: 13.22580645 | G161: N | H161: N | I161: N | J161: 3 | K161: 1
B162: 158 | C162: =IF(D162="","",MAX($C$5:$C161)+1) -> 158 | D162: Kantal gulped. | E162: 2 | F162: 12.61290323 | G162: Y | H162: N | I162: N | J162: 3 | K162: 1
B163: 159 | C163: =IF(D163="","",MAX($C$5:$C162)+1) -> 159 | D163: The royal mouth opened wide, his eyes closed, and the king let out an almighty roar. | E163: 16 | F163: 12.41935484 | G163: N | H163: N | I163: N | J163: 3 | K163: 1
B164: 160 | C164: =IF(D164="","",MAX($C$5:$C163)+1) -> 160 | D164: When he'd finished laughing, he wiped the spittle from his lips, and Kantal stopped clenching his buttocks – old habits die hard. | E164: 22 | F164: 12.29032258 | G164: Y | H164: N | I164: N | J164: 3 | K164: 1
B165: 161 | C165: =IF(D165="","",MAX($C$5:$C164)+1) -> 161 | D165: "I do so love your honesty, Kantal. | E165: 7 | F165: 11.4516129 | G165: N | H165: N | I165: N | J165: 3 | K165: 1
B166: 162 | C166: =IF(D166="","",MAX($C$5:$C165)+1) -> 162 | D166: My arse hurts too." | E166: 4 | F166: 11.5483871 | G166: Y | H166: N | I166: N | J166: 3 | K166: 1
B167: 163 | C167: =IF(D167="","",MAX($C$5:$C166)+1) -> 163 | D167: Kantal grunted in pleasure, relief spreading through him. | E167: 8 | F167: 10.90322581 | G167: N | H167: N | I167: N | J167: 3 | K167: 1
B168: 164 | C168: =IF(D168="","",MAX($C$5:$C167)+1) -> 164 | D168: The peacocks were muttering disappointedly under their breath. | E168: 8 | F168: 10.70967742 | G168: Y | H168: N | I168: N | J168: 3 | K168: 1
B169: 165 | C169: =IF(D169="","",MAX($C$5:$C168)+1) -> 165 | D169: "It's not natural to straddle such beasts." | E169: 7 | F169: 10.80645161 | G169: Y | H169: N | I169: N | J169: 3 | K169: 1
B170: 166 | C170: =IF(D170="","",MAX($C$5:$C169)+1) -> 166 | D170: The king dropped back, and Kantal moved into step. | E170: 9 | F170: 10.93548387 | G170: Y | H170: N | I170: N | J170: 3 | K170: 1
B171: 167 | C171: =IF(D171="","",MAX($C$5:$C170)+1) -> 167 | D171: "Maybe not, but man has been doing it long enough. | E171: 10 | F171: 10.48387097 | G171: N | H171: N | I171: N | J171: 3 | K171: 1
B172: 168 | C172: =IF(D172="","",MAX($C$5:$C171)+1) -> 168 | D172: And besides, how else would we make this journey?" | E172: 9 | F172: 10.41935484 | G172: Y | H172: N | I172: N | J172: 3 | K172: 1
B173: 169 | C173: =IF(D173="","",MAX($C$5:$C172)+1) -> 169 | D173: That was true enough. | E173: 4 | F173: 10.41935484 | G173: N | H173: N | I173: N | J173: 3 | K173: 1
B174: 170 | C174: =IF(D174="","",MAX($C$5:$C173)+1) -> 170 | D174: Kantal looked about, taking in the surroundings. | E174: 7 | F174: 10.41935484 | G174: N | H174: N | I174: N | J174: 3 | K174: 1
B175: 171 | C175: =IF(D175="","",MAX($C$5:$C174)+1) -> 171 | D175: To his right was a sharp mountain range; stark against the pan flat lands about them. | E175: 16 | F175: 10.70967742 | G175: N | H175: N | I175: N | J175: 3 | K175: 1
B176: 172 | C176: =IF(D176="","",MAX($C$5:$C175)+1) -> 172 | D176: All but ato the Finder, the scrubbed brown plains of Mikaeta stretched away, a subtle heat haze rustling the horizon. | E176: 20 | F176: 10.93548387 | G176: N | H176: N | I176: N | J176: 3 | K176: 1
B177: 173 | C177: =IF(D177="","",MAX($C$5:$C176)+1) -> 173 | D177: But ato Friendly, the mountains stood like sentinels, protecting the luscious lands behind. | E177: 13 | F177: 10.93548387 | G177: N | H177: N | I177: N | J177: 3 | K177: 1
B178: 174 | C178: =IF(D178="","",MAX($C$5:$C177)+1) -> 174 | D178: That was Ahan, a glorious gem amongst a world of decay, and it had been snatched away from Delfinia; from Kantal’s king; from Delfin’s legacy; and therefore from Kantal himelf. | E178: 30 | F178: 11.58064516 | G178: Y | H178: N | I178: N | J178: 3 | K178: 1
B179: 175 | C179: =IF(D179="","",MAX($C$5:$C178)+1) -> 175 | D179: But you couldn’t beat a Mandahoi. | E179: 6 | F179: 11.70967742 | G179: Y | H179: N | I179: N | J179: 3 | K179: 1
B180: 176 | C180: =IF(D180="","",MAX($C$5:$C179)+1) -> 176 | D180: "Kantal?" | E180: 1 | F180: 11.29032258 | G180: Y | H180: N | I180: N | J180: 3 | K180: 1
B181: 177 | C181: =IF(D181="","",MAX($C$5:$C180)+1) -> 177 | D181: "Sorry, Highness. | E181: 2 | F181: 10.80645161 | G181: N | H181: N | I181: N | J181: 3 | K181: 1
B182: 178 | C182: =IF(D182="","",MAX($C$5:$C181)+1) -> 178 | D182: I agree unfortunately. | E182: 3 | F182: 10.67741935 | G182: N | H182: N | I182: N | J182: 3 | K182: 1
B183: 179 | C183: =IF(D183="","",MAX($C$5:$C182)+1) -> 179 | D183: Horses are a necessary evil." | E183: 5 | F183: 10.35483871 | G183: Y | H183: N | I183: N | J183: 3 | K183: 1
B184: 180 | C184: =IF(D184="","",MAX($C$5:$C183)+1) -> 180 | D184: The king slapped him on the back, and Kantal could hear the renewed disappointment from the ‘cocks behind. | E184: 18 | F184: 10.67741935 | G184: Y | H184: N | I184: N | J184: 3 | K184: 1
B185: 181 | C185: =IF(D185="","",MAX($C$5:$C184)+1) -> 181 | D185: "A horse is a fine friend in combat too – let’s not forget that." | E185: 14 | F185: 10.87096774 | G185: Y | H185: N | I185: N | J185: 3 | K185: 1
B186: 182 | C186: =IF(D186="","",MAX($C$5:$C185)+1) -> 182 | D186: An image flashed through Kantal's head; a grey wraith in a whirlwind of steel. | E186: 14 | F186: 11.22580645 | G186: N | H186: N | I186: N | J186: 3 | K186: 1
B187: 183 | C187: =IF(D187="","",MAX($C$5:$C186)+1) -> 183 | D187: The enemy; the scourge. | E187: 4 | F187: 10.74193548 | G187: Y | H187: N | I187: N | J187: 3 | K187: 1
B188: 184 | C188: =IF(D188="","",MAX($C$5:$C187)+1) -> 184 | D188: "Not against the Mandahoi, Highness." | E188: 5 | F188: 10.25806452 | G188: N | H188: N | I188: N | J188: 3 | K188: 1
B189: 185 | C189: =IF(D189="","",MAX($C$5:$C188)+1) -> 185 | D189: Because you couldn’t beat a Mandahoi. | E189: 6 | F189: 10.03225806 | G189: N | H189: N | I189: N | J189: 3 | K189: 1
B190: 186 | C190: =IF(D190="","",MAX($C$5:$C189)+1) -> 186 | D190: His lip slid over his front teeth, and he recognised the sharp relief of the gold replacement. | E190: 17 | F190: 9.870967742 | G190: N | H190: N | I190: N | J190: 3 | K190: 1
B191: 187 | C191: =IF(D191="","",MAX($C$5:$C190)+1) -> 187 | D191: His mind wandered, only to be torn back by his king. | E191: 11 | F191: 9.838709677 | G191: Y | H191: N | I191: N | J191: 3 | K191: 1
B192: 188 | C192: =IF(D192="","",MAX($C$5:$C191)+1) -> 188 | D192: "No; quite. | E192: 2 | F192: 9.677419355 | G192: N | H192: N | I192: N | J192: 3 | K192: 1
B193: 189 | C193: =IF(D193="","",MAX($C$5:$C192)+1) -> 189 | D193: Most weapons are useless against that particular foe. | E193: 8 | F193: 9.870967742 | G193: N | H193: N | I193: N | J193: 3 | K193: 1
B194: 190 | C194: =IF(D194="","",MAX($C$5:$C193)+1) -> 190 | D194: Most nights I wonder how we'll ever overcome them." | E194: 9 | F194: 9.64516129 | G194: Y | H194: N | I194: N | J194: 3 | K194: 1
B195: 191 | C195: =IF(D195="","",MAX($C$5:$C194)+1) -> 191 | D195: This was Kantal's territory, but even he couldn't be confident. | E195: 10 | F195: 9.258064516 | G195: N | H195: N | I195: N | J195: 3 | K195: 1
B196: 192 | C196: =IF(D196="","",MAX($C$5:$C195)+1) -> 192 | D196: Against the Grey, confidence only accelerated the downfall. | E196: 8 | F196: 9.290322581 | G196: Y | H196: N | I196: N | J196: 3 | K196: 1
B197: 193 | C197: =IF(D197="","",MAX($C$5:$C196)+1) -> 193 | D197: "There are ways, but they are,” he licked his lips, “hard." | E197: 11 | F197: 9.516129032 | G197: Y | H197: N | I197: N | J197: 3 | K197: 1
B198: 194 | C198: =IF(D198="","",MAX($C$5:$C197)+1) -> 194 | D198: A grunt. | E198: =IF(LEN(TRIM(D198))=0,"",LEN(TRIM(D198))-LEN(SUBSTITUTE(D198," ",""))+1) -> 2 | F198: =AVERAGE(INDIRECT("E"&MAX(ROW()-$F$2,4)&":E"&ROW())) -> 9.322580645 | G198: N | H198: N | I198: N | J198: 3 | K198: 1
B199: 195 | C199: =IF(D199="","",MAX($C$5:$C198)+1) -> 195 | D199: There was little more to say on the matter. | E199: 9 | F199: 9.35483871 | G199: N | H199: N | I199: N | J199: =IF(I198="Y",J198+1,J198) -> 3 | K199: =IF(I198="Y",1,IF(H198="Y",K198+1,K198)) -> 1
B200: 196 | C200: =IF(D200="","",MAX($C$5:$C199)+1) -> 196 | D200: Instead, they could only speak of the wealth that lay beyond those mountains; a wealth forever outside their grasp. | E200: 19 | F200: 9.741935484 | G200: N | H200: N | I200: N | J200: 3 | K200: 1
B201: 197 | C201: =IF(D201="","",MAX($C$5:$C200)+1) -> 197 | D201: Or was it? | E201: 3 | F201: 9.548387097 | G201: N | H201: N | I201: N | J201: 3 | K201: 1
B202: 198 | C202: =IF(D202="","",MAX($C$5:$C201)+1) -> 198 | D202: That was what they were out to change after all. | E202: 10 | F202: 9.548387097 | G202: Y | H202: N | I202: N | J202: 3 | K202: 1
... 4298 more rows

Sheet MND_4_1
E2: =SUMIF($L$5:$L$10004,"Y",$E$5:$E$10004)/SUM($E$5:$E$10004) -> 1 | F2: 30 | G2: Y | H2: N
B4: REF | C4: SENT | D4: TEXT | E4: WDS | F4: AVG | G4: PARA | H4: SECT | I4: CHAP | J4: CHNMB | K4: SECTION | M4: NOTES
B5: 1 | C5: =IF(D5="","",1) -> 1 | D5: Prequel novella to Fear’s Union | draft 4.1 | E5: =IF(LEN(TRIM(D5))=0,"",LEN(TRIM(D5))-LEN(SUBSTITUTE(D5," ",""))+1) -> 8 | F5: =AVERAGE(INDIRECT("E"&MAX(ROW()-$F$2,4)&":E"&ROW())) -> 8 | G5: Y | H5: N | I5: N | J5: 1 | K5: 1 | L5: Y
B6: 2 | C6: =IF(D6="","",MAX($C$5:$C5)+1) -> 2 | D6: Mandestroy | E6: =IF(LEN(TRIM(D6))=0,"",LEN(TRIM(D6))-LEN(SUBSTITUTE(D6," ",""))+1) -> 1 | F6: =AVERAGE(INDIRECT("E"&MAX(ROW()-$F$2,4)&":E"&ROW())) -> 4.5 | G6: Y | H6: N | I6: N | J6: =IF(I5="Y",J5+1,J5) -> 1 | K6: =IF(I5="Y",1,IF(H5="Y",K5+1,K5)) -> 1 | L6: Y
B7: 3 | C7: =IF(D7="","",MAX($C$5:$C6)+1) -> 3 | D7: By James Hockley | E7: 3 | F7: 4 | G7: Y | H7: N | I7: N | J7: =IF(I6="Y",J6+1,J6) -> 1 | K7: =IF(I6="Y",1,IF(H6="Y",K6+1,K6)) -> 1 | L7: Y
B8: 4 | C8: =IF(D8="","",MAX($C$5:$C7)+1) -> 4 | D8: More information and further sample chapters are available from James’s website: www.jhockley.com | E8: 12 | F8: 6 | G8: Y | H8: N | I8: N | J8: 1 | K8: 1 | L8: Y
B9: 5 | C9: =IF(D9="","",MAX($C$5:$C8)+1) ->  | F9: 6 | G9: N | H9: N | I9: N | J9: 1 | K9: 1
B10: 6 | C10: =IF(D10="","",MAX($C$5:$C9)+1) -> 5 | D10: Copyright © James Hockley 2016. | E10: 5 | F10: 5.8 | G10: N | H10: N | I10: N | J10: 1 | K10: 1 | L10: Y
B11: 7 | C11: =IF(D11="","",MAX($C$5:$C10)+1) -> 6 | D11: All rights reserved. | E11: 3 | F11: 5.333333333 | G11: Y | H11: N | I11: Y | J11: 1 | K11: 1 | L11: Y
B12: 8 | C12: =IF(D12="","",MAX($C$5:$C11)+1) -> 7 | D12: The Moment | E12: 2 | F12: 4.857142857 | G12: Y | H12: N | I12: N | J12: 2 | K12: 1 | L12: Y
B13: 9 | C13: =IF(D13="","",MAX($C$5:$C12)+1) ->  | F13: 4.857142857 | G13: N | H13: N | I13: N | J13: 2 | K13: 1
B14: 10 | C14: =IF(D14="","",MAX($C$5:$C13)+1) -> 8 | D14: Death approached; it always did on the battlefield. | E14: 8 | F14: 5.25 | G14: N | H14: N | I14: N | J14: 2 | K14: 1 | L14: Y
B15: 11 | C15: =IF(D15="","",MAX($C$5:$C14)+1) -> 9 | D15: But this was different. | E15: 4 | F15: 5.111111111 | G15: N | H15: N | I15: N | J15: 2 | K15: 1 | L15: Y
B16: 12 | C16: =IF(D16="","",MAX($C$5:$C15)+1) -> 10 | D16: The Grey Plague was coming, stalking ominously through the mist; the Grey cloaked by grey. | E16: 15 | F16: 6.1 | G16: N | H16: N | I16: N | J16: 2 | K16: 1 | L16: Y
B17: 13 | C17: =IF(D17="","",MAX($C$5:$C16)+1) -> 11 | D17: It was coming for him, but the general's smile held a manic edge regardless. | E17: 14 | F17: 6.818181818 | G17: Y | H17: N | I17: N | J17: 2 | K17: 1 | L17: Y
B18: 14 | C18: =IF(D18="","",MAX($C$5:$C17)+1) -> 12 | D18: Because you couldn’t beat a Mandahoi. | E18: 6 | F18: 6.75 | G18: Y | H18: N | I18: N | J18: 2 | K18: =IF(I17="Y",1,IF(H17="Y",K17+1,K17)) -> 1 | L18: Y
B19: 15 | C19: =IF(D19="","",MAX($C$5:$C18)+1) -> 13 | D19: Arrows sporadically punctured the cannon-fog, echoes of the recent display of projectile authority. | E19: 13 | F19: 7.230769231 | G19: N | H19: N | I19: N | J19: 2 | K19: 1 | L19: Y
B20: 16 | C20: =IF(D20="","",MAX($C$5:$C19)+1) -> 14 | D20: Each missile held destructive potential in its trajectory, but the general stood proud nonetheless. | E20: 14 | F20: 7.714285714 | G20: N | H20: N | I20: N | J20: 2 | K20: 1 | L20: Y
B21: 17 | C21: =IF(D21="","",MAX($C$5:$C20)+1) -> 15 | D21: The sound of arrows piercing metal rang in his ears, oddly reminiscent of a past he refused to recognise, but this was not to be his death. | E21: 27 | F21: 9 | G21: N | H21: N | I21: N | J21: 2 | K21: 1 | L21: Y
B22: 18 | C22: =IF(D22="","",MAX($C$5:$C21)+1) -> 16 | D22: The reign of the arrow was finished, and the reign of the Grey had begun. | E22: 15 | F22: 9.375 | G22: N | H22: N | I22: N | J22: 2 | K22: 1 | L22: Y
B23: 19 | C23: =IF(D23="","",MAX($C$5:$C22)+1) -> 17 | D23: And this new threat was a different proposition altogether. | E23: 9 | F23: 9.352941176 | G23: Y | H23: N | I23: N | J23: 2 | K23: 1 | L23: Y
B24: 20 | C24: =IF(D24="","",MAX($C$5:$C23)+1) -> 18 | D24: Because you couldn’t beat a Mandahoi. | E24: 6 | F24: 9.166666667 | G24: Y | H24: N | I24: N | J24: 2 | K24: 1 | L24: Y
B25: 21 | C25: =IF(D25="","",MAX($C$5:$C24)+1) -> 19 | D25: Of course, flight was the logical course of action. | E25: 9 | F25: 9.157894737 | G25: N | H25: N | I25: N | J25: 2 | K25: 1 | L25: Y
B26: 22 | C26: =IF(D26="","",MAX($C$5:$C25)+1) -> 20 | D26: The General knew the enormity of the proposition before him, and he knew that the odds were stacked. | E26: 18 | F26: 9.6 | G26: N | H26: N | I26: N | J26: 2 | K26: 1 | L26: Y
B27: 23 | C27: =IF(D27="","",MAX($C$5:$C26)+1) -> 21 | D27: Even in a fair duel the odds were against him, but there was no guarantee of equality here. | E27: 18 | F27: 10 | G27: N | H27: N | I27: N | J27: 2 | K27: 1 | L27: Y
B28: 24 | C28: =IF(D28="","",MAX($C$5:$C27)+1) -> 22 | D28: And yet he stayed; firm; defiant; resolute. | E28: 7 | F28: 9.863636364 | G28: N | H28: N | I28: N | J28: 2 | K28: 1 | L28: Y
B29: 25 | C29: =IF(D29="","",MAX($C$5:$C28)+1) -> 23 | D29: And mostly he was resolute; a product of his past. | E29: 10 | F29: 9.869565217 | G29: N | H29: N | I29: N | J29: 2 | K29: 1 | L29: Y
B30: 26 | C30: =IF(D30="","",MAX($C$5:$C29)+1) -> 24 | D30: The easy path was flight, and yet this soldier took the tougher route – the route that none other dared. | E30: 20 | F30: 10.29166667 | G30: N | H30: N | I30: N | J30: 2 | K30: 1 | L30: Y
B31: 27 | C31: =IF(D31="","",MAX($C$5:$C30)+1) -> 25 | D31: He chose to face the Grey, and he therefore chose the unlikely path. | E31: 13 | F31: 10.4 | G31: Y | H31: N | I31: N | J31: 2 | K31: 1 | L31: Y
B32: 28 | C32: =IF(D32="","",MAX($C$5:$C31)+1) -> 26 | D32: Because you couldn’t beat a Mandahoi. | E32: 6 | F32: 10.23076923 | G32: Y | H32: N | I32: N | J32: 2 | K32: 1 | L32: Y
B33: 29 | C33: =IF(D33="","",MAX($C$5:$C32)+1) -> 27 | D33: He was calm, or at least on the face of it he was calm. | E33: 14 | F33: 10.37037037 | G33: N | H33: N | I33: N | J33: 2 | K33: 1 | L33: Y
B34: 30 | C34: =IF(D34="","",MAX($C$5:$C33)+1) -> 28 | D34: Within himself, he was a seething cauldron, the emotions that had always been there boiling themselves into a frenzy. | E34: 19 | F34: 10.67857143 | G34: N | H34: N | I34: N | J34: 2 | K34: 1 | L34: Y
B35: 31 | C35: =IF(D35="","",MAX($C$5:$C34)+1) -> 29 | D35: But he would not let them run wild; he never had. | E35: 11 | F35: 10.68965517 | G35: N | H35: N | I35: N | J35: 2 | K35: 1 | L35: Y
B36: 32 | C36: =IF(D36="","",MAX($C$5:$C35)+1) -> 30 | D36: He didn’t have the right after all. | E36: 7 | F36: 10.65517241 | G36: N | H36: N | I36: N | J36: 2 | K36: 1 | L36: Y
B37: 33 | C37: =IF(D37="","",MAX($C$5:$C36)+1) -> 31 | D37: Instead, he harvested that emotional maelstrom and infused his body with its essence. | E37: 13 | F37: 11.06896552 | G37: N | H37: N | I37: N | J37: 2 | K37: 1 | L37: Y
B38: 34 | C38: =IF(D38="","",MAX($C$5:$C37)+1) -> 32 | D38: His task had been laid out, and he had the purpose he required to proceed. | E38: 15 | F38: 11.48275862 | G38: N | H38: N | I38: N | J38: 2 | K38: 1 | L38: Y
B39: 35 | C39: =IF(D39="","",MAX($C$5:$C38)+1) -> 33 | D39: Now he just needed somewhere to focus that energy, and the Grey were approaching. | E39: 14 | F39: 11.55172414 | G39: N | H39: N | I39: N | J39: 2 | K39: 1 | L39: Y
B40: 36 | C40: =IF(D40="","",MAX($C$5:$C39)+1) -> 34 | D40: But this was madness beyond madness, surely? | E40: 7 | F40: 11.4 | G40: Y | H40: N | I40: N | J40: 2 | K40: 1 | L40: Y
B41: 37 | C41: =IF(D41="","",MAX($C$5:$C40)+1) -> 35 | D41: Because you couldn’t beat a Mandahoi. | E41: 6 | F41: 11.43333333 | G41: Y | H41: N | I41: N | J41: 2 | K41: 1 | L41: Y
B42: 38 | C42: =IF(D42="","",MAX($C$5:$C41)+1) -> 36 | D42: As he waited, he stood firm; ready to engage. | E42: 9 | F42: 11.63333333 | G42: N | H42: N | I42: N | J42: 2 | K42: 1 | L42: Y
B43: 39 | C43: =IF(D43="","",MAX($C$5:$C42)+1) -> 37 | D43: His arms were relaxed by his side, resting before the exertion. | E43: 11 | F43: 11.93333333 | G43: N | H43: N | I43: N | J43: 2 | K43: 1 | L43: Y
B44: 40 | C44: =IF(D44="","",MAX($C$5:$C43)+1) -> 38 | D44: Only his right hand was agitated, knuckles white about the grip of his great-sword. | E44: 14 | F44: 12 | G44: N | H44: N | I44: N | J44: 2 | K44: 1 | L44: Y
B45: 41 | C45: =IF(D45="","",MAX($C$5:$C44)+1) -> 39 | D45: And damn she was a great sword. | E45: 7 | F45: 11.96774194 | G45: N | H45: N | I45: N | J45: 2 | K45: 1 | L45: Y
B46: 42 | C46: =IF(D46="","",MAX($C$5:$C45)+1) -> 40 | D46: He gazed upon her, marvelling at the glorious multi-coloured smirk of the weapon; marvelling at the waves of her construction. | E46: 20 | F46: 12.48387097 | G46: N | H46: N | I46: N | J46: 2 | K46: 1 | L46: Y
B47: 43 | C47: =IF(D47="","",MAX($C$5:$C46)+1) -> 41 | D47: She was a beautiful thing, made by the hands of his hateful father, and she was a match for the legendary weapons of the Grey; maybe even better. | E47: 28 | F47: 12.90322581 | G47: N | H47: N | I47: N | J47: 2 | K47: 1 | L47: Y
B48: 44 | C48: =IF(D48="","",MAX($C$5:$C47)+1) -> 42 | D48: But was parity in weaponry enough? | E48: 6 | F48: 12.64516129 | G48: Y | H48: N | I48: N | J48: 2 | K48: 1 | L48: Y
B49: 45 | C49: =IF(D49="","",MAX($C$5:$C48)+1) -> 43 | D49: After all, you couldn’t beat a Mandahoi. | E49: 7 | F49: 12.67741935 | G49: Y | H49: N | I49: N | J49: 2 | K49: 1 | L49: Y
B50: 46 | C50: =IF(D50="","",MAX($C$5:$C49)+1) -> 44 | D50: But time was still on his side. | E50: 7 | F50: 12.48387097 | G50: N | H50: N | I50: N | J50: 2 | K50: 1 | L50: Y
B51: 47 | C51: =IF(D51="","",MAX($C$5:$C50)+1) -> 45 | D51: Yes, he had a moment. | E51: 5 | F51: 12.19354839 | G51: N | H51: N | I51: N | J51: 2 | K51: 1 | L51: Y
B52: 48 | C52: =IF(D52="","",MAX($C$5:$C51)+1) -> 46 | D52: He could sense the approach, but it was not upon him yet and so he permitted himself the small luxury of reflection. | E52: 22 | F52: 12.03225806 | G52: N | H52: N | I52: N | J52: 2 | K52: 1 | L52: Y
B53: 49 | C53: =IF(D53="","",MAX($C$5:$C52)+1) -> 47 | D53: Why was he doing this? | E53: 5 | F53: 11.70967742 | G53: N | H53: N | I53: N | J53: 2 | K53: 1 | L53: Y
B54: 50 | C54: =IF(D54="","",MAX($C$5:$C53)+1) -> 48 | D54: How had he got here? | E54: 5 | F54: 11.58064516 | G54: N | H54: N | I54: N | J54: 2 | K54: 1 | L54: Y
B55: 51 | C55: =IF(D55="","",MAX($C$5:$C54)+1) -> 49 | D55: A great woman once said that ‘anything could be solved by curiosity’, and this is where his inquisitive streak had got him. | E55: 22 | F55: 12.09677419 | G55: N | H55: N | I55: N | J55: 2 | K55: 1 | L55: Y
B56: 52 | C56: =IF(D56="","",MAX($C$5:$C55)+1) -> 50 | D56: He had always been heading for this, hurtling towards the flip of a coin. | E56: 14 | F56: 12.25806452 | G56: N | H56: N | I56: N | J56: 2 | K56: 1 | L56: Y
B57: 53 | C57: =IF(D57="","",MAX($C$5:$C56)+1) -> 51 | D57: And yet it wasn’t a flip of the coin, because a coin is balanced. | E57: 14 | F57: 12.12903226 | G57: N | H57: N | I57: N | J57: 2 | K57: 1 | L57: Y
B58: 54 | C58: =IF(D58="","",MAX($C$5:$C57)+1) -> 52 | D58: No, he was playing the house, and house always wins. | E58: 10 | F58: 11.87096774 | G58: Y | H58: N | I58: N | J58: 2 | K58: 1 | L58: Y
B59: 55 | C59: =IF(D59="","",MAX($C$5:$C58)+1) -> 53 | D59: Because you couldn’t beat a Mandahoi. | E59: 6 | F59: 11.83870968 | G59: Y | H59: N | I59: N | J59: 2 | K59: 1 | L59: Y
B60: 56 | C60: =IF(D60="","",MAX($C$5:$C59)+1) -> 54 | D60: But he was not entirely alone in this chaos. | E60: 9 | F60: 11.80645161 | G60: N | H60: N | I60: N | J60: 2 | K60: 1 | L60: Y
B61: 57 | C61: =IF(D61="","",MAX($C$5:$C60)+1) -> 55 | D61: His master was here, his charge, and the officer now screamed at his stupidity. | E61: 14 | F61: 11.61290323 | G61: N | H61: N | I61: N | J61: 2 | K61: 1 | L61: Y
B62: 58 | C62: =IF(D62="","",MAX($C$5:$C61)+1) -> 56 | D62: “Get out of here you fool!” | E62: 6 | F62: 11.38709677 | G62: N | H62: N | I62: N | J62: 2 | K62: 1 | L62: Y
B63: 59 | C63: =IF(D63="","",MAX($C$5:$C62)+1) -> 57 | D63: If anything, his officer was the fool – a squire was as good as tied to the master. So here he was, waiting to die. | E63: 25 | F63: 12 | G63: N | H63: N | I63: N | J63: 2 | K63: 1 | L63: Y
B64: 60 | C64: =IF(D64="","",MAX($C$5:$C63)+1) -> 58 | D64: He turned to face his master; left leg broken and trapped beneath a dying horse. | E64: 15 | F64: 12.03225806 | G64: N | H64: N | I64: N | J64: 2 | K64: 1 | L64: Y
B65: 61 | C65: =IF(D65="","",MAX($C$5:$C64)+1) -> 59 | D65: He was young for an officer, and yet he was actually far more than just an officer. | E65: 17 | F65: 11.96774194 | G65: N | H65: N | I65: N | J65: 2 | K65: 1 | L65: Y
B66: 62 | C66: =IF(D66="","",MAX($C$5:$C65)+1) -> 60 | D66: He was the Prince, heir to Delfinia, and he was also the charge; he was the purpose that drove the soldier to this madness. | E66: 24 | F66: 12.38709677 | G66: Y | H66: N | I66: N | J66: 2 | K66: 1 | L66: Y
B67: 63 | C67: =IF(D67="","",MAX($C$5:$C66)+1) -> 61 | D67: Because you couldn’t beat a Mandahoi. | E67: 6 | F67: 12.35483871 | G67: Y | H67: N | I67: N | J67: 2 | K67: 1 | L67: Y
B68: 64 | C68: =IF(D68="","",MAX($C$5:$C67)+1) -> 62 | D68: As the soldier looked to his master, he saw the plight in his eyes; but he also saw through that. | E68: 20 | F68: 12.58064516 | G68: N | H68: N | I68: N | J68: 2 | K68: 1 | L68: Y
B69: 65 | C69: =IF(D69="","",MAX($C$5:$C68)+1) -> 63 | D69: They were one and the same, hand and shield-hand; prince and pauper; fates entwined by the Gods. | E69: 17 | F69: 12.64516129 | G69: N | H69: N | I69: N | J69: 2 | K69: 1 | L69: Y
B70: 66 | C70: =IF(D70="","",MAX($C$5:$C69)+1) -> 64 | D70: The path to this point had been laid by the right hand, but now it was time for the shield-hand to strike. | E70: =IF(LEN(TRIM(D70))=0,"",LEN(TRIM(D70))-LEN(SUBSTITUTE(D70," ",""))+1) -> 22 | F70: =AVERAGE(INDIRECT("E"&MAX(ROW()-$F$2,4)&":E"&ROW())) -> 12.90322581 | G70: N | H70: N | I70: N | J70: 2 | K70: 1 | L70: Y
B71: 67 | C71: =IF(D71="","",MAX($C$5:$C70)+1) -> 65 | D71: It was time to repay his master, and indeed, repay him a thousand times. | E71: 14 | F71: 13.12903226 | G71: Y | H71: N | I71: N | J71: =IF(I70="Y",J70+1,J70) -> 2 | K71: =IF(I70="Y",1,IF(H70="Y",K70+1,K70)) -> 1 | L71: Y
B72: 68 | C72: =IF(D72="","",MAX($C$5:$C71)+1) -> 66 | D72: Because you couldn’t beat a Mandahoi. | E72: 6 | F72: 13.12903226 | G72: Y | H72: N | I72: N | J72: 2 | K72: 1 | L72: Y
B73: 69 | C73: =IF(D73="","",MAX($C$5:$C72)+1) -> 67 | D73: Time scraped with that frictional quality it only adopts before the chaos. | E73: 12 | F73: 13.22580645 | G73: N | H73: N | I73: N | J73: 2 | K73: 1 | L73: Y
B74: 70 | C74: =IF(D74="","",MAX($C$5:$C73)+1) -> 68 | D74: Each moment heaved itself into the next, stretching the path to death’s door; but time marched forward nonetheless. | E74: 18 | F74: 13.4516129 | G74: N | H74: N | I74: N | J74: 2 | K74: 1 | L74: Y
B75: 71 | C75: =IF(D75="","",MAX($C$5:$C74)+1) -> 69 | D75: It always did. | E75: 3 | F75: 13.09677419 | G75: N | H75: N | I75: N | J75: 2 | K75: 1 | L75: Y
B76: 72 | C76: =IF(D76="","",MAX($C$5:$C75)+1) -> 70 | D76: He needed calm, and he needed focus. | E76: 7 | F76: 13.09677419 | G76: N | H76: N | I76: N | J76: 2 | K76: 1 | L76: Y
B77: 73 | C77: =IF(D77="","",MAX($C$5:$C76)+1) -> 71 | D77: He needed his superior to be silent, and yet he didn’t have the right to enforce it. | E77: 17 | F77: 13 | G77: N | H77: N | I77: N | J77: 2 | K77: 1 | L77: Y
B78: 74 | C78: =IF(D78="","",MAX($C$5:$C77)+1) -> 72 | D78: He did however have the means, and he released just the tiniest scrap of his inner-maelstrom to devastating effect. | E78: 19 | F78: 12.70967742 | G78: N | H78: N | I78: N | J78: 2 | K78: 1 | L78: Y
B79: 75 | C79: =IF(D79="","",MAX($C$5:$C78)+1) -> 73 | D79: The manic smile he forged must surely have been terrible, because his Prince silenced instantly. | E79: 15 | F79: 13 | G79: N | H79: N | I79: N | J79: 2 | K79: 1 | L79: Y
B80: 76 | C80: =IF(D80="","",MAX($C$5:$C79)+1) -> 74 | D80: It was not right, unsettling his Prince like that, but he needed his focus. | E80: 14 | F80: 13.22580645 | G80: Y | H80: N | I80: N | J80: 2 | K80: 1 | L80: Y
B81: 77 | C81: =IF(D81="","",MAX($C$5:$C80)+1) -> 75 | D81: Because you couldn’t beat a Mandahoi. | E81: 6 | F81: 13.19354839 | G81: Y | H81: N | I81: N | J81: 2 | K81: 1 | L81: Y
B82: 78 | C82: =IF(D82="","",MAX($C$5:$C81)+1) -> 76 | D82: He turned to face the battlefield once more, taking in the scene of defeat. | E82: 14 | F82: 13.48387097 | G82: N | H82: N | I82: N | J82: 2 | K82: 1 | L82: Y
B83: 79 | C83: =IF(D83="","",MAX($C$5:$C82)+1) -> 77 | D83: And it was a defeat – an utter and catastrophic one. | E83: 11 | F83: 13.12903226 | G83: N | H83: N | I83: N | J83: 2 | K83: 1 | L83: Y
B84: 80 | C84: =IF(D84="","",MAX($C$5:$C83)+1) -> 78 | D84: His army had approached with hopes that Southern black magic held the answer, and for the briefest time the cannons seemed to sing. | E84: 23 | F84: 13.70967742 | G84: N | H84: N | I84: N | J84: 2 | K84: 1 | L84: Y
B85: 81 | C85: =IF(D85="","",MAX($C$5:$C84)+1) -> 79 | D85: But then the arrows had come, and the reverse was immediate. | E85: 11 | F85: 13.90322581 | G85: N | H85: N | I85: N | J85: 2 | K85: 1 | L85: Y
B86: 82 | C86: =IF(D86="","",MAX($C$5:$C85)+1) -> 80 | D86: Cannon-fog now cloaked the field, intoxicating the scene, and the dry scrubland was littered with the heavy markers of fallen projectiles. | E86: 21 | F86: 13.87096774 | G86: N | H86: N | I86: N | J86: 2 | K86: 1 | L86: Y
B87: 83 | C87: =IF(D87="","",MAX($C$5:$C86)+1) -> 81 | D87: The archers had done their work; Delfinia was in retreat; and now the Grey Plague was upon them. | E87: 18 | F87: 14 | G87: N | H87: N | I87: N | J87: 2 | K87: 1 | L87: Y
B88: 84 | C88: =IF(D88="","",MAX($C$5:$C87)+1) -> 82 | D88: Mopping up. | E88: 2 | F88: 13.61290323 | G88: N | H88: N | I88: N | J88: 2 | K88: 1 | L88: Y
B89: 85 | C89: =IF(D89="","",MAX($C$5:$C88)+1) -> 83 | D89: And what a mop to have. | E89: 6 | F89: 13.48387097 | G89: Y | H89: N | I89: N | J89: 2 | K89: 1 | L89: Y
B90: 86 | C90: =IF(D90="","",MAX($C$5:$C89)+1) -> 84 | D90: Because you couldn’t beat a Mandahoi. | E90: 6 | F90: 13.48387097 | G90: Y | H90: N | I90: N | J90: 2 | K90: 1 | L90: Y
B91: 87 | C91: =IF(D91="","",MAX($C$5:$C90)+1) -> 85 | D91: Two desperate men burst from the vapid blanket, running as fast as their lungs would allow, and as hard as their heavy armour would permit. | E91: 25 | F91: 14 | G91: N | H91: N | I91: N | J91: 2 | K91: 1 | L91: Y
B92: 88 | C92: =IF(D92="","",MAX($C$5:$C91)+1) -> 86 | D92: They were allies, the last fragments of the shattered infantry, and their faces betrayed the defeat that had spread through the ranks. | E92: 22 | F92: 14.25806452 | G92: N | H92: N | I92: N | J92: 2 | K92: 1 | L92: Y
B93: 89 | C93: =IF(D93="","",MAX($C$5:$C92)+1) -> 87 | D93: A spike of darkness punctured the fog, and suddenly one of the men fell forward; arrow burying itself into his back. | E93: 21 | F93: 14.74193548 | G93: N | H93: N | I93: N | J93: 2 | K93: 1 | L93: Y
B94: 90 | C94: =IF(D94="","",MAX($C$5:$C93)+1) -> 88 | D94: The second infantryman continued desperately on, terror on his face, but also frustration; he had seen this all before. | E94: 19 | F94: 14.5483871 | G94: Y | H94: N | I94: N | J94: 2 | K94: 1 | L94: Y
B95: 91 | C95: =IF(D95="","",MAX($C$5:$C94)+1) -> 89 | D95: Because you couldn’t beat a Mandahoi. | E95: 6 | F95: 14.25806452 | G95: Y | H95: N | I95: N | J95: 2 | K95: 1 | L95: Y
B96: 92 | C96: =IF(D96="","",MAX($C$5:$C95)+1) -> 90 | D96: And they were coming. | E96: 4 | F96: 13.83870968 | G96: N | H96: N | I96: N | J96: 2 | K96: 1 | L96: Y
B97: 93 | C97: =IF(D97="","",MAX($C$5:$C96)+1) -> 91 | D97: A shadow in the fog was deepening, the form of the Grey growing steadily. | E97: 14 | F97: 13.51612903 | G97: N | H97: N | I97: N | J97: 2 | K97: 1 | L97: Y
B98: 94 | C98: =IF(D98="","",MAX($C$5:$C97)+1) -> 92 | D98: The fleeing ally screamed for the soldier to turn and run, but that was not the way to greatness. | E98: 19 | F98: 13.93548387 | G98: N | H98: N | I98: N | J98: 2 | K98: 1 | L98: Y
B99: 95 | C99: =IF(D99="","",MAX($C$5:$C98)+1) -> 93 | D99: That was in fact the exact opposite direction to greatness, for it was a strange quirk that the pinnacle and the abyss held the same directional quality. | E99: 27 | F99: 14.16129032 | G99: N | H99: N | I99: N | J99: 2 | K99: 1 | L99: Y
B100: 96 | C100: =IF(D100="","",MAX($C$5:$C99)+1) -> 94 | D100: To flirt with one was to face the other, and as the shadow grew darker, the chasm opened up. | E100: 19 | F100: 14.22580645 | G100: N | H100: N | I100: N | J100: 2 | K100: 1 | L100: Y
B101: 97 | C101: =IF(D101="","",MAX($C$5:$C100)+1) -> 95 | D101: Death was here; the stuff of nightmares; the eternal rot. | E101: 10 | F101: 13.83870968 | G101: Y | H101: N | I101: N | J101: 2 | K101: 1 | L101: Y
B102: 98 | C102: =IF(D102="","",MAX($C$5:$C101)+1) -> 96 | D102: The Mandahoi were upon him, and they would not be beaten. | E102: 11 | F102: 13.74193548 | G102: Y | H102: N | I102: N | J102: 2 | K102: 1 | L102: Y
B103: 99 | C103: =IF(D103="","",MAX($C$5:$C102)+1) -> 97 | D103: It burst from the swirling fog, and for just the briefest moment, the Grey Plague seemed mortal. | E103: 17 | F103: 14.09677419 | G103: N | H103: N | I103: N | J103: 2 | K103: 1 | L103: Y
B104: 100 | C104: =IF(D104="","",MAX($C$5:$C103)+1) -> 98 | D104: A man approached, grey clothed, his bare arms littered with heavy rings. | E104: 12 | F104: 14.09677419 | G104: N | H104: N | I104: N | J104: 2 | K104: 1 | L104: Y
B105: 101 | C105: =IF(D105="","",MAX($C$5:$C104)+1) -> 99 | D105: A hood concealed much of his head, and most of his face was covered by a silver mask in the likeness of a bear – only the eyes were truly visible. | E105: 31 | F105: 14.51612903 | G105: N | H105: N | I105: N | J105: 2 | K105: 1 | L105: Y
B106: 102 | C106: =IF(D106="","",MAX($C$5:$C105)+1) -> 100 | D106: He was a confident man, yes, but a man nonetheless. | E106: 10 | F106: 14.74193548 | G106: N | H106: N | I106: N | J106: 2 | K106: 1 | L106: Y
B107: 103 | C107: =IF(D107="","",MAX($C$5:$C106)+1) -> 101 | D107: And yet reputation was everything, and this was a Mandahoi. | E107: 10 | F107: 14.83870968 | G107: N | H107: N | I107: N | J107: 2 | K107: 1 | L107: Y
B108: 104 | C108: =IF(D108="","",MAX($C$5:$C107)+1) -> 102 | D108: Death followed where this man led, and the two blades held before him sang of profound ability. | E108: 17 | F108: 14.83870968 | G108: N | H108: N | I108: N | J108: 2 | K108: 1 | L108: Y
B109: 105 | C109: =IF(D109="","",MAX($C$5:$C108)+1) -> 103 | D109: If killing was an art, then this man was the master. | E109: 11 | F109: 14.58064516 | G109: N | H109: N | I109: N | J109: 2 | K109: 1 | L109: Y
B110: 106 | C110: =IF(D110="","",MAX($C$5:$C109)+1) -> 104 | D110: The odds were long indeed. | E110: 5 | F110: 14.25806452 | G110: Y | H110: N | I110: N | J110: 2 | K110: 1 | L110: Y
B111: 107 | C111: =IF(D111="","",MAX($C$5:$C110)+1) -> 105 | D111: Because you couldn’t beat a Mandahoi. | E111: 6 | F111: 14 | G111: Y | H111: N | I111: N | J111: 2 | K111: 1 | L111: Y
B112: 108 | C112: =IF(D112="","",MAX($C$5:$C111)+1) -> 106 | D112: And then the odds grew longer. | E112: 6 | F112: 14 | G112: N | H112: N | I112: N | J112: 2 | K112: 1 | L112: Y
B113: 109 | C113: =IF(D113="","",MAX($C$5:$C112)+1) -> 107 | D113: Two further Mandahoi melted from the fog-bank, moving forward with terrible surety. | E113: 12 | F113: 13.93548387 | G113: N | H113: N | I113: N | J113: 2 | K113: 1 | L113: Y
B114: 110 | C114: =IF(D114="","",MAX($C$5:$C113)+1) -> 108 | D114: The first enemy was almost upon him, casual purpose in his set; weapons flickering dangerously. | E114: 15 | F114: 14.06451613 | G114: N | H114: N | I114: N | J114: 2 | K114: 1 | L114: Y
B115: 111 | C115: =IF(D115="","",MAX($C$5:$C114)+1) -> 109 | D115: But the squire did not falter. | E115: 6 | F115: 13.51612903 | G115: N | H115: N | I115: N | J115: 2 | K115: 1 | L115: Y
B116: 112 | C116: =IF(D116="","",MAX($C$5:$C115)+1) -> 110 | D116: The infusion of his body was complete, the chaos was consumed, and his purpose was set. | E116: 16 | F116: 13.67741935 | G116: N | H116: N | I116: N | J116: 2 | K116: 1 | L116: Y
B117: 113 | C117: =IF(D117="","",MAX($C$5:$C116)+1) -> 111 | D117: All his life had been moving to this moment, and now it was here. | E117: 14 | F117: 13.4516129 | G117: N | H117: N | I117: N | J117: 2 | K117: 1 | L117: Y
B118: 114 | C118: =IF(D118="","",MAX($C$5:$C117)+1) -> 112 | D118: Now it was here. | E118: 4 | F118: 13 | G118: N | H118: N | I118: N | J118: 2 | K118: 1 | L118: Y
B119: 115 | C119: =IF(D119="","",MAX($C$5:$C118)+1) -> 113 | D119: So he smiled at death herself; he smiled as the Mandahoi approached. | E119: 12 | F119: 13.32258065 | G119: Y | H119: N | I119: N | J119: 2 | K119: 1 | L119: Y
B120: 116 | C120: =IF(D120="","",MAX($C$5:$C119)+1) -> 114 | D120: For he was Adnan ap Kantal, and he chose the barely trodden path. | E120: 13 | F120: 13.5483871 | G120: N | H120: N | I120: N | J120: 2 | K120: 1 | L120: Y
B121: 117 | C121: =IF(D121="","",MAX($C$5:$C120)+1) -> 115 | D121: Eminence or extinction, that was the coin he faced, but it was the path he’d been treading all his life. | E121: 20 | F121: 14 | G121: N | H121: N | I121: N | J121: 2 | K121: 1 | L121: Y
B122: 118 | C122: =IF(D122="","",MAX($C$5:$C121)+1) -> 116 | D122: If he wasn’t ready now, then when? | E122: 7 | F122: 13.41935484 | G122: N | H122: N | I122: N | J122: 2 | K122: 1 | L122: Y
B123: 119 | C123: =IF(D123="","",MAX($C$5:$C122)+1) -> 117 | D123: The Grey Plague approached, and he stepped forward. | E123: 8 | F123: 12.96774194 | G123: N | H123: N | I123: N | J123: 2 | K123: 1 | L123: Y
B124: 120 | C124: =IF(D124="","",MAX($C$5:$C123)+1) -> 118 | D124: This was a one-way journey, as it had ever been. | E124: 10 | F124: 12.61290323 | G124: N | H124: N | I124: N | J124: 2 | K124: 1 | L124: Y
B125: 121 | C125: =IF(D125="","",MAX($C$5:$C124)+1) -> 119 | D125: Whether it ended today was now down to the Gods, and to the strength of Kantal’s stubborn resolve. | E125: 18 | F125: 12.58064516 | G125: Y | H125: N | I125: Y | J125: 2 | K125: 1 | L125: Y
B126: 122 | C126: =IF(D126="","",MAX($C$5:$C125)+1) -> 120 | D126: The Now | E126: 2 | F126: 12.4516129 | G126: Y | H126: N | I126: N | J126: 3 | K126: 1 | L126: Y
B127: 123 | C127: =IF(D127="","",MAX($C$5:$C126)+1) -> 121 | D127: One | E127: 1 | F127: 12.35483871 | G127: Y | H127: N | I127: N | J127: 3 | K127: 1 | L127: Y
B128: 124 | C128: =IF(D128="","",MAX($C$5:$C127)+1) ->  | F128: 12.3 | G128: N | H128: N | I128: N | J128: 3 | K128: 1 | L128: Y
B129: 125 | C129: =IF(D129="","",MAX($C$5:$C128)+1) -> 122 | D129: Some people actually liked riding, but not him. | E129: 8 | F129: 11.93333333 | G129: N | H129: N | I129: N | J129: 3 | K129: 1 | L129: Y
B130: 126 | C130: =IF(D130="","",MAX($C$5:$C129)+1) -> 123 | D130: Definitely not him. | E130: 3 | F130: 11.13333333 | G130: N | H130: N | I130: N | J130: 3 | K130: 1 | L130: Y
B131: 127 | C131: =IF(D131="","",MAX($C$5:$C130)+1) -> 124 | D131: Some people must have immunity to the pain and discomfort, but for him it was like a form of slow torture. | E131: 21 | F131: 11.2 | G131: N | H131: N | I131: N | J131: 3 | K131: 1 | L131: Y
B132: 128 | C132: =IF(D132="","",MAX($C$5:$C131)+1) -> 125 | D132: The act of sitting in a saddle started a steady descent in comfort, each moment sliding immaculately into the more painful next. | E132: 22 | F132: 11.6 | G132: N | H132: N | I132: N | J132: 3 | K132: 1 | L132: Y
B133: 129 | C133: =IF(D133="","",MAX($C$5:$C132)+1) -> 126 | D133: And the flavours of punishment were exquisite too: there were aches; sharp pains; dull throbs; numbness; those terrible pins at the other end of the spectrum. | E133: 26 | F133: 12.1 | G133: N | H133: N | I133: N | J133: 3 | K133: 1 | L133: Y
B134: 130 | C134: =IF(D134="","",MAX($C$5:$C133)+1) -> 127 | D134: The only reprise was to stand in the stirrups, cocking one's arse at the riders behind, but even then legs would grow tired. The saddle was always calling, and so therefore was the punishment. | E134: =IF(LEN(TRIM(D134))=0,"",LEN(TRIM(D134))-LEN(SUBSTITUTE(D134," ",""))+1) -> 34 | F134: =AVERAGE(INDIRECT("E"&MAX(ROW()-$F$2,4)&":E"&ROW())) -> 12.66666667 | G134: Y | H134: N | I134: N | J134: 3 | K134: 1 | L134: Y
B135: 131 | C135: =IF(D135="","",MAX($C$5:$C134)+1) -> 128 | D135: "Pfff." | E135: 1 | F135: 12.3 | G135: Y | H135: N | I135: N | J135: =IF(I134="Y",J134+1,J134) -> 3 | K135: =IF(I134="Y",1,IF(H134="Y",K134+1,K134)) -> 1 | L135: Y
B136: 132 | C136: =IF(D136="","",MAX($C$5:$C135)+1) -> 129 | D136: The only man riding ahead of him turned and gave Kantal a disapproving glance, a look which caused him to go stiff with unease; pain gnawing at his consciousness. | E136: 29 | F136: 12.23333333 | G136: N | H136: N | I136: N | J136: 3 | K136: 1 | L136: Y
B137: 133 | C137: =IF(D137="","",MAX($C$5:$C136)+1) -> 130 | D137: He was still in awe of this man, even despite the years behind them. | E137: 14 | F137: 12.36666667 | G137: N | H137: N | I137: N | J137: 3 | K137: 1 | L137: Y
B138: 134 | C138: =IF(D138="","",MAX($C$5:$C137)+1) -> 131 | D138: And he was immediately obedient. | E138: 5 | F138: 12.2 | G138: Y | H138: N | I138: N | J138: 3 | K138: 1 | L138: Y
B139: 135 | C139: =IF(D139="","",MAX($C$5:$C138)+1) -> 132 | D139: "Are we boring you, General?" | E139: 5 | F139: 11.8 | G139: Y | H139: N | I139: N | J139: 3 | K139: 1 | L139: Y
B140: 136 | C140: =IF(D140="","",MAX($C$5:$C139)+1) -> 133 | D140: The authority in the stare unnerved him – Kantal was not used to that look, being as he was a favourite of the man. | E140: 24 | F140: 12.23333333 | G140: N | H140: N | I140: N | J140: 3 | K140: 1 | L140: Y
B141: 137 | C141: =IF(D141="","",MAX($C$5:$C140)+1) -> 134 | D141: He stuttered for a moment, before blurting out the prescribed response. | E141: 11 | F141: 12.43333333 | G141: Y | H141: N | I141: N | J141: 3 | K141: 1 | L141: Y
B142: 138 | C142: =IF(D142="","",MAX($C$5:$C141)+1) -> 135 | D142: "Of course not, your Highness. | E142: 5 | F142: 12.4 | G142: N | H142: N | I142: N | J142: 3 | K142: 1 | L142: Y
B143: 139 | C143: =IF(D143="","",MAX($C$5:$C142)+1) -> 136 | D143: I am in awe of your wise direction. | E143: 8 | F143: 12.46666667 | G143: N | H143: N | I143: N | J143: 3 | K143: 1 | L143: Y
B144: 140 | C144: =IF(D144="","",MAX($C$5:$C143)+1) -> 137 | D144: I only exhaled at my unfortunate discomfort." | E144: 7 | F144: 12.3 | G144: Y | H144: N | I144: N | J144: 3 | K144: 1 | L144: Y
B145: 141 | C145: =IF(D145="","",MAX($C$5:$C144)+1) -> 138 | D145: The words came out smoothly enough, but each one grated in his throat. | E145: 13 | F145: 12.23333333 | G145: N | H145: N | I145: N | J145: 3 | K145: 1 | L145: Y
B146: 142 | C146: =IF(D146="","",MAX($C$5:$C145)+1) -> 139 | D146: He was unused to such delicacy, and his common accent butchered the finesse. | E146: 13 | F146: 12.46666667 | G146: Y | H146: N | I146: N | J146: 3 | K146: 1 | L146: Y
B147: 143 | C147: =IF(D147="","",MAX($C$5:$C146)+1) -> 140 | D147: "Do not oil your words, Kantal; it doesn’t suit you. | E147: 10 | F147: 12.26666667 | G147: N | H147: N | I147: N | J147: 3 | K147: 1 | L147: Y
B148: 144 | C148: =IF(D148="","",MAX($C$5:$C147)+1) -> 141 | D148: What's really wrong?" | E148: 3 | F148: 11.9 | G148: Y | H148: N | I148: N | J148: 3 | K148: 1 | L148: Y
B149: 145 | C149: =IF(D149="","",MAX($C$5:$C148)+1) -> 142 | D149: Kantal felt the snigger at his back; the twitter of a dozen scheming aristocrats. | E149: 14 | F149: 12.23333333 | G149: N | H149: N | I149: N | J149: 3 | K149: 1 | L149: Y
B150: 146 | C150: =IF(D150="","",MAX($C$5:$C149)+1) -> 143 | D150: He was the one out of place here, the commoner amongst the elite, but he had earned the right to his status. | E150: 22 | F150: 12.56666667 | G150: N | H150: N | I150: N | J150: 3 | K150: 1 | L150: Y
B151: 147 | C151: =IF(D151="","",MAX($C$5:$C150)+1) -> 144 | D151: No, he had more than earned the right. | E151: 8 | F151: 12.4 | G151: N | H151: N | I151: N | J151: 3 | K151: 1 | L151: Y
B152: 148 | C152: =IF(D152="","",MAX($C$5:$C151)+1) -> 145 | D152: The King, his master, put up with him because he was worth putting up with. | E152: 15 | F152: 12.23333333 | G152: N | H152: N | I152: N | J152: 3 | K152: 1 | L152: Y
B153: 149 | C153: =IF(D153="","",MAX($C$5:$C152)+1) -> 146 | D153: Kantal turned to the powdered fools and sneered. | E153: 8 | F153: 12.26666667 | G153: N | H153: N | I153: N | J153: 3 | K153: 1 | L153: Y
B154: 150 | C154: =IF(D154="","",MAX($C$5:$C153)+1) -> 147 | D154: When he turned back, the King still glared, awaiting the response. | E154: 11 | F154: 12.36666667 | G154: Y | H154: N | I154: N | J154: 3 | K154: 1 | L154: Y
B155: 151 | C155: =IF(D155="","",MAX($C$5:$C154)+1) -> 148 | D155: "My arse hurts." | E155: 3 | F155: 12.13333333 | G155: Y | H155: N | I155: N | J155: 3 | K155: 1 | L155: Y
B156: 152 | C156: =IF(D156="","",MAX($C$5:$C155)+1) -> 149 | D156: There was just the tiniest elevation in the right side of the King's lip, his blond moustache tilting. | E156: 18 | F156: 12.13333333 | G156: N | H156: N | I156: N | J156: 3 | K156: 1 | L156: Y
B157: 153 | C157: =IF(D157="","",MAX($C$5:$C156)+1) -> 150 | D157: The authority didn't leave the man's face, and the twittering fools gasped before whispering against Kantal's vulgar words. | E157: 18 | F157: 12.66666667 | G157: N | H157: N | I157: N | J157: 3 | K157: 1 | L157: Y
B158: 154 | C158: =IF(D158="","",MAX($C$5:$C157)+1) -> 151 | D158: They would be calling him a fool, uncouth, and a piece of gutter scum. | E158: 14 | F158: 13.1 | G158: N | H158: N | I158: N | J158: 3 | K158: 1 | L158: Y
B159: 155 | C159: =IF(D159="","",MAX($C$5:$C158)+1) -> 152 | D159: He wasn't good enough to grace their company, let alone lead their army, and for the most awkward moment, he believed them. | E159: 22 | F159: 13.38709677 | G159: N | H159: N | I159: N | J159: 3 | K159: 1 | L159: Y
B160: 156 | C160: =IF(D160="","",MAX($C$5:$C159)+1) -> 153 | D160: The King stared on with stony authority, displeasure rampant on his face. | E160: 12 | F160: 13.51612903 | G160: N | H160: N | I160: N | J160: 3 | K160: 1 | L160: Y
B161: 157 | C161: =IF(D161="","",MAX($C$5:$C160)+1) -> 154 | D161: And then his face contorted, ready to strike. | E161: 8 | F161: 13.67741935 | G161: N | H161: N | I161: N | J161: 3 | K161: 1 | L161: Y
B162: 158 | C162: =IF(D162="","",MAX($C$5:$C161)+1) -> 155 | D162: Kantal gulped. | E162: 2 | F162: 13.06451613 | G162: Y | H162: N | I162: N | J162: 3 | K162: 1 | L162: Y
B163: 159 | C163: =IF(D163="","",MAX($C$5:$C162)+1) -> 156 | D163: The royal mouth opened wide, his eyes closed, and the King let out an almighty roar. | E163: 16 | F163: 12.87096774 | G163: N | H163: N | I163: N | J163: 3 | K163: 1 | L163: Y
B164: 160 | C164: =IF(D164="","",MAX($C$5:$C163)+1) -> 157 | D164: When he'd finished laughing, he wiped the spittle from his lips and smiled at Kantal. | E164: 15 | F164: 12.51612903 | G164: Y | H164: N | I164: N | J164: 3 | K164: 1 | L164: Y
B165: 161 | C165: =IF(D165="","",MAX($C$5:$C164)+1) -> 158 | D165: "I do so love your honesty. | E165: 6 | F165: 11.61290323 | G165: N | H165: N | I165: N | J165: 3 | K165: 1 | L165: Y
B166: 162 | C166: =IF(D166="","",MAX($C$5:$C165)+1) -> 159 | D166: My arse hurts too." | E166: 4 | F166: 11.70967742 | G166: Y | H166: N | I166: N | J166: 3 | K166: 1 | L166: Y
B167: 163 | C167: =IF(D167="","",MAX($C$5:$C166)+1) -> 160 | D167: Kantal grunted in pleasure, relief spreading through him. | E167: 8 | F167: 11.03225806 | G167: N | H167: N | I167: N | J167: 3 | K167: 1 | L167: Y
B168: 164 | C168: =IF(D168="","",MAX($C$5:$C167)+1) -> 161 | D168: The peacocks were muttering disappointedly under their collective breath. | E168: 9 | F168: 10.87096774 | G168: Y | H168: N | I168: N | J168: 3 | K168: 1 | L168: Y
B169: 165 | C169: =IF(D169="","",MAX($C$5:$C168)+1) -> 162 | D169: "It's not natural to straddle such beasts." | E169: 7 | F169: 10.93548387 | G169: Y | H169: N | I169: N | J169: 3 | K169: 1 | L169: Y
B170: 166 | C170: =IF(D170="","",MAX($C$5:$C169)+1) -> 163 | D170: The King dropped back, and Kantal moved into step. | E170: 9 | F170: 11.06451613 | G170: Y | H170: N | I170: N | J170: 3 | K170: 1 | L170: Y
B171: 167 | C171: =IF(D171="","",MAX($C$5:$C170)+1) -> 164 | D171: "Maybe not, but Man has been doing it long enough. | E171: 10 | F171: 10.61290323 | G171: N | H171: N | I171: N | J171: 3 | K171: 1 | L171: Y
B172: 168 | C172: =IF(D172="","",MAX($C$5:$C171)+1) -> 165 | D172: And besides, how else would we make this journey?" | E172: 9 | F172: 10.5483871 | G172: Y | H172: N | I172: N | J172: 3 | K172: 1 | L172: Y
B173: 169 | C173: =IF(D173="","",MAX($C$5:$C172)+1) -> 166 | D173: That was true enough. | E173: 4 | F173: 10.51612903 | G173: N | H173: N | I173: N | J173: 3 | K173: 1 | L173: Y
B174: 170 | C174: =IF(D174="","",MAX($C$5:$C173)+1) -> 167 | D174: Kantal looked about, taking in the surroundings. | E174: 7 | F174: 10.48387097 | G174: N | H174: N | I174: N | J174: 3 | K174: 1 | L174: Y
B175: 171 | C175: =IF(D175="","",MAX($C$5:$C174)+1) -> 168 | D175: To his right was a sharp mountain range; stark against the pan flat lands about them. | E175: 16 | F175: 10.77419355 | G175: N | H175: N | I175: N | J175: 3 | K175: 1 | L175: Y
B176: 172 | C176: =IF(D176="","",MAX($C$5:$C175)+1) -> 169 | D176: All but ato the Finder the scrubbed brown plains of Mikaeta stretched away, a subtle heat haze rustling the horizon. | E176: 20 | F176: 11 | G176: N | H176: N | I176: N | J176: 3 | K176: 1 | L176: Y
B177: 173 | C177: =IF(D177="","",MAX($C$5:$C176)+1) -> 170 | D177: But ato Friendly, the mountains stood like sentinels, protecting the luscious lands behind. | E177: 13 | F177: 11 | G177: N | H177: N | I177: N | J177: 3 | K177: 1 | L177: Y
B178: 174 | C178: =IF(D178="","",MAX($C$5:$C177)+1) -> 171 | D178: That was Ahan, a glorious gem amongst a world of decay, and it had been snatched away from Delfin's legacy, from Kantal’s King, and therefore from Kantal himelf. | E178: 28 | F178: 11.58064516 | G178: Y | H178: N | I178: N | J178: 3 | K178: 1 | L178: Y
B179: 175 | C179: =IF(D179="","",MAX($C$5:$C178)+1) -> 172 | D179: But you couldn’t beat a Mandahoi, so Ahan remained without his grasp. | E179: 12 | F179: 11.87096774 | G179: Y | H179: N | I179: N | J179: 3 | K179: 1 | L179: Y
B180: 176 | C180: =IF(D180="","",MAX($C$5:$C179)+1) -> 173 | D180: "Kantal?" | E180: 1 | F180: 11.4516129 | G180: Y | H180: N | I180: N | J180: 3 | K180: 1 | L180: Y
B181: 177 | C181: =IF(D181="","",MAX($C$5:$C180)+1) -> 174 | D181: "Sorry, your Highness. | E181: 3 | F181: 10.83870968 | G181: N | H181: N | I181: N | J181: 3 | K181: 1 | L181: Y
B182: 178 | C182: =IF(D182="","",MAX($C$5:$C181)+1) -> 175 | D182: I agree, unfortunately. | E182: 3 | F182: 10.67741935 | G182: N | H182: N | I182: N | J182: 3 | K182: 1 | L182: Y
B183: 179 | C183: =IF(D183="","",MAX($C$5:$C182)+1) -> 176 | D183: Horses are a necessary discomfort." | E183: 5 | F183: 10.35483871 | G183: Y | H183: N | I183: N | J183: 3 | K183: 1 | L183: Y
B184: 180 | C184: =IF(D184="","",MAX($C$5:$C183)+1) -> 177 | D184: The King slapped him on the back, and Kantal could hear the renewed disappointment from the ‘cocks behind. | E184: 18 | F184: 10.67741935 | G184: Y | H184: N | I184: N | J184: 3 | K184: 1 | L184: Y
B185: 181 | C185: =IF(D185="","",MAX($C$5:$C184)+1) -> 178 | D185: "A horse is a fine friend in combat too – let’s not forget that." | E185: 14 | F185: 10.77419355 | G185: Y | H185: N | I185: N | J185: 3 | K185: 1 | L185: Y
B186: 182 | C186: =IF(D186="","",MAX($C$5:$C185)+1) -> 179 | D186: An image flashed through Kantal's head, an image of a grey wraith in a whirlwind of steel. | E186: 17 | F186: 11.22580645 | G186: N | H186: N | I186: N | J186: 3 | K186: 1 | L186: Y
B187: 183 | C187: =IF(D187="","",MAX($C$5:$C186)+1) -> 180 | D187: That was the untouchable enemy; the eternal rot. Horses were no good there. | E187: 13 | F187: 11.06451613 | G187: Y | H187: N | I187: N | J187: 3 | K187: 1 | L187: Y
B188: 184 | C188: =IF(D188="","",MAX($C$5:$C187)+1) -> 181 | D188: "Not against the Mandahoi, Highness." | E188: 5 | F188: 10.64516129 | G188: N | H188: N | I188: N | J188: 3 | K188: 1 | L188: Y
B189: 185 | C189: =IF(D189="","",MAX($C$5:$C188)+1) -> 182 | D189: Because you couldn’t beat a Mandahoi. | E189: 6 | F189: 10.38709677 | G189: N | H189: N | I189: N | J189: 3 | K189: 1 | L189: Y
B190: 186 | C190: =IF(D190="","",MAX($C$5:$C189)+1) -> 183 | D190: Kantal's tongue slid over his front teeth, and he recognised the sharp relief of the gold replacement. | E190: 17 | F190: 10.22580645 | G190: N | H190: N | I190: N | J190: 3 | K190: 1 | L190: Y
B191: 187 | C191: =IF(D191="","",MAX($C$5:$C190)+1) -> 184 | D191: His mind wandered, only to be torn back by his King. | E191: 11 | F191: 10.19354839 | G191: Y | H191: N | I191: N | J191: 3 | K191: 1 | L191: Y
B192: 188 | C192: =IF(D192="","",MAX($C$5:$C191)+1) -> 185 | D192: "Indeed. | E192: 1 | F192: 9.967741935 | G192: N | H192: N | I192: N | J192: 3 | K192: 1 | L192: Y
B193: 189 | C193: =IF(D193="","",MAX($C$5:$C192)+1) -> 186 | D193: Most weapons are useless against that particular foe. | E193: 8 | F193: 10.16129032 | G193: N | H193: N | I193: N | J193: 3 | K193: 1 | L193: Y
B194: 190 | C194: =IF(D194="","",MAX($C$5:$C193)+1) -> 187 | D194: Most nights I wonder how we'll ever overcome them." | E194: 9 | F194: 9.935483871 | G194: Y | H194: N | I194: N | J194: 3 | K194: 1 | L194: Y
B195: 191 | C195: =IF(D195="","",MAX($C$5:$C194)+1) -> 188 | D195: This was Kantal's territory, but even he couldn't be entirely confident. | E195: 11 | F195: 9.806451613 | G195: N | H195: N | I195: N | J195: 3 | K195: 1 | L195: Y
B196: 192 | C196: =IF(D196="","",MAX($C$5:$C195)+1) -> 189 | D196: Against the Grey, confidence only accelerated the downfall. | E196: 8 | F196: 9.870967742 | G196: Y | H196: N | I196: N | J196: 3 | K196: 1 | L196: Y
B197: 193 | C197: =IF(D197="","",MAX($C$5:$C196)+1) -> 190 | D197: "There are ways, but they are,” he licked his lips, “hard." | E197: 11 | F197: 10.09677419 | G197: Y | H197: N | I197: N | J197: 3 | K197: 1 | L197: Y
B198: 194 | C198: =IF(D198="","",MAX($C$5:$C197)+1) -> 191 | D198: A grunt escaped from his King. | E198: =IF(LEN(TRIM(D198))=0,"",LEN(TRIM(D198))-LEN(SUBSTITUTE(D198," ",""))+1) -> 6 | F198: =AVERAGE(INDIRECT("E"&MAX(ROW()-$F$2,4)&":E"&ROW())) -> 10.03225806 | G198: N | H198: N | I198: N | J198: 3 | K198: 1 | L198: Y
B199: 195 | C199: =IF(D199="","",MAX($C$5:$C198)+1) -> 192 | D199: There was little more to say on the matter. | E199: 9 | F199: 10.03225806 | G199: N | H199: N | I199: N | J199: =IF(I198="Y",J198+1,J198) -> 3 | K199: =IF(I198="Y",1,IF(H198="Y",K198+1,K198)) -> 1 | L199: Y
B200: 196 | C200: =IF(D200="","",MAX($C$5:$C199)+1) -> 193 | D200: Instead, they could only dream of the wealth that lay beyond those mountains; a wealth forever outside their grasp. | E200: 19 | F200: 10.41935484 | G200: N | H200: N | I200: N | J200: 3 | K200: 1 | L200: Y
B201: 197 | C201: =IF(D201="","",MAX($C$5:$C200)+1) -> 194 | D201: Or was it? | E201: 3 | F201: 10.22580645 | G201: N | H201: N | I201: N | J201: 3 | K201: 1 | L201: Y
B202: 198 | C202: =IF(D202="","",MAX($C$5:$C201)+1) -> 195 | D202: That was what they were out to change after all. | E202: 10 | F202: 10.22580645 | G202: Y | H202: N | I202: N | J202: 3 | K202: 1 | L202: Y
... 4298 more rows

Sheet MND_4_2
E2: =SUMIF($L$5:$L$10004,"Y",$E$5:$E$10004)/SUM($E$5:$E$10004) -> 0 | F2: 30 | G2: Y | H2: N
B4: REF | C4: SENT | D4: TEXT | E4: WDS | F4: AVG | G4: PARA | H4: SECT | I4: CHAP | J4: CHNMB | K4: SECTION | M4: NOTES
B5: 1 | C5: =IF(D5="","",1) -> 1 | D5: Mandestroy | E5: =IF(LEN(TRIM(D5))=0,"",LEN(TRIM(D5))-LEN(SUBSTITUTE(D5," ",""))+1) -> 1 | F5: =AVERAGE(INDIRECT("E"&MAX(ROW()-$F$2,4)&":E"&ROW())) -> 1 | G5: Y | H5: N | I5: N | J5: 1 | K5: 1
B6: 2 | C6: =IF(D6="","",MAX($C$5:$C5)+1) -> 2 | D6: By James Hockley | E6: =IF(LEN(TRIM(D6))=0,"",LEN(TRIM(D6))-LEN(SUBSTITUTE(D6," ",""))+1) -> 3 | F6: =AVERAGE(INDIRECT("E"&MAX(ROW()-$F$2,4)&":E"&ROW())) -> 2 | G6: Y | H6: N | I6: N | J6: =IF(I5="Y",J5+1,J5) -> 1 | K6: =IF(I5="Y",1,IF(H5="Y",K5+1,K5)) -> 1
B7: 3 | C7: =IF(D7="","",MAX($C$5:$C6)+1) -> 3 | D7: Prequel novella to Fear’s Union | draft 4.2 | E7: 8 | F7: 4 | G7: Y | H7: N | I7: N | J7: =IF(I6="Y",J6+1,J6) -> 1 | K7: =IF(I6="Y",1,IF(H6="Y",K6+1,K6)) -> 1
B8: 4 | C8: =IF(D8="","",MAX($C$5:$C7)+1) -> 4 | D8: More information and further sample chapters are available from James’s website: www.jhockley.com | E8: 12 | F8: 6 | G8: Y | H8: N | I8: N | J8: 1 | K8: 1
B9: 5 | C9: =IF(D9="","",MAX($C$5:$C8)+1) -> 5 | D9: Copyright © James Hockley 2016. | E9: 5 | F9: 5.8 | G9: N | H9: N | I9: N | J9: 1 | K9: 1
B10: 6 | C10: =IF(D10="","",MAX($C$5:$C9)+1) -> 6 | D10: All rights reserved. | E10: 3 | F10: 5.333333333 | G10: Y | H10: N | I10: Y | J10: 1 | K10: 1
B11: 7 | C11: =IF(D11="","",MAX($C$5:$C10)+1) -> 7 | D11: The Moment | E11: 2 | F11: 4.857142857 | G11: Y | H11: N | I11: N | J11: 2 | K11: 1
B12: 8 | C12: =IF(D12="","",MAX($C$5:$C11)+1) -> 8 | D12: Death approached; it always did on the battlefield. | E12: 8 | F12: 5.25 | G12: N | H12: N | I12: N | J12: 2 | K12: 1
B13: 9 | C13: =IF(D13="","",MAX($C$5:$C12)+1) -> 9 | D13: But this was different. | E13: 4 | F13: 5.111111111 | G13: N | H13: N | I13: N | J13: 2 | K13: 1
B14: 10 | C14: =IF(D14="","",MAX($C$5:$C13)+1) -> 10 | D14: The Grey Plague was coming, stalking ominously through the mist; the Grey cloaked by grey. | E14: 15 | F14: 6.1 | G14: N | H14: N | I14: N | J14: 2 | K14: 1
B15: 11 | C15: =IF(D15="","",MAX($C$5:$C14)+1) -> 11 | D15: It was coming for him, but the soldier refused to recognise the danger; which was foolish. | E15: 16 | F15: 7 | G15: Y | H15: N | I15: N | J15: 2 | K15: 1
B16: 12 | C16: =IF(D16="","",MAX($C$5:$C15)+1) -> 12 | D16: Because you couldn’t beat a mandahoi. | E16: 6 | F16: 6.916666667 | G16: Y | H16: N | I16: N | J16: 2 | K16: 1
B17: 13 | C17: =IF(D17="","",MAX($C$5:$C16)+1) -> 13 | D17: Arrows sporadically punctured the cannon-fog, echoes of the recent display of projectile authority. | E17: 13 | F17: 7.384615385 | G17: N | H17: N | I17: N | J17: 2 | K17: 1
B18: 14 | C18: =IF(D18="","",MAX($C$5:$C17)+1) -> 14 | D18: Each missile held destructive potential in its trajectory, but the soldier stood proud nonetheless. | E18: 14 | F18: 7.857142857 | G18: N | H18: N | I18: N | J18: 2 | K18: =IF(I17="Y",1,IF(H17="Y",K17+1,K17)) -> 1
B19: 15 | C19: =IF(D19="","",MAX($C$5:$C18)+1) -> 15 | D19: The sound of arrows striking metal rang in his ears, oddly reminiscent of a past he refused to recognise, but this was not to be his death. | E19: 27 | F19: 9.133333333 | G19: N | H19: N | I19: N | J19: 2 | K19: 1
B20: 16 | C20: =IF(D20="","",MAX($C$5:$C19)+1) -> 16 | D20: The reign of the arrow was finished, and the reign of the Grey had begun. | E20: 15 | F20: 9.5 | G20: N | H20: N | I20: N | J20: 2 | K20: 1
B21: 17 | C21: =IF(D21="","",MAX($C$5:$C20)+1) -> 17 | D21: And this new threat was a different proposition altogether. | E21: 9 | F21: 9.470588235 | G21: Y | H21: N | I21: N | J21: 2 | K21: 1
B22: 18 | C22: =IF(D22="","",MAX($C$5:$C21)+1) -> 18 | D22: Because you couldn’t beat a mandahoi. | E22: 6 | F22: 9.277777778 | G22: Y | H22: N | I22: N | J22: 2 | K22: 1
B23: 19 | C23: =IF(D23="","",MAX($C$5:$C22)+1) -> 19 | D23: Of course, flight was the logical course of action. | E23: 9 | F23: 9.263157895 | G23: N | H23: N | I23: N | J23: 2 | K23: 1
B24: 20 | C24: =IF(D24="","",MAX($C$5:$C23)+1) -> 20 | D24: The soldier knew the enormity of the proposition before him, and he knew that the odds were stacked. | E24: 18 | F24: 9.7 | G24: N | H24: N | I24: N | J24: 2 | K24: 1
B25: 21 | C25: =IF(D25="","",MAX($C$5:$C24)+1) -> 21 | D25: Even in a fair duel the odds were against him, but there was no guarantee of equality here. | E25: 18 | F25: 10.0952381 | G25: N | H25: N | I25: N | J25: 2 | K25: 1
B26: 22 | C26: =IF(D26="","",MAX($C$5:$C25)+1) -> 22 | D26: And yet he stayed; firm; defiant; resolute. | E26: 7 | F26: 9.954545455 | G26: N | H26: N | I26: N | J26: 2 | K26: 1
B27: 23 | C27: =IF(D27="","",MAX($C$5:$C26)+1) -> 23 | D27: And mostly he was resolute; a product of his past. | E27: 10 | F27: 9.956521739 | G27: N | H27: N | I27: N | J27: 2 | K27: 1
B28: 24 | C28: =IF(D28="","",MAX($C$5:$C27)+1) -> 24 | D28: The easy path was flight, and yet this soldier took the tougher route – the route that none other dared. | E28: 20 | F28: 10.375 | G28: N | H28: N | I28: N | J28: 2 | K28: 1
B29: 25 | C29: =IF(D29="","",MAX($C$5:$C28)+1) -> 25 | D29: He chose to face the Grey, and he therefore chose the unlikely path. | E29: 13 | F29: 10.48 | G29: Y | H29: N | I29: N | J29: 2 | K29: 1
B30: 26 | C30: =IF(D30="","",MAX($C$5:$C29)+1) -> 26 | D30: Because you couldn’t beat a mandahoi. | E30: 6 | F30: 10.30769231 | G30: Y | H30: N | I30: N | J30: 2 | K30: 1
B31: 27 | C31: =IF(D31="","",MAX($C$5:$C30)+1) -> 27 | D31: He was calm, or at least on the face of it he was calm. | E31: 14 | F31: 10.44444444 | G31: N | H31: N | I31: N | J31: 2 | K31: 1
B32: 28 | C32: =IF(D32="","",MAX($C$5:$C31)+1) -> 28 | D32: Within himself, he was a seething cauldron, the emotions that had always been there boiling themselves into a frenzy. | E32: 19 | F32: 10.75 | G32: N | H32: N | I32: N | J32: 2 | K32: 1
B33: 29 | C33: =IF(D33="","",MAX($C$5:$C32)+1) -> 29 | D33: But he would not let them run wild; he never had. | E33: 11 | F33: 10.75862069 | G33: N | H33: N | I33: N | J33: 2 | K33: 1
B34: 30 | C34: =IF(D34="","",MAX($C$5:$C33)+1) -> 30 | D34: Instead, he harvested that emotional maelstrom and infused his body with its essence. | E34: 13 | F34: 10.83333333 | G34: N | H34: N | I34: N | J34: 2 | K34: 1
B35: 31 | C35: =IF(D35="","",MAX($C$5:$C34)+1) -> 31 | D35: His task had been laid out, and he had the purpose he required to proceed. | E35: 15 | F35: 10.96774194 | G35: N | H35: N | I35: N | J35: 2 | K35: 1
B36: 32 | C36: =IF(D36="","",MAX($C$5:$C35)+1) -> 32 | D36: Now he just needed somewhere to focus that energy, and the Grey were approaching. | E36: 14 | F36: 11.38709677 | G36: N | H36: N | I36: N | J36: 2 | K36: 1
B37: 33 | C37: =IF(D37="","",MAX($C$5:$C36)+1) -> 33 | D37: But this was madness beyond madness, surely? | E37: 7 | F37: 11.51612903 | G37: Y | H37: N | I37: N | J37: 2 | K37: 1
B38: 34 | C38: =IF(D38="","",MAX($C$5:$C37)+1) -> 34 | D38: Because you couldn’t beat a mandahoi. | E38: 6 | F38: 11.4516129 | G38: Y | H38: N | I38: N | J38: 2 | K38: 1
B39: 35 | C39: =IF(D39="","",MAX($C$5:$C38)+1) -> 35 | D39: As he waited, he stood firm; ready to engage. | E39: 9 | F39: 11.35483871 | G39: N | H39: N | I39: N | J39: 2 | K39: 1
B40: 36 | C40: =IF(D40="","",MAX($C$5:$C39)+1) -> 36 | D40: His arms were relaxed by his side, resting before the exertion. | E40: 11 | F40: 11.5483871 | G40: N | H40: N | I40: N | J40: 2 | K40: 1
B41: 37 | C41: =IF(D41="","",MAX($C$5:$C40)+1) -> 37 | D41: Only his right hand was agitated, knuckles white about the grip of his great-sword. | E41: 14 | F41: 11.90322581 | G41: N | H41: N | I41: N | J41: 2 | K41: 1
B42: 38 | C42: =IF(D42="","",MAX($C$5:$C41)+1) -> 38 | D42: And damn she was a great sword. | E42: 7 | F42: 12.06451613 | G42: N | H42: N | I42: N | J42: 2 | K42: 1
B43: 39 | C43: =IF(D43="","",MAX($C$5:$C42)+1) -> 39 | D43: He gazed upon her, marvelling at the glorious multi-coloured smirk of the weapon; marvelling at the waves of her construction. | E43: 20 | F43: 12.4516129 | G43: N | H43: N | I43: N | J43: 2 | K43: 1
B44: 40 | C44: =IF(D44="","",MAX($C$5:$C43)+1) -> 40 | D44: She was a beautiful thing, made by the hands of his hateful father, and she was a match for the legendary weapons of the Grey; maybe even better. | E44: 28 | F44: 13.22580645 | G44: N | H44: N | I44: N | J44: 2 | K44: 1
B45: 41 | C45: =IF(D45="","",MAX($C$5:$C44)+1) -> 41 | D45: But was parity in weaponry enough? | E45: 6 | F45: 12.93548387 | G45: Y | H45: N | I45: N | J45: 2 | K45: 1
B46: 42 | C46: =IF(D46="","",MAX($C$5:$C45)+1) -> 42 | D46: After all, you couldn’t beat a mandahoi. | E46: 7 | F46: 12.64516129 | G46: Y | H46: N | I46: N | J46: 2 | K46: 1
B47: 43 | C47: =IF(D47="","",MAX($C$5:$C46)+1) -> 43 | D47: But time was still on his side. | E47: 7 | F47: 12.67741935 | G47: N | H47: N | I47: N | J47: 2 | K47: 1
B48: 44 | C48: =IF(D48="","",MAX($C$5:$C47)+1) -> 44 | D48: Yes, he had a moment. | E48: 5 | F48: 12.41935484 | G48: N | H48: N | I48: N | J48: 2 | K48: 1
B49: 45 | C49: =IF(D49="","",MAX($C$5:$C48)+1) -> 45 | D49: He could sense the approach, but it was not upon him yet and so he permitted himself the small luxury of reflection. | E49: 22 | F49: 12.67741935 | G49: N | H49: N | I49: N | J49: 2 | K49: 1
B50: 46 | C50: =IF(D50="","",MAX($C$5:$C49)+1) -> 46 | D50: Why was he doing this? | E50: 5 | F50: 11.96774194 | G50: N | H50: N | I50: N | J50: 2 | K50: 1
B51: 47 | C51: =IF(D51="","",MAX($C$5:$C50)+1) -> 47 | D51: How had he got here? | E51: 5 | F51: 11.64516129 | G51: N | H51: N | I51: N | J51: 2 | K51: 1
B52: 48 | C52: =IF(D52="","",MAX($C$5:$C51)+1) -> 48 | D52: A great woman once said that ‘anything could be solved by curiosity’, and this is where his inquisitive streak had got him. | E52: 22 | F52: 12.06451613 | G52: N | H52: N | I52: N | J52: 2 | K52: 1
B53: 49 | C53: =IF(D53="","",MAX($C$5:$C52)+1) -> 49 | D53: He had always been heading for this, hurtling towards the flip of a coin. | E53: 14 | F53: 12.32258065 | G53: N | H53: N | I53: N | J53: 2 | K53: 1
B54: 50 | C54: =IF(D54="","",MAX($C$5:$C53)+1) -> 50 | D54: And yet it wasn’t a flip of the coin, because a coin is balanced. | E54: 14 | F54: 12.48387097 | G54: N | H54: N | I54: N | J54: 2 | K54: 1
B55: 51 | C55: =IF(D55="","",MAX($C$5:$C54)+1) -> 51 | D55: No, he was playing the house, and house always wins. | E55: 10 | F55: 12.22580645 | G55: Y | H55: N | I55: N | J55: 2 | K55: 1
B56: 52 | C56: =IF(D56="","",MAX($C$5:$C55)+1) -> 52 | D56: Because you couldn’t beat a mandahoi. | E56: 6 | F56: 11.83870968 | G56: Y | H56: N | I56: N | J56: 2 | K56: 1
B57: 53 | C57: =IF(D57="","",MAX($C$5:$C56)+1) -> 53 | D57: But he was not entirely alone in this chaos. | E57: 9 | F57: 11.90322581 | G57: N | H57: N | I57: N | J57: 2 | K57: 1
B58: 54 | C58: =IF(D58="","",MAX($C$5:$C57)+1) -> 54 | D58: His master was here, his charge, and the officer now screamed at his stupidity. | E58: 14 | F58: 12.03225806 | G58: N | H58: N | I58: N | J58: 2 | K58: 1
B59: 55 | C59: =IF(D59="","",MAX($C$5:$C58)+1) -> 55 | D59: “Get out of here you fool!” | E59: 6 | F59: 11.58064516 | G59: N | H59: N | I59: N | J59: 2 | K59: 1
B60: 56 | C60: =IF(D60="","",MAX($C$5:$C59)+1) -> 56 | D60: If anything, his officer was the fool – a squire was as good as tied to the master. | E60: 18 | F60: 11.74193548 | G60: N | H60: N | I60: N | J60: 2 | K60: 1
B61: 57 | C61: =IF(D61="","",MAX($C$5:$C60)+1) -> 57 | D61: So here he was, waiting to die. | E61: 7 | F61: 11.77419355 | G61: N | H61: N | I61: N | J61: 2 | K61: 1
B62: 58 | C62: =IF(D62="","",MAX($C$5:$C61)+1) -> 58 | D62: He turned to face his master; left leg broken and trapped beneath a dying horse. | E62: 15 | F62: 11.80645161 | G62: N | H62: N | I62: N | J62: 2 | K62: 1
B63: 59 | C63: =IF(D63="","",MAX($C$5:$C62)+1) -> 59 | D63: He was young for an officer, and yet he was actually far more than just an officer. | E63: 17 | F63: 11.74193548 | G63: N | H63: N | I63: N | J63: 2 | K63: 1
B64: 60 | C64: =IF(D64="","",MAX($C$5:$C63)+1) -> 60 | D64: He was the Prince, heir to Delfinia, and he was also the charge; he was the purpose that drove the soldier to this madness. | E64: 24 | F64: 12.16129032 | G64: Y | H64: N | I64: N | J64: 2 | K64: 1
B65: 61 | C65: =IF(D65="","",MAX($C$5:$C64)+1) -> 61 | D65: Because you couldn’t beat a mandahoi. | E65: 6 | F65: 11.93548387 | G65: Y | H65: N | I65: N | J65: 2 | K65: 1
B66: 62 | C66: =IF(D66="","",MAX($C$5:$C65)+1) -> 62 | D66: As the soldier looked to his master, he saw the plight in his eyes; but he also saw through that. | E66: 20 | F66: 12.09677419 | G66: N | H66: N | I66: N | J66: 2 | K66: 1
B67: 63 | C67: =IF(D67="","",MAX($C$5:$C66)+1) -> 63 | D67: They were one and the same, hand and shield-hand; prince and pauper; fates entwined by the Gods. | E67: 17 | F67: 12.19354839 | G67: N | H67: N | I67: N | J67: 2 | K67: 1
B68: 64 | C68: =IF(D68="","",MAX($C$5:$C67)+1) -> 64 | D68: The path to this point had been laid by the right hand, but now it was time for the shield-hand to strike. | E68: 22 | F68: 12.67741935 | G68: N | H68: N | I68: N | J68: 2 | K68: 1
B69: 65 | C69: =IF(D69="","",MAX($C$5:$C68)+1) -> 65 | D69: It was time to repay his master, and indeed, repay him a thousand times. | E69: 14 | F69: 12.93548387 | G69: Y | H69: N | I69: N | J69: 2 | K69: 1
B70: 66 | C70: =IF(D70="","",MAX($C$5:$C69)+1) -> 66 | D70: Because you couldn’t beat a mandahoi. | E70: =IF(LEN(TRIM(D70))=0,"",LEN(TRIM(D70))-LEN(SUBSTITUTE(D70," ",""))+1) -> 6 | F70: =AVERAGE(INDIRECT("E"&MAX(ROW()-$F$2,4)&":E"&ROW())) -> 12.83870968 | G70: Y | H70: N | I70: N | J70: 2 | K70: 1
B71: 67 | C71: =IF(D71="","",MAX($C$5:$C70)+1) -> 67 | D71: Time scraped with that frictional quality it only adopts before the chaos. | E71: 12 | F71: 12.87096774 | G71: N | H71: N | I71: N | J71: =IF(I70="Y",J70+1,J70) -> 2 | K71: =IF(I70="Y",1,IF(H70="Y",K70+1,K70)) -> 1
B72: 68 | C72: =IF(D72="","",MAX($C$5:$C71)+1) -> 68 | D72: Each moment heaved itself into the next, stretching the path to death’s door; but time marched forward nonetheless. | E72: 18 | F72: 13 | G72: N | H72: N | I72: N | J72: 2 | K72: 1
B73: 69 | C73: =IF(D73="","",MAX($C$5:$C72)+1) -> 69 | D73: It always did. | E73: 3 | F73: 12.87096774 | G73: N | H73: N | I73: N | J73: 2 | K73: 1
B74: 70 | C74: =IF(D74="","",MAX($C$5:$C73)+1) -> 70 | D74: He needed calm, and he needed focus. | E74: 7 | F74: 12.4516129 | G74: N | H74: N | I74: N | J74: 2 | K74: 1
B75: 71 | C75: =IF(D75="","",MAX($C$5:$C74)+1) -> 71 | D75: He needed his superior to be silent, and yet he didn’t have the right to enforce it. | E75: 17 | F75: 12.09677419 | G75: N | H75: N | I75: N | J75: 2 | K75: 1
B76: 72 | C76: =IF(D76="","",MAX($C$5:$C75)+1) -> 72 | D76: He did however have the means, and he released just the tiniest scrap of his inner-maelstrom to great effect. | E76: 19 | F76: 12.51612903 | G76: N | H76: N | I76: N | J76: 2 | K76: 1
B77: 73 | C77: =IF(D77="","",MAX($C$5:$C76)+1) -> 73 | D77: The manic smile he forged must surely have been terrible, because his prince silenced instantly. | E77: 15 | F77: 12.77419355 | G77: N | H77: N | I77: N | J77: 2 | K77: 1
B78: 74 | C78: =IF(D78="","",MAX($C$5:$C77)+1) -> 74 | D78: It was not right, unsettling his prince like that, but he needed his focus. | E78: 14 | F78: 13 | G78: Y | H78: N | I78: N | J78: 2 | K78: 1
B79: 75 | C79: =IF(D79="","",MAX($C$5:$C78)+1) -> 75 | D79: Because you couldn’t beat a mandahoi. | E79: 6 | F79: 13.03225806 | G79: Y | H79: N | I79: N | J79: 2 | K79: 1
B80: 76 | C80: =IF(D80="","",MAX($C$5:$C79)+1) -> 76 | D80: He turned to face the battlefield once more, taking in the scene of defeat. | E80: 14 | F80: 12.77419355 | G80: N | H80: N | I80: N | J80: 2 | K80: 1
B81: 77 | C81: =IF(D81="","",MAX($C$5:$C80)+1) -> 77 | D81: And it was a defeat – an utter and catastrophic one. | E81: 11 | F81: 12.96774194 | G81: N | H81: N | I81: N | J81: 2 | K81: 1
B82: 78 | C82: =IF(D82="","",MAX($C$5:$C81)+1) -> 78 | D82: His army had approached with hopes that Southern black magic held the answer, and for the briefest time the cannons seemed to sing. | E82: 23 | F82: 13.5483871 | G82: N | H82: N | I82: N | J82: 2 | K82: 1
B83: 79 | C83: =IF(D83="","",MAX($C$5:$C82)+1) -> 79 | D83: But then the arrows had come, and the reverse was immediate. | E83: 11 | F83: 13.19354839 | G83: N | H83: N | I83: N | J83: 2 | K83: 1
B84: 80 | C84: =IF(D84="","",MAX($C$5:$C83)+1) -> 80 | D84: Cannon-fog now cloaked the field, intoxicating the scene, and the dry scrubland was littered with the heavy markers of fallen projectiles. | E84: 21 | F84: 13.41935484 | G84: N | H84: N | I84: N | J84: 2 | K84: 1
B85: 81 | C85: =IF(D85="","",MAX($C$5:$C84)+1) -> 81 | D85: The archers had done their work; Delfinia was in retreat; and now the Grey Plague was upon them. | E85: 18 | F85: 13.5483871 | G85: N | H85: N | I85: N | J85: 2 | K85: 1
B86: 82 | C86: =IF(D86="","",MAX($C$5:$C85)+1) -> 82 | D86: Mopping up. | E86: 2 | F86: 13.29032258 | G86: N | H86: N | I86: N | J86: 2 | K86: 1
B87: 83 | C87: =IF(D87="","",MAX($C$5:$C86)+1) -> 83 | D87: And what a mop to have. | E87: 6 | F87: 13.29032258 | G87: Y | H87: N | I87: N | J87: 2 | K87: 1
B88: 84 | C88: =IF(D88="","",MAX($C$5:$C87)+1) -> 84 | D88: Because you couldn’t beat a mandahoi. | E88: 6 | F88: 13.19354839 | G88: Y | H88: N | I88: N | J88: 2 | K88: 1
B89: 85 | C89: =IF(D89="","",MAX($C$5:$C88)+1) -> 85 | D89: Two desperate men burst from the vapid blanket, running as fast as their lungs would allow, and as hard as their heavy armour would permit. | E89: 25 | F89: 13.5483871 | G89: N | H89: N | I89: N | J89: 2 | K89: 1
B90: 86 | C90: =IF(D90="","",MAX($C$5:$C89)+1) -> 86 | D90: They were allies, the last fragments of the shattered infantry, and their faces betrayed the defeat that had spread through the ranks. | E90: 22 | F90: 14.06451613 | G90: N | H90: N | I90: N | J90: 2 | K90: 1
B91: 87 | C91: =IF(D91="","",MAX($C$5:$C90)+1) -> 87 | D91: A spike of darkness punctured the fog, and suddenly one of the men fell forward; arrow burying itself into his back. | E91: 21 | F91: 14.16129032 | G91: N | H91: N | I91: N | J91: 2 | K91: 1
B92: 88 | C92: =IF(D92="","",MAX($C$5:$C91)+1) -> 88 | D92: The second infantryman continued desperately on, terror on his face, but also frustration; he had seen this all before. | E92: 19 | F92: 14.5483871 | G92: Y | H92: N | I92: N | J92: 2 | K92: 1
B93: 89 | C93: =IF(D93="","",MAX($C$5:$C92)+1) -> 89 | D93: Because you couldn’t beat a mandahoi. | E93: 6 | F93: 14.25806452 | G93: Y | H93: N | I93: N | J93: 2 | K93: 1
B94: 90 | C94: =IF(D94="","",MAX($C$5:$C93)+1) -> 90 | D94: And they were coming. | E94: 4 | F94: 13.83870968 | G94: N | H94: N | I94: N | J94: 2 | K94: 1
B95: 91 | C95: =IF(D95="","",MAX($C$5:$C94)+1) -> 91 | D95: A shadow in the fog was deepening, the form of the Grey growing steadily. | E95: 14 | F95: 13.51612903 | G95: N | H95: N | I95: N | J95: 2 | K95: 1
B96: 92 | C96: =IF(D96="","",MAX($C$5:$C95)+1) -> 92 | D96: The fleeing ally screamed for the soldier to turn and run, but that was not the way to greatness. | E96: 19 | F96: 13.93548387 | G96: N | H96: N | I96: N | J96: 2 | K96: 1
B97: 93 | C97: =IF(D97="","",MAX($C$5:$C96)+1) -> 93 | D97: That was in fact the exact opposite direction to greatness, for it was a strange quirk that the pinnacle and the abyss held the same directional quality. | E97: 27 | F97: 14.16129032 | G97: N | H97: N | I97: N | J97: 2 | K97: 1
B98: 94 | C98: =IF(D98="","",MAX($C$5:$C97)+1) -> 94 | D98: To flirt with one was to face the other, and as the shadow grew darker, the chasm opened up. | E98: 19 | F98: 14.22580645 | G98: N | H98: N | I98: N | J98: 2 | K98: 1
B99: 95 | C99: =IF(D99="","",MAX($C$5:$C98)+1) -> 95 | D99: Death was here; the stuff of nightmares; the eternal rot. | E99: 10 | F99: 13.83870968 | G99: Y | H99: N | I99: N | J99: 2 | K99: 1
B100: 96 | C100: =IF(D100="","",MAX($C$5:$C99)+1) -> 96 | D100: The Mandahoi were upon him, and they would not be beaten. | E100: 11 | F100: 13.74193548 | G100: Y | H100: N | I100: N | J100: 2 | K100: 1
B101: 97 | C101: =IF(D101="","",MAX($C$5:$C100)+1) -> 97 | D101: It burst from the swirling fog, and for just the briefest moment, the Grey Plague seemed mortal. | E101: 17 | F101: 14.09677419 | G101: N | H101: N | I101: N | J101: 2 | K101: 1
B102: 98 | C102: =IF(D102="","",MAX($C$5:$C101)+1) -> 98 | D102: A man approached, grey clothed, his bare arms littered with heavy rings. | E102: 12 | F102: 14.09677419 | G102: N | H102: N | I102: N | J102: 2 | K102: 1
B103: 99 | C103: =IF(D103="","",MAX($C$5:$C102)+1) -> 99 | D103: A hood concealed much of his head, and most of his face was covered by a silver mask in the likeness of a bear – only the eyes were truly visible. | E103: 31 | F103: 14.51612903 | G103: N | H103: N | I103: N | J103: 2 | K103: 1
B104: 100 | C104: =IF(D104="","",MAX($C$5:$C103)+1) -> 100 | D104: He was a confident man, yes, but a man nonetheless. | E104: 10 | F104: 14.74193548 | G104: N | H104: N | I104: N | J104: 2 | K104: 1
B105: 101 | C105: =IF(D105="","",MAX($C$5:$C104)+1) -> 101 | D105: And yet reputation was everything, and this was a mandahoi. | E105: 10 | F105: 14.83870968 | G105: N | H105: N | I105: N | J105: 2 | K105: 1
B106: 102 | C106: =IF(D106="","",MAX($C$5:$C105)+1) -> 102 | D106: Death followed where this man led, and the two blades held before him sang of profound ability. | E106: 17 | F106: 14.83870968 | G106: N | H106: N | I106: N | J106: 2 | K106: 1
B107: 103 | C107: =IF(D107="","",MAX($C$5:$C106)+1) -> 103 | D107: If killing was an art, then this man was the master. | E107: 11 | F107: 14.58064516 | G107: N | H107: N | I107: N | J107: 2 | K107: 1
B108: 104 | C108: =IF(D108="","",MAX($C$5:$C107)+1) -> 104 | D108: The odds were long indeed. | E108: 5 | F108: 14.25806452 | G108: Y | H108: N | I108: N | J108: 2 | K108: 1
B109: 105 | C109: =IF(D109="","",MAX($C$5:$C108)+1) -> 105 | D109: Because you couldn’t beat a mandahoi. | E109: 6 | F109: 14 | G109: Y | H109: N | I109: N | J109: 2 | K109: 1
B110: 106 | C110: =IF(D110="","",MAX($C$5:$C109)+1) -> 106 | D110: And then the odds grew longer. | E110: 6 | F110: 14 | G110: N | H110: N | I110: N | J110: 2 | K110: 1
B111: 107 | C111: =IF(D111="","",MAX($C$5:$C110)+1) -> 107 | D111: Two further mandahoi melted from the fog-bank, moving forward with terrible surety. | E111: 12 | F111: 13.93548387 | G111: N | H111: N | I111: N | J111: 2 | K111: 1
B112: 108 | C112: =IF(D112="","",MAX($C$5:$C111)+1) -> 108 | D112: The first enemy was almost upon him, casual purpose in his set; weapons flickering dangerously. | E112: 15 | F112: 14.06451613 | G112: N | H112: N | I112: N | J112: 2 | K112: 1
B113: 109 | C113: =IF(D113="","",MAX($C$5:$C112)+1) -> 109 | D113: But the squire did not falter. | E113: 6 | F113: 13.51612903 | G113: N | H113: N | I113: N | J113: 2 | K113: 1
B114: 110 | C114: =IF(D114="","",MAX($C$5:$C113)+1) -> 110 | D114: The infusion of his body was complete, the chaos was consumed, and his purpose was set. | E114: 16 | F114: 13.67741935 | G114: N | H114: N | I114: N | J114: 2 | K114: 1
B115: 111 | C115: =IF(D115="","",MAX($C$5:$C114)+1) -> 111 | D115: All his life had been moving to this moment, and now it was here. | E115: 14 | F115: 13.4516129 | G115: N | H115: N | I115: N | J115: 2 | K115: 1
B116: 112 | C116: =IF(D116="","",MAX($C$5:$C115)+1) -> 112 | D116: Now it was here. | E116: 4 | F116: 13 | G116: N | H116: N | I116: N | J116: 2 | K116: 1
B117: 113 | C117: =IF(D117="","",MAX($C$5:$C116)+1) -> 113 | D117: So he smiled at death herself; he smiled as the mandahoi approached. | E117: 12 | F117: 13.32258065 | G117: Y | H117: N | I117: N | J117: 2 | K117: 1
B118: 114 | C118: =IF(D118="","",MAX($C$5:$C117)+1) -> 114 | D118: For he was Adnan ap Kantal, and he chose the barely trodden path. | E118: 13 | F118: 13.5483871 | G118: N | H118: N | I118: N | J118: 2 | K118: 1
B119: 115 | C119: =IF(D119="","",MAX($C$5:$C118)+1) -> 115 | D119: Eminence or extinction, that was the coin he faced, but it was the path he’d been treading all his life. | E119: 20 | F119: 14 | G119: N | H119: N | I119: N | J119: 2 | K119: 1
B120: 116 | C120: =IF(D120="","",MAX($C$5:$C119)+1) -> 116 | D120: If he wasn’t ready now, then when? | E120: 7 | F120: 13.41935484 | G120: N | H120: N | I120: N | J120: 2 | K120: 1
B121: 117 | C121: =IF(D121="","",MAX($C$5:$C120)+1) -> 117 | D121: The Grey Plague approached, and he stepped forward. | E121: 8 | F121: 12.96774194 | G121: N | H121: N | I121: N | J121: 2 | K121: 1
B122: 118 | C122: =IF(D122="","",MAX($C$5:$C121)+1) -> 118 | D122: This was a one-way journey, as it had ever been. | E122: 10 | F122: 12.61290323 | G122: N | H122: N | I122: N | J122: 2 | K122: 1
B123: 119 | C123: =IF(D123="","",MAX($C$5:$C122)+1) -> 119 | D123: Whether it ended today was now down to the Gods, and to the strength of Kantal’s stubborn resolve. | E123: 18 | F123: 12.58064516 | G123: Y | H123: N | I123: N | J123: 2 | K123: 1
B124: 120 | C124: =IF(D124="","",MAX($C$5:$C123)+1) -> 120 | D124: The Now | E124: 2 | F124: 12.4516129 | G124: Y | H124: N | I124: N | J124: 2 | K124: 1
B125: 121 | C125: =IF(D125="","",MAX($C$5:$C124)+1) -> 121 | D125: One | E125: 1 | F125: 12.35483871 | G125: Y | H125: N | I125: N | J125: 2 | K125: 1
B126: 122 | C126: =IF(D126="","",MAX($C$5:$C125)+1) -> 122 | D126: Some people actually liked riding, but not him. | E126: 8 | F126: 12.16129032 | G126: N | H126: N | I126: N | J126: 2 | K126: 1
B127: 123 | C127: =IF(D127="","",MAX($C$5:$C126)+1) -> 123 | D127: Definitely not him. | E127: 3 | F127: 11.64516129 | G127: N | H127: N | I127: N | J127: 2 | K127: 1
B128: 124 | C128: =IF(D128="","",MAX($C$5:$C127)+1) -> 124 | D128: Some people must have immunity to the pain and discomfort, but for him it was like a form of slow torture. | E128: 21 | F128: 11.4516129 | G128: N | H128: N | I128: N | J128: 2 | K128: 1
B129: 125 | C129: =IF(D129="","",MAX($C$5:$C128)+1) -> 125 | D129: The act of sitting in a saddle started a steady descent in comfort, each moment sliding immaculately into the more painful next. | E129: 22 | F129: 11.5483871 | G129: N | H129: N | I129: N | J129: 2 | K129: 1
B130: 126 | C130: =IF(D130="","",MAX($C$5:$C129)+1) -> 126 | D130: And the flavours of punishment were diverse too: there were aches; sharp pains; dull throbs; numbness; those terrible pins at the other end of the spectrum. | E130: 26 | F130: 12.06451613 | G130: N | H130: N | I130: N | J130: 2 | K130: 1
B131: 127 | C131: =IF(D131="","",MAX($C$5:$C130)+1) -> 127 | D131: The only reprise was to stand in the stirrups, cocking one's arse at the riders behind, but even then legs would grow tired. | E131: 23 | F131: 12.4516129 | G131: N | H131: N | I131: N | J131: 2 | K131: 1
B132: 128 | C132: =IF(D132="","",MAX($C$5:$C131)+1) -> 128 | D132: The saddle was always calling, and so therefore was the punishment. | E132: 11 | F132: 12.25806452 | G132: Y | H132: N | I132: N | J132: 2 | K132: 1
B133: 129 | C133: =IF(D133="","",MAX($C$5:$C132)+1) -> 129 | D133: "Pfff." | E133: 1 | F133: 11.90322581 | G133: Y | H133: N | I133: N | J133: 2 | K133: 1
B134: 130 | C134: =IF(D134="","",MAX($C$5:$C133)+1) -> 130 | D134: The only man riding ahead of him turned and gave Kantal a disapproving glance, a look which caused Kantal to go stiff with unease; pain gnawing at his consciousness. | E134: =IF(LEN(TRIM(D134))=0,"",LEN(TRIM(D134))-LEN(SUBSTITUTE(D134," ",""))+1) -> 29 | F134: =AVERAGE(INDIRECT("E"&MAX(ROW()-$F$2,4)&":E"&ROW())) -> 11.83870968 | G134: N | H134: N | I134: N | J134: 2 | K134: 1
B135: 131 | C135: =IF(D135="","",MAX($C$5:$C134)+1) -> 131 | D135: He was still in awe of this man, even despite the years behind them. | E135: 14 | F135: 11.96774194 | G135: N | H135: N | I135: N | J135: =IF(I134="Y",J134+1,J134) -> 2 | K135: =IF(I134="Y",1,IF(H134="Y",K134+1,K134)) -> 1
B136: 132 | C136: =IF(D136="","",MAX($C$5:$C135)+1) -> 132 | D136: And he was immediately obedient. | E136: 5 | F136: 11.80645161 | G136: Y | H136: N | I136: N | J136: 2 | K136: 1
B137: 133 | C137: =IF(D137="","",MAX($C$5:$C136)+1) -> 133 | D137: "Are we boring you, General?" | E137: 5 | F137: 11.41935484 | G137: Y | H137: N | I137: N | J137: 2 | K137: 1
B138: 134 | C138: =IF(D138="","",MAX($C$5:$C137)+1) -> 134 | D138: The authority in the stare unnerved him – Kantal was not used to that look, being as he was a favourite of the man. | E138: 24 | F138: 11.83870968 | G138: N | H138: N | I138: N | J138: 2 | K138: 1
B139: 135 | C139: =IF(D139="","",MAX($C$5:$C138)+1) -> 135 | D139: He stuttered for a moment, before blurting out the prescribed response. | E139: 11 | F139: 12.03225806 | G139: Y | H139: N | I139: N | J139: 2 | K139: 1
B140: 136 | C140: =IF(D140="","",MAX($C$5:$C139)+1) -> 136 | D140: "Of course not, your Highness. | E140: 5 | F140: 12 | G140: N | H140: N | I140: N | J140: 2 | K140: 1
B141: 137 | C141: =IF(D141="","",MAX($C$5:$C140)+1) -> 137 | D141: I am in awe of your wise direction. | E141: 8 | F141: 12.06451613 | G141: N | H141: N | I141: N | J141: 2 | K141: 1
B142: 138 | C142: =IF(D142="","",MAX($C$5:$C141)+1) -> 138 | D142: I only exhaled at my unfortunate discomfort." | E142: 7 | F142: 11.90322581 | G142: Y | H142: N | I142: N | J142: 2 | K142: 1
B143: 139 | C143: =IF(D143="","",MAX($C$5:$C142)+1) -> 139 | D143: The words came out smoothly enough, but each one grated in his throat. | E143: 13 | F143: 11.83870968 | G143: N | H143: N | I143: N | J143: 2 | K143: 1
B144: 140 | C144: =IF(D144="","",MAX($C$5:$C143)+1) -> 140 | D144: He was unused to such delicacy, and his common accent butchered the finesse. | E144: 13 | F144: 12.06451613 | G144: Y | H144: N | I144: N | J144: 2 | K144: 1
B145: 141 | C145: =IF(D145="","",MAX($C$5:$C144)+1) -> 141 | D145: "Do not oil your words, Kantal; it doesn’t suit you. | E145: 10 | F145: 11.87096774 | G145: N | H145: N | I145: N | J145: 2 | K145: 1
B146: 142 | C146: =IF(D146="","",MAX($C$5:$C145)+1) -> 142 | D146: What's really wrong?" | E146: 3 | F146: 11.51612903 | G146: Y | H146: N | I146: N | J146: 2 | K146: 1
B147: 143 | C147: =IF(D147="","",MAX($C$5:$C146)+1) -> 143 | D147: Kantal felt the snigger at his back; the twitter of a dozen scheming aristocrats. | E147: 14 | F147: 11.83870968 | G147: N | H147: N | I147: N | J147: 2 | K147: 1
B148: 144 | C148: =IF(D148="","",MAX($C$5:$C147)+1) -> 144 | D148: He was the one out of place here, the commoner amongst the elite, but he had earned the right to his status. | E148: 22 | F148: 12.16129032 | G148: N | H148: N | I148: N | J148: 2 | K148: 1
B149: 145 | C149: =IF(D149="","",MAX($C$5:$C148)+1) -> 145 | D149: No, he had more than earned the right. | E149: 8 | F149: 12 | G149: N | H149: N | I149: N | J149: 2 | K149: 1
B150: 146 | C150: =IF(D150="","",MAX($C$5:$C149)+1) -> 146 | D150: The king, his master, put up with him because he was worth putting up with. | E150: 15 | F150: 11.83870968 | G150: N | H150: N | I150: N | J150: 2 | K150: 1
B151: 147 | C151: =IF(D151="","",MAX($C$5:$C150)+1) -> 147 | D151: Kantal looked to the powdered fools and sneered. | E151: 8 | F151: 11.87096774 | G151: N | H151: N | I151: N | J151: 2 | K151: 1
B152: 148 | C152: =IF(D152="","",MAX($C$5:$C151)+1) -> 148 | D152: When he turned back, the king still glared, awaiting the response. | E152: 11 | F152: 11.96774194 | G152: Y | H152: N | I152: N | J152: 2 | K152: 1
B153: 149 | C153: =IF(D153="","",MAX($C$5:$C152)+1) -> 149 | D153: "My arse hurts." | E153: 3 | F153: 11.74193548 | G153: Y | H153: N | I153: N | J153: 2 | K153: 1
B154: 150 | C154: =IF(D154="","",MAX($C$5:$C153)+1) -> 150 | D154: There was just the tiniest elevation in the right side of the king's lip, his blond moustache tilting. | E154: 18 | F154: 11.74193548 | G154: N | H154: N | I154: N | J154: 2 | K154: 1
B155: 151 | C155: =IF(D155="","",MAX($C$5:$C154)+1) -> 151 | D155: The authority didn't leave the man's face, and the twittering fools gasped before whispering against Kantal's vulgar words. | E155: 18 | F155: 12.25806452 | G155: N | H155: N | I155: N | J155: 2 | K155: 1
B156: 152 | C156: =IF(D156="","",MAX($C$5:$C155)+1) -> 152 | D156: They would be calling him a fool, uncouth, and a piece of gutter scum. | E156: 14 | F156: 12.67741935 | G156: N | H156: N | I156: N | J156: 2 | K156: 1
B157: 153 | C157: =IF(D157="","",MAX($C$5:$C156)+1) -> 153 | D157: He wasn't good enough to grace their company, let alone lead their army, and for the most awkward moment, he believed them. | E157: 22 | F157: 13.12903226 | G157: N | H157: N | I157: N | J157: 2 | K157: 1
B158: 154 | C158: =IF(D158="","",MAX($C$5:$C157)+1) -> 154 | D158: The king stared on with stony authority, displeasure rampant on his face. | E158: 12 | F158: 13.41935484 | G158: N | H158: N | I158: N | J158: 2 | K158: 1
B159: 155 | C159: =IF(D159="","",MAX($C$5:$C158)+1) -> 155 | D159: And then his face contorted, ready to strike. | E159: 8 | F159: 13 | G159: N | H159: N | I159: N | J159: 2 | K159: 1
B160: 156 | C160: =IF(D160="","",MAX($C$5:$C159)+1) -> 156 | D160: Kantal gulped. | E160: 2 | F160: 12.35483871 | G160: Y | H160: N | I160: N | J160: 2 | K160: 1
B161: 157 | C161: =IF(D161="","",MAX($C$5:$C160)+1) -> 157 | D161: The royal mouth opened wide, his eyes closed, and the king let out an almighty roar. | E161: 16 | F161: 12.03225806 | G161: N | H161: N | I161: N | J161: 2 | K161: 1
B162: 158 | C162: =IF(D162="","",MAX($C$5:$C161)+1) -> 158 | D162: When he'd finished laughing, he wiped the spittle from his lips and smiled at Kantal. | E162: 15 | F162: 11.77419355 | G162: Y | H162: N | I162: N | J162: 2 | K162: 1
B163: 159 | C163: =IF(D163="","",MAX($C$5:$C162)+1) -> 159 | D163: "I do so love your honesty. | E163: 6 | F163: 11.61290323 | G163: N | H163: N | I163: N | J163: 2 | K163: 1
B164: 160 | C164: =IF(D164="","",MAX($C$5:$C163)+1) -> 160 | D164: My arse hurts too." | E164: 4 | F164: 11.70967742 | G164: Y | H164: N | I164: N | J164: 2 | K164: 1
B165: 161 | C165: =IF(D165="","",MAX($C$5:$C164)+1) -> 161 | D165: Kantal grunted in pleasure, relief spreading through him. | E165: 8 | F165: 11.03225806 | G165: N | H165: N | I165: N | J165: 2 | K165: 1
B166: 162 | C166: =IF(D166="","",MAX($C$5:$C165)+1) -> 162 | D166: The peacocks were muttering disappointedly under their collective breath. | E166: 9 | F166: 10.87096774 | G166: Y | H166: N | I166: N | J166: 2 | K166: 1
B167: 163 | C167: =IF(D167="","",MAX($C$5:$C166)+1) -> 163 | D167: "It's not natural to straddle such beasts." | E167: 7 | F167: 10.93548387 | G167: Y | H167: N | I167: N | J167: 2 | K167: 1
B168: 164 | C168: =IF(D168="","",MAX($C$5:$C167)+1) -> 164 | D168: The king dropped back, and Kantal moved into step. | E168: 9 | F168: 11.06451613 | G168: Y | H168: N | I168: N | J168: 2 | K168: 1
B169: 165 | C169: =IF(D169="","",MAX($C$5:$C168)+1) -> 165 | D169: "Maybe not, but Man has been doing it long enough. | E169: 10 | F169: 10.61290323 | G169: N | H169: N | I169: N | J169: 2 | K169: 1
B170: 166 | C170: =IF(D170="","",MAX($C$5:$C169)+1) -> 166 | D170: And besides, how else would we make this journey?" | E170: 9 | F170: 10.5483871 | G170: Y | H170: N | I170: N | J170: 2 | K170: 1
B171: 167 | C171: =IF(D171="","",MAX($C$5:$C170)+1) -> 167 | D171: That was true enough. | E171: 4 | F171: 10.51612903 | G171: N | H171: N | I171: N | J171: 2 | K171: 1
B172: 168 | C172: =IF(D172="","",MAX($C$5:$C171)+1) -> 168 | D172: Kantal looked about, taking in the surroundings. | E172: 7 | F172: 10.48387097 | G172: N | H172: N | I172: N | J172: 2 | K172: 1
B173: 169 | C173: =IF(D173="","",MAX($C$5:$C172)+1) -> 169 | D173: To his right was a sharp mountain range; stark against the pan flat lands about them. | E173: 16 | F173: 10.77419355 | G173: N | H173: N | I173: N | J173: 2 | K173: 1
B174: 170 | C174: =IF(D174="","",MAX($C$5:$C173)+1) -> 170 | D174: All but ato Friendly the scrubbed brown plains of Mikaeta stretched away, a subtle heat haze rustling the horizon. | E174: 19 | F174: 10.96774194 | G174: N | H174: N | I174: N | J174: 2 | K174: 1
B175: 171 | C175: =IF(D175="","",MAX($C$5:$C174)+1) -> 171 | D175: But ato Friendly, the mountains stood like sentinels, protecting the luscious lands behind. | E175: 13 | F175: 10.96774194 | G175: N | H175: N | I175: N | J175: 2 | K175: 1
B176: 172 | C176: =IF(D176="","",MAX($C$5:$C175)+1) -> 172 | D176: That was Ahan, a glorious gem amongst a world of decay, and it had been snatched away from Delfin's legacy, from Delfinia’s present king, and therefore from Kantal himself. | E176: 29 | F176: 11.58064516 | G176: Y | H176: N | I176: N | J176: 2 | K176: 1
B177: 173 | C177: =IF(D177="","",MAX($C$5:$C176)+1) -> 173 | D177: But you couldn’t beat a mandahoi, so Ahan remained without their grasp. | E177: 12 | F177: 11.87096774 | G177: Y | H177: N | I177: N | J177: 2 | K177: 1
B178: 174 | C178: =IF(D178="","",MAX($C$5:$C177)+1) -> 174 | D178: Yet that was what Kantal was out to change – it was the very reason they were here, making this journey. | E178: 21 | F178: 12.09677419 | G178: N | H178: N | I178: N | J178: 2 | K178: 1
B179: 175 | C179: =IF(D179="","",MAX($C$5:$C178)+1) -> 175 | D179: Five hundred years had passed without a noticeable dent in the barricade that was Ahan’s borders, and Kantal was the latest to try. | E179: 23 | F179: 12.12903226 | G179: N | H179: N | I179: N | J179: 2 | K179: 1
B180: 176 | C180: =IF(D180="","",MAX($C$5:$C179)+1) -> 176 | D180: But he would succeed where all others had failed. | E180: 9 | F180: 12.16129032 | G180: N | H180: N | I180: N | J180: 2 | K180: 1
B181: 177 | C181: =IF(D181="","",MAX($C$5:$C180)+1) -> 177 | D181: He would succeed. | E181: 3 | F181: 11.77419355 | G181: N | H181: N | I181: N | J181: 2 | K181: 1
B182: 178 | C182: =IF(D182="","",MAX($C$5:$C181)+1) -> 178 | D182: The Mandahoi were a plague sent forth by the Mandari invaders who now ruled in Ahan, but he was the antidote and he would overcome the odds. | E182: 27 | F182: 12.38709677 | G182: Y | H182: N | I182: N | J182: 2 | K182: 1
B183: 179 | C183: =IF(D183="","",MAX($C$5:$C182)+1) -> 179 | D183: Or at the very least he was willing to try, and he had his own plans. | E183: 16 | F183: 12.5483871 | G183: N | H183: N | I183: N | J183: 2 | K183: 1
B184: 180 | C184: =IF(D184="","",MAX($C$5:$C183)+1) -> 180 | D184: They were good plans. | E184: 4 | F184: 12.58064516 | G184: Y | H184: N | I184: N | J184: 2 | K184: 1
B185: 181 | C185: =IF(D185="","",MAX($C$5:$C184)+1) -> 181 | D185: And therein lay the dream – to retake Ahan for Delfinia and to drive the Mandari invaders back into the sea. | E185: 21 | F185: 12.67741935 | G185: N | H185: N | I185: N | J185: 2 | K185: 1
B186: 182 | C186: =IF(D186="","",MAX($C$5:$C185)+1) -> 182 | D186: He had dreamt it often enough, and his imagination spun an image for him now. | E186: 15 | F186: 12.58064516 | G186: N | H186: N | I186: N | J186: 2 | K186: 1
B187: 183 | C187: =IF(D187="","",MAX($C$5:$C186)+1) -> 183 | D187: Only his king pulled him back. | E187: 6 | F187: 12.32258065 | G187: Y | H187: N | I187: N | J187: 2 | K187: 1
B188: 184 | C188: =IF(D188="","",MAX($C$5:$C187)+1) -> 184 | D188: "Kantal?" | E188: 1 | F188: 11.64516129 | G188: Y | H188: N | I188: N | J188: 2 | K188: 1
B189: 185 | C189: =IF(D189="","",MAX($C$5:$C188)+1) -> 185 | D189: "Sorry, your Highness.” | E189: 3 | F189: 11.35483871 | G189: N | H189: N | I189: N | J189: 2 | K189: 1
B190: 186 | C190: =IF(D190="","",MAX($C$5:$C189)+1) -> 186 | D190: Kantal had to haul his mind back to their previous topic of discussion – the problems of riding. | E190: 18 | F190: 11.67741935 | G190: N | H190: N | I190: N | J190: 2 | K190: 1
B191: 187 | C191: =IF(D191="","",MAX($C$5:$C190)+1) -> 187 | D191: “I agree, unfortunately. | E191: 3 | F191: 11.70967742 | G191: N | H191: N | I191: N | J191: 2 | K191: 1
B192: 188 | C192: =IF(D192="","",MAX($C$5:$C191)+1) -> 188 | D192: Horses are a necessary discomfort." | E192: 5 | F192: 11.35483871 | G192: Y | H192: N | I192: N | J192: 2 | K192: 1
B193: 189 | C193: =IF(D193="","",MAX($C$5:$C192)+1) -> 189 | D193: The king slapped him on the back and assented with a soft grunt. | E193: 13 | F193: 11.29032258 | G193: N | H193: N | I193: N | J193: 2 | K193: 1
B194: 190 | C194: =IF(D194="","",MAX($C$5:$C193)+1) -> 190 | D194: Kantal could hear the renewed disappointment from the ‘cocks behind, and he sniggered. | E194: 13 | F194: 11.51612903 | G194: N | H194: N | I194: N | J194: 2 | K194: 1
B195: 191 | C195: =IF(D195="","",MAX($C$5:$C194)+1) -> 191 | D195: His master’s next words suggested that the immaturity wasn’t noticed. | E195: 10 | F195: 11.70967742 | G195: Y | H195: N | I195: N | J195: 2 | K195: 1
B196: 192 | C196: =IF(D196="","",MAX($C$5:$C195)+1) -> 192 | D196: "A horse is a fine friend in combat too – let’s not forget that." | E196: 14 | F196: 11.90322581 | G196: Y | H196: N | I196: N | J196: 2 | K196: 1
B197: 193 | C197: =IF(D197="","",MAX($C$5:$C196)+1) -> 193 | D197: An image flashed through Kantal's head, an image of a grey wraith in a whirlwind of steel. | E197: 17 | F197: 12.16129032 | G197: N | H197: N | I197: N | J197: 2 | K197: 1
B198: 194 | C198: =IF(D198="","",MAX($C$5:$C197)+1) -> 194 | D198: That was the untouchable enemy; the plague of the Mandari; the Grey. | E198: =IF(LEN(TRIM(D198))=0,"",LEN(TRIM(D198))-LEN(SUBSTITUTE(D198," ",""))+1) -> 12 | F198: =AVERAGE(INDIRECT("E"&MAX(ROW()-$F$2,4)&":E"&ROW())) -> 12.32258065 | G198: N | H198: N | I198: N | J198: 2 | K198: 1
B199: 195 | C199: =IF(D199="","",MAX($C$5:$C198)+1) -> 195 | D199: Horses were no good there. | E199: 5 | F199: 12.19354839 | G199: Y | H199: N | I199: N | J199: =IF(I198="Y",J198+1,J198) -> 2 | K199: =IF(I198="Y",1,IF(H198="Y",K198+1,K198)) -> 1
B200: 196 | C200: =IF(D200="","",MAX($C$5:$C199)+1) -> 196 | D200: "Not against the Mandahoi, Highness." | E200: 5 | F200: 12.03225806 | G200: N | H200: N | I200: N | J200: 2 | K200: 1
B201: 197 | C201: =IF(D201="","",MAX($C$5:$C200)+1) -> 197 | D201: Because you couldn’t beat a mandahoi. | E201: 6 | F201: 11.93548387 | G201: N | H201: N | I201: N | J201: 2 | K201: 1
B202: 198 | C202: =IF(D202="","",MAX($C$5:$C201)+1) -> 198 | D202: Kantal's tongue slid over his front teeth, and he recognised the sharp relief of the gold replacement. | E202: 17 | F202: 12.35483871 | G202: N | H202: N | I202: N | J202: 2 | K202: 1
... 4298 more rows

Sheet MashUp
B2: Max Row | C2: =MAX(MND_4_1!C5:C10004) -> 2900 | F2: father | G2: Kantal | H2: King | I2: Mandahoi | J2: Sword | K2: Dragon | L2: lord | M2: Mother Bright | N2: Ero | O2: Delfinia | P2: Delfin | Q2: Prince | R2: blade | S2: weapon
F3: milkman | G3: Fred | H3: manager | I3: Frenchman | J3: Banana | K3: Hamster | L3: hooker | M3: the sun | N3: God | O3: Essex | P3: The Queen Mother | Q3: Waitress | R3: fairy-cake | S3: fairy-cake | T3: =COUNTA(U5:U2926)/$C$2 -> 0.9996551724
B4: Row | C4: Rand() | D4: Ref | E4: Sentence | T4: Adjusted
B5: 1 | C5: 0.6103570504 | D5: =RANK(C5,$C$5:$C$2904) -> 1124 | E5: =VLOOKUP($D5,MND_4_1!$C$5:$D$10004,2,FALSE) -> But he had been able to see his attackers, and now he couldn’t. | F5: =SUBSTITUTE(E5,F$2,F$3) -> But he had been able to see his attackers, and now he couldn’t. | G5: =SUBSTITUTE(F5,G$2,G$3) -> But he had been able to see his attackers, and now he couldn’t. | H5: But he had been able to see his attackers, and now he couldn’t. | I5: But he had been able to see his attackers, and now he couldn’t. | J5: But he had been able to see his attackers, and now he couldn’t. | K5: But he had been able to see his attackers, and now he couldn’t. | L5: But he had been able to see his attackers, and now he couldn’t. | M5: But he had been able to see his attackers, and now he couldn’t. | N5: But he had been able to see his attackers, and now he couldn’t. | O5: =SUBSTITUTE(N5,O$2,O$3) -> But he had been able to see his attackers, and now he couldn’t. | P5: But he had been able to see his attackers, and now he couldn’t. | Q5: =SUBSTITUTE(P5,Q$2,Q$3) -> But he had been able to see his attackers, and now he couldn’t. | R5: But he had been able to see his attackers, and now he couldn’t. | S5: =SUBSTITUTE(R5,S$2,S$3) -> But he had been able to see his attackers, and now he couldn’t. | T5: But he had been able to see his attackers, and now he couldn’t. | U5: Y
B6: =MIN(B5+1,$C$2) -> 2 | C6: 0.5028733948 | D6: =RANK(C6,$C$5:$C$2904) -> 1434 | E6: =VLOOKUP($D6,MND_4_1!$C$5:$D$10004,2,FALSE) -> That man truly did hold a grudge, and Kantal allowed himself a chuckle as he popped a morsel of the stolen bread into his mouth. | F6: =SUBSTITUTE(E6,F$2,F$3) -> That man truly did hold a grudge, and Kantal allowed himself a chuckle as he popped a morsel of the stolen bread into his mouth. | G6: That man truly did hold a grudge, and Fred allowed himself a chuckle as he popped a morsel of the stolen bread into his mouth. | H6: That man truly did hold a grudge, and Fred allowed himself a chuckle as he popped a morsel of the stolen bread into his mouth. | I6: That man truly did hold a grudge, and Fred allowed himself a chuckle as he popped a morsel of the stolen bread into his mouth. | J6: That man truly did hold a grudge, and Fred allowed himself a chuckle as he popped a morsel of the stolen bread into his mouth. | K6: That man truly did hold a grudge, and Fred allowed himself a chuckle as he popped a morsel of the stolen bread into his mouth. | L6: That man truly did hold a grudge, and Fred allowed himself a chuckle as he popped a morsel of the stolen bread into his mouth. | M6: That man truly did hold a grudge, and Fred allowed himself a chuckle as he popped a morsel of the stolen bread into his mouth. | N6: That man truly did hold a grudge, and Fred allowed himself a chuckle as he popped a morsel of the stolen bread into his mouth. | O6: =SUBSTITUTE(N6,O$2,O$3) -> That man truly did hold a grudge, and Fred allowed himself a chuckle as he popped a morsel of the stolen bread into his mouth. | P6: That man truly did hold a grudge, and Fred allowed himself a chuckle as he popped a morsel of the stolen bread into his mouth. | Q6: =SUBSTITUTE(P6,Q$2,Q$3) -> That man truly did hold a grudge, and Fred allowed himself a chuckle as he popped a morsel of the stolen bread into his mouth. | R6: That man truly did hold a grudge, and Fred allowed himself a chuckle as he popped a morsel of the stolen bread into his mouth. | S6: =SUBSTITUTE(R6,S$2,S$3) -> That man truly did hold a grudge, and Fred allowed himself a chuckle as he popped a morsel of the stolen bread into his mouth. | T6: Essex was rotting. | U6: Y
B7: =MIN(B6+1,$C$2) -> 3 | C7: 0.8851738486 | D7: 336 | E7: =VLOOKUP($D7,MND_4_1!$C$5:$D$10004,2,FALSE) -> His eyes danced with something sour, and every time he spoke, the tone was edged with deep-rooted discontent. | F7: =SUBSTITUTE(E7,F$2,F$3) -> His eyes danced with something sour, and every time he spoke, the tone was edged with deep-rooted discontent. | G7: His eyes danced with something sour, and every time he spoke, the tone was edged with deep-rooted discontent. | H7: His eyes danced with something sour, and every time he spoke, the tone was edged with deep-rooted discontent. | I7: His eyes danced with something sour, and every time he spoke, the tone was edged with deep-rooted discontent. | J7: His eyes danced with something sour, and every time he spoke, the tone was edged with deep-rooted discontent. | K7: His eyes danced with something sour, and every time he spoke, the tone was edged with deep-rooted discontent. | L7: His eyes danced with something sour, and every time he spoke, the tone was edged with deep-rooted discontent. | M7: His eyes danced with something sour, and every time he spoke, the tone was edged with deep-rooted discontent. | N7: His eyes danced with something sour, and every time he spoke, the tone was edged with deep-rooted discontent. | O7: =SUBSTITUTE(N7,O$2,O$3) -> His eyes danced with something sour, and every time he spoke, the tone was edged with deep-rooted discontent. | P7: His eyes danced with something sour, and every time he spoke, the tone was edged with deep-rooted discontent. | Q7: =SUBSTITUTE(P7,Q$2,Q$3) -> His eyes danced with something sour, and every time he spoke, the tone was edged with deep-rooted discontent. | R7: His eyes danced with something sour, and every time he spoke, the tone was edged with deep-rooted discontent. | S7: =SUBSTITUTE(R7,S$2,S$3) -> His eyes danced with something sour, and every time he spoke, the tone was edged with deep-rooted discontent. | T7: His face was smooth and unblemished; his cheeks rosy red like a virgin's. | U7: Y
B8: 4 | C8: 0.3528475462 | D8: 1869 | E8: =VLOOKUP($D8,MND_4_1!$C$5:$D$10004,2,FALSE) -> He quite literally had no idea how this would pan out. | F8: =SUBSTITUTE(E8,F$2,F$3) -> He quite literally had no idea how this would pan out. | G8: He quite literally had no idea how this would pan out. | H8: He quite literally had no idea how this would pan out. | I8: He quite literally had no idea how this would pan out. | J8: He quite literally had no idea how this would pan out. | K8: He quite literally had no idea how this would pan out. | L8: He quite literally had no idea how this would pan out. | M8: He quite literally had no idea how this would pan out. | N8: He quite literally had no idea how this would pan out. | O8: =SUBSTITUTE(N8,O$2,O$3) -> He quite literally had no idea how this would pan out. | P8: He quite literally had no idea how this would pan out. | Q8: =SUBSTITUTE(P8,Q$2,Q$3) -> He quite literally had no idea how this would pan out. | R8: He quite literally had no idea how this would pan out. | S8: =SUBSTITUTE(R8,S$2,S$3) -> He quite literally had no idea how this would pan out. | T8: Fred wasn't so sure. | U8: Y
B9: 5 | C9: 0.9676417952 | D9: 95 | E9: =VLOOKUP($D9,MND_4_1!$C$5:$D$10004,2,FALSE) -> Death was here; the stuff of nightmares; the eternal rot. | F9: =SUBSTITUTE(E9,F$2,F$3) -> Death was here; the stuff of nightmares; the eternal rot. | G9: Death was here; the stuff of nightmares; the eternal rot. | H9: Death was here; the stuff of nightmares; the eternal rot. | I9: Death was here; the stuff of nightmares; the eternal rot. | J9: Death was here; the stuff of nightmares; the eternal rot. | K9: Death was here; the stuff of nightmares; the eternal rot. | L9: Death was here; the stuff of nightmares; the eternal rot. | M9: Death was here; the stuff of nightmares; the eternal rot. | N9: Death was here; the stuff of nightmares; the eternal rot. | O9: =SUBSTITUTE(N9,O$2,O$3) -> Death was here; the stuff of nightmares; the eternal rot. | P9: Death was here; the stuff of nightmares; the eternal rot. | Q9: =SUBSTITUTE(P9,Q$2,Q$3) -> Death was here; the stuff of nightmares; the eternal rot. | R9: Death was here; the stuff of nightmares; the eternal rot. | S9: =SUBSTITUTE(R9,S$2,S$3) -> Death was here; the stuff of nightmares; the eternal rot. | T9: Death was here; the stuff of nightmares; the eternal rot. | U9: Y
B10: 6 | C10: 0.7373982511 | D10: 766 | E10: =VLOOKUP($D10,MND_4_1!$C$5:$D$10004,2,FALSE) -> "What's the matter, little Jossie? | F10: =SUBSTITUTE(E10,F$2,F$3) -> "What's the matter, little Jossie? | G10: "What's the matter, little Jossie? | H10: "What's the matter, little Jossie? | I10: "What's the matter, little Jossie? | J10: "What's the matter, little Jossie? | K10: "What's the matter, little Jossie? | L10: "What's the matter, little Jossie? | M10: "What's the matter, little Jossie? | N10: "What's the matter, little Jossie? | O10: =SUBSTITUTE(N10,O$2,O$3) -> "What's the matter, little Jossie? | P10: "What's the matter, little Jossie? | Q10: =SUBSTITUTE(P10,Q$2,Q$3) -> "What's the matter, little Jossie? | R10: "What's the matter, little Jossie? | S10: =SUBSTITUTE(R10,S$2,S$3) -> "What's the matter, little Jossie? | T10: Something held him back. | U10: Y
B11: 7 | C11: 0.07326476843 | D11: 2698 | E11: =VLOOKUP($D11,MND_4_1!$C$5:$D$10004,2,FALSE) -> Display some confidence, damn it! | F11: =SUBSTITUTE(E11,F$2,F$3) -> Display some confidence, damn it! | G11: Display some confidence, damn it! | H11: Display some confidence, damn it! | I11: Display some confidence, damn it! | J11: Display some confidence, damn it! | K11: Display some confidence, damn it! | L11: Display some confidence, damn it! | M11: Display some confidence, damn it! | N11: Display some confidence, damn it! | O11: =SUBSTITUTE(N11,O$2,O$3) -> Display some confidence, damn it! | P11: Display some confidence, damn it! | Q11: =SUBSTITUTE(P11,Q$2,Q$3) -> Display some confidence, damn it! | R11: Display some confidence, damn it! | S11: =SUBSTITUTE(R11,S$2,S$3) -> Display some confidence, damn it! | T11: Hamsters are just stories." | U11: Y
B12: 8 | C12: 0.9309334802 | D12: 217 | E12: =VLOOKUP($D12,MND_4_1!$C$5:$D$10004,2,FALSE) -> After all; you couldn’t beat a Mandahoi. | F12: =SUBSTITUTE(E12,F$2,F$3) -> After all; you couldn’t beat a Mandahoi. | G12: After all; you couldn’t beat a Mandahoi. | H12: After all; you couldn’t beat a Mandahoi. | I12: After all; you couldn’t beat a Frenchman. | J12: After all; you couldn’t beat a Frenchman. | K12: After all; you couldn’t beat a Frenchman. | L12: After all; you couldn’t beat a Frenchman. | M12: After all; you couldn’t beat a Frenchman. | N12: After all; you couldn’t beat a Frenchman. | O12: =SUBSTITUTE(N12,O$2,O$3) -> After all; you couldn’t beat a Frenchman. | P12: After all; you couldn’t beat a Frenchman. | Q12: =SUBSTITUTE(P12,Q$2,Q$3) -> After all; you couldn’t beat a Frenchman. | R12: After all; you couldn’t beat a Frenchman. | S12: =SUBSTITUTE(R12,S$2,S$3) -> After all; you couldn’t beat a Frenchman. | T12: After all; you couldn’t beat a Frenchman. | U12: Y
B13: 9 | C13: 0.763439727 | D13: 684 | E13: =VLOOKUP($D13,MND_4_1!$C$5:$D$10004,2,FALSE) -> That's all he ever does." | F13: =SUBSTITUTE(E13,F$2,F$3) -> That's all he ever does." | G13: That's all he ever does." | H13: That's all he ever does." | I13: That's all he ever does." | J13: That's all he ever does." | K13: That's all he ever does." | L13: That's all he ever does." | M13: That's all he ever does." | N13: That's all he ever does." | O13: =SUBSTITUTE(N13,O$2,O$3) -> That's all he ever does." | P13: That's all he ever does." | Q13: =SUBSTITUTE(P13,Q$2,Q$3) -> That's all he ever does." | R13: That's all he ever does." | S13: =SUBSTITUTE(R13,S$2,S$3) -> That's all he ever does." | T13: “Wa-urr ’gainsht oo?” | U13: Y
B14: 10 | C14: 0.5489377525 | D14: 1284 | E14: =VLOOKUP($D14,MND_4_1!$C$5:$D$10004,2,FALSE) -> He was the son; the heir. | F14: =SUBSTITUTE(E14,F$2,F$3) -> He was the son; the heir. | G14: He was the son; the heir. | H14: He was the son; the heir. | I14: He was the son; the heir. | J14: He was the son; the heir. | K14: He was the son; the heir. | L14: He was the son; the heir. | M14: He was the son; the heir. | N14: He was the son; the heir. | O14: =SUBSTITUTE(N14,O$2,O$3) -> He was the son; the heir. | P14: He was the son; the heir. | Q14: =SUBSTITUTE(P14,Q$2,Q$3) -> He was the son; the heir. | R14: He was the son; the heir. | S14: =SUBSTITUTE(R14,S$2,S$3) -> He was the son; the heir. | T14: His hair was still dark and thick, and the fairness of his skin suggested he was little older than Fred. | U14: Y
B15: 11 | C15: 0.7676008451 | D15: 664 | E15: =VLOOKUP($D15,MND_4_1!$C$5:$D$10004,2,FALSE) -> He was Prince of Delfinia, and he was looking upon the scum. | F15: =SUBSTITUTE(E15,F$2,F$3) -> He was Prince of Delfinia, and he was looking upon the scum. | G15: He was Prince of Delfinia, and he was looking upon the scum. | H15: He was Prince of Delfinia, and he was looking upon the scum. | I15: He was Prince of Delfinia, and he was looking upon the scum. | J15: He was Prince of Delfinia, and he was looking upon the scum. | K15: He was Prince of Delfinia, and he was looking upon the scum. | L15: He was Prince of Delfinia, and he was looking upon the scum. | M15: He was Prince of Delfinia, and he was looking upon the scum. | N15: He was Prince of Delfinia, and he was looking upon the scum. | O15: =SUBSTITUTE(N15,O$2,O$3) -> He was Prince of Essex, and he was looking upon the scum. | P15: He was Prince of Essex, and he was looking upon the scum. | Q15: =SUBSTITUTE(P15,Q$2,Q$3) -> He was Waitress of Essex, and he was looking upon the scum. | R15: He was Waitress of Essex, and he was looking upon the scum. | S15: =SUBSTITUTE(R15,S$2,S$3) -> He was Waitress of Essex, and he was looking upon the scum. | T15: That was amusing in a way, that the entire span of social class was represented in this small space. | U15: Y
B16: 12 | C16: 0.5748188547 | D16: 1219 | E16: =VLOOKUP($D16,MND_4_1!$C$5:$D$10004,2,FALSE) -> He may have even loved his father these last few days; but he still hated him certainly. | F16: =SUBSTITUTE(E16,F$2,F$3) -> He may have even loved his milkman these last few days; but he still hated him certainly. | G16: He may have even loved his milkman these last few days; but he still hated him certainly. | H16: He may have even loved his milkman these last few days; but he still hated him certainly. | I16: He may have even loved his milkman these last few days; but he still hated him certainly. | J16: He may have even loved his milkman these last few days; but he still hated him certainly. | K16: He may have even loved his milkman these last few days; but he still hated him certainly. | L16: He may have even loved his milkman these last few days; but he still hated him certainly. | M16: He may have even loved his milkman these last few days; but he still hated him certainly. | N16: He may have even loved his milkman these last few days; but he still hated him certainly. | O16: =SUBSTITUTE(N16,O$2,O$3) -> He may have even loved his milkman these last few days; but he still hated him certainly. | P16: He may have even loved his milkman these last few days; but he still hated him certainly. | Q16: =SUBSTITUTE(P16,Q$2,Q$3) -> He may have even loved his milkman these last few days; but he still hated him certainly. | R16: He may have even loved his milkman these last few days; but he still hated him certainly. | S16: =SUBSTITUTE(R16,S$2,S$3) -> He may have even loved his milkman these last few days; but he still hated him certainly. | T16: All those times he had repressed, ignored and filed away for the preservation of his continued self. | U16: Y
B17: 13 | C17: 0.7682047996 | D17: 663 | E17: =VLOOKUP($D17,MND_4_1!$C$5:$D$10004,2,FALSE) -> He was everything Jossie was not, and his satisfaction with this fact was clear in his smile. | F17: =SUBSTITUTE(E17,F$2,F$3) -> He was everything Jossie was not, and his satisfaction with this fact was clear in his smile. | G17: He was everything Jossie was not, and his satisfaction with this fact was clear in his smile. | H17: He was everything Jossie was not, and his satisfaction with this fact was clear in his smile. | I17: He was everything Jossie was not, and his satisfaction with this fact was clear in his smile. | J17: He was everything Jossie was not, and his satisfaction with this fact was clear in his smile. | K17: He was everything Jossie was not, and his satisfaction with this fact was clear in his smile. | L17: He was everything Jossie was not, and his satisfaction with this fact was clear in his smile. | M17: He was everything Jossie was not, and his satisfaction with this fact was clear in his smile. | N17: He was everything Jossie was not, and his satisfaction with this fact was clear in his smile. | O17: =SUBSTITUTE(N17,O$2,O$3) -> He was everything Jossie was not, and his satisfaction with this fact was clear in his smile. | P17: He was everything Jossie was not, and his satisfaction with this fact was clear in his smile. | Q17: =SUBSTITUTE(P17,Q$2,Q$3) -> He was everything Jossie was not, and his satisfaction with this fact was clear in his smile. | R17: He was everything Jossie was not, and his satisfaction with this fact was clear in his smile. | S17: =SUBSTITUTE(R17,S$2,S$3) -> He was everything Jossie was not, and his satisfaction with this fact was clear in his smile. | T17: He was Waitress of Essex, and he was looking upon the scum. | U17: Y
B18: 14 | C18: 0.6922975527 | D18: 883 | E18: =VLOOKUP($D18,MND_4_1!$C$5:$D$10004,2,FALSE) -> He was her guardian, and he walked to the smithy with a tangible purpose flourishing in his mind. | F18: =SUBSTITUTE(E18,F$2,F$3) -> He was her guardian, and he walked to the smithy with a tangible purpose flourishing in his mind. | G18: He was her guardian, and he walked to the smithy with a tangible purpose flourishing in his mind. | H18: He was her guardian, and he walked to the smithy with a tangible purpose flourishing in his mind. | I18: He was her guardian, and he walked to the smithy with a tangible purpose flourishing in his mind. | J18: He was her guardian, and he walked to the smithy with a tangible purpose flourishing in his mind. | K18: He was her guardian, and he walked to the smithy with a tangible purpose flourishing in his mind. | L18: He was her guardian, and he walked to the smithy with a tangible purpose flourishing in his mind. | M18: He was her guardian, and he walked to the smithy with a tangible purpose flourishing in his mind. | N18: He was her guardian, and he walked to the smithy with a tangible purpose flourishing in his mind. | O18: =SUBSTITUTE(N18,O$2,O$3) -> He was her guardian, and he walked to the smithy with a tangible purpose flourishing in his mind. | P18: He was her guardian, and he walked to the smithy with a tangible purpose flourishing in his mind. | Q18: =SUBSTITUTE(P18,Q$2,Q$3) -> He was her guardian, and he walked to the smithy with a tangible purpose flourishing in his mind. | R18: He was her guardian, and he walked to the smithy with a tangible purpose flourishing in his mind. | S18: =SUBSTITUTE(R18,S$2,S$3) -> He was her guardian, and he walked to the smithy with a tangible purpose flourishing in his mind. | T18: It was an attack on The Queen Mother, and in that it was an attack on Fred. | U18: Y
B19: 15 | C19: 0.2897944744 | D19: 2057 | E19: =VLOOKUP($D19,MND_4_1!$C$5:$D$10004,2,FALSE) -> And he smiled. | F19: =SUBSTITUTE(E19,F$2,F$3) -> And he smiled. | G19: And he smiled. | H19: And he smiled. | I19: And he smiled. | J19: And he smiled. | K19: And he smiled. | L19: And he smiled. | M19: And he smiled. | N19: And he smiled. | O19: =SUBSTITUTE(N19,O$2,O$3) -> And he smiled. | P19: And he smiled. | Q19: =SUBSTITUTE(P19,Q$2,Q$3) -> And he smiled. | R19: And he smiled. | S19: =SUBSTITUTE(R19,S$2,S$3) -> And he smiled. | T19: He turned the fairy-cake over, marvelling at the incredible patterns along its length. | U19: Y
B20: 16 | C20: 0.06334411849 | D20: 2727 | E20: =VLOOKUP($D20,MND_4_1!$C$5:$D$10004,2,FALSE) -> There was just one last stumbling block, and he knew his master would not miss it. | F20: =SUBSTITUTE(E20,F$2,F$3) -> There was just one last stumbling block, and he knew his master would not miss it. | G20: There was just one last stumbling block, and he knew his master would not miss it. | H20: There was just one last stumbling block, and he knew his master would not miss it. | I20: There was just one last stumbling block, and he knew his master would not miss it. | J20: There was just one last stumbling block, and he knew his master would not miss it. | K20: There was just one last stumbling block, and he knew his master would not miss it. | L20: There was just one last stumbling block, and he knew his master would not miss it. | M20: There was just one last stumbling block, and he knew his master would not miss it. | N20: There was just one last stumbling block, and he knew his master would not miss it. | O20: =SUBSTITUTE(N20,O$2,O$3) -> There was just one last stumbling block, and he knew his master would not miss it. | P20: There was just one last stumbling block, and he knew his master would not miss it. | Q20: =SUBSTITUTE(P20,Q$2,Q$3) -> There was just one last stumbling block, and he knew his master would not miss it. | R20: There was just one last stumbling block, and he knew his master would not miss it. | S20: =SUBSTITUTE(R20,S$2,S$3) -> There was just one last stumbling block, and he knew his master would not miss it. | T20: Fred could see the shrewd ruler cooling, warming to this opportunity. | U20: Y
B21: 17 | C21: 0.7202167801 | D21: 807 | E21: =VLOOKUP($D21,MND_4_1!$C$5:$D$10004,2,FALSE) -> The clerk looked at him over those spectacles, and offered the usual scorn. | F21: =SUBSTITUTE(E21,F$2,F$3) -> The clerk looked at him over those spectacles, and offered the usual scorn. | G21: The clerk looked at him over those spectacles, and offered the usual scorn. | H21: The clerk looked at him over those spectacles, and offered the usual scorn. | I21: The clerk looked at him over those spectacles, and offered the usual scorn. | J21: The clerk looked at him over those spectacles, and offered the usual scorn. | K21: The clerk looked at him over those spectacles, and offered the usual scorn. | L21: The clerk looked at him over those spectacles, and offered the usual scorn. | M21: The clerk looked at him over those spectacles, and offered the usual scorn. | N21: The clerk looked at him over those spectacles, and offered the usual scorn. | O21: =SUBSTITUTE(N21,O$2,O$3) -> The clerk looked at him over those spectacles, and offered the usual scorn. | P21: The clerk looked at him over those spectacles, and offered the usual scorn. | Q21: =SUBSTITUTE(P21,Q$2,Q$3) -> The clerk looked at him over those spectacles, and offered the usual scorn. | R21: The clerk looked at him over those spectacles, and offered the usual scorn. | S21: =SUBSTITUTE(R21,S$2,S$3) -> The clerk looked at him over those spectacles, and offered the usual scorn. | T21: The first page may even be his favourite. | U21: Y
B22: 18 | C22: 0.7206525482 | D22: 806 | E22: =VLOOKUP($D22,MND_4_1!$C$5:$D$10004,2,FALSE) -> He only drew his eyes up when he reached the front desk. | F22: =SUBSTITUTE(E22,F$2,F$3) -> He only drew his eyes up when he reached the front desk. | G22: He only drew his eyes up when he reached the front desk. | H22: He only drew his eyes up when he reached the front desk. | I22: He only drew his eyes up when he reached the front desk. | J22: He only drew his eyes up when he reached the front desk. | K22: He only drew his eyes up when he reached the front desk. | L22: He only drew his eyes up when he reached the front desk. | M22: He only drew his eyes up when he reached the front desk. | N22: He only drew his eyes up when he reached the front desk. | O22: =SUBSTITUTE(N22,O$2,O$3) -> He only drew his eyes up when he reached the front desk. | P22: He only drew his eyes up when he reached the front desk. | Q22: =SUBSTITUTE(P22,Q$2,Q$3) -> He only drew his eyes up when he reached the front desk. | R22: He only drew his eyes up when he reached the front desk. | S22: =SUBSTITUTE(R22,S$2,S$3) -> He only drew his eyes up when he reached the front desk. | T22: He didn’t need to see the page, and his lips moved with a practised rhythm. | U22: Y
B23: 19 | C23: 0.2897474648 | D23: 2058 | E23: =VLOOKUP($D23,MND_4_1!$C$5:$D$10004,2,FALSE) -> "Kantal – I fear you may have fallen in love." | F23: =SUBSTITUTE(E23,F$2,F$3) -> "Kantal – I fear you may have fallen in love." | G23: "Fred – I fear you may have fallen in love." | H23: "Fred – I fear you may have fallen in love." | I23: "Fred – I fear you may have fallen in love." | J23: "Fred – I fear you may have fallen in love." | K23: "Fred – I fear you may have fallen in love." | L23: "Fred – I fear you may have fallen in love." | M23: "Fred – I fear you may have fallen in love." | N23: "Fred – I fear you may have fallen in love." | O23: =SUBSTITUTE(N23,O$2,O$3) -> "Fred – I fear you may have fallen in love." | P23: "Fred – I fear you may have fallen in love." | Q23: =SUBSTITUTE(P23,Q$2,Q$3) -> "Fred – I fear you may have fallen in love." | R23: "Fred – I fear you may have fallen in love." | S23: =SUBSTITUTE(R23,S$2,S$3) -> "Fred – I fear you may have fallen in love." | T23: The sabre he had helped forge was a narrow fairy-cake, single-edged, and as such, the heavenly patterns from the Mandari techniques were only discernible on closer inspection. | U23: Y
B24: 20 | C24: 0.6715827135 | D24: 945 | E24: =VLOOKUP($D24,MND_4_1!$C$5:$D$10004,2,FALSE) -> They had come to blows twice: the first time, when Kantal was thirteen, he had been humbled into submission by the sheer weight of his father. | F24: =SUBSTITUTE(E24,F$2,F$3) -> They had come to blows twice: the first time, when Kantal was thirteen, he had been humbled into submission by the sheer weight of his milkman. | G24: They had come to blows twice: the first time, when Fred was thirteen, he had been humbled into submission by the sheer weight of his milkman. | H24: They had come to blows twice: the first time, when Fred was thirteen, he had been humbled into submission by the sheer weight of his milkman. | I24: They had come to blows twice: the first time, when Fred was thirteen, he had been humbled into submission by the sheer weight of his milkman. | J24: They had come to blows twice: the first time, when Fred was thirteen, he had been humbled into submission by the sheer weight of his milkman. | K24: They had come to blows twice: the first time, when Fred was thirteen, he had been humbled into submission by the sheer weight of his milkman. | L24: They had come to blows twice: the first time, when Fred was thirteen, he had been humbled into submission by the sheer weight of his milkman. | M24: They had come to blows twice: the first time, when Fred was thirteen, he had been humbled into submission by the sheer weight of his milkman. | N24: They had come to blows twice: the first time, when Fred was thirteen, he had been humbled into submission by the sheer weight of his milkman. | O24: =SUBSTITUTE(N24,O$2,O$3) -> They had come to blows twice: the first time, when Fred was thirteen, he had been humbled into submission by the sheer weight of his milkman. | P24: They had come to blows twice: the first time, when Fred was thirteen, he had been humbled into submission by the sheer weight of his milkman. | Q24: =SUBSTITUTE(P24,Q$2,Q$3) -> They had come to blows twice: the first time, when Fred was thirteen, he had been humbled into submission by the sheer weight of his milkman. | R24: They had come to blows twice: the first time, when Fred was thirteen, he had been humbled into submission by the sheer weight of his milkman. | S24: =SUBSTITUTE(R24,S$2,S$3) -> They had come to blows twice: the first time, when Fred was thirteen, he had been humbled into submission by the sheer weight of his milkman. | T24: He could swing a right-hook with the best of them. | U24: Y
B25: 21 | C25: 0.05220460264 | D25: 2755 | E25: =VLOOKUP($D25,MND_4_1!$C$5:$D$10004,2,FALSE) -> He had the agreements in his hand, the fruits of many years of Kantal's scheming, and he was about to cast them aside. | F25: =SUBSTITUTE(E25,F$2,F$3) -> He had the agreements in his hand, the fruits of many years of Kantal's scheming, and he was about to cast them aside. | G25: He had the agreements in his hand, the fruits of many years of Fred's scheming, and he was about to cast them aside. | H25: He had the agreements in his hand, the fruits of many years of Fred's scheming, and he was about to cast them aside. | I25: He had the agreements in his hand, the fruits of many years of Fred's scheming, and he was about to cast them aside. | J25: He had the agreements in his hand, the fruits of many years of Fred's scheming, and he was about to cast them aside. | K25: He had the agreements in his hand, the fruits of many years of Fred's scheming, and he was about to cast them aside. | L25: He had the agreements in his hand, the fruits of many years of Fred's scheming, and he was about to cast them aside. | M25: He had the agreements in his hand, the fruits of many years of Fred's scheming, and he was about to cast them aside. | N25: He had the agreements in his hand, the fruits of many years of Fred's scheming, and he was about to cast them aside. | O25: =SUBSTITUTE(N25,O$2,O$3) -> He had the agreements in his hand, the fruits of many years of Fred's scheming, and he was about to cast them aside. | P25: He had the agreements in his hand, the fruits of many years of Fred's scheming, and he was about to cast them aside. | Q25: =SUBSTITUTE(P25,Q$2,Q$3) -> He had the agreements in his hand, the fruits of many years of Fred's scheming, and he was about to cast them aside. | R25: He had the agreements in his hand, the fruits of many years of Fred's scheming, and he was about to cast them aside. | S25: =SUBSTITUTE(R25,S$2,S$3) -> He had the agreements in his hand, the fruits of many years of Fred's scheming, and he was about to cast them aside. | T25: A whim!" | U25: Y
B26: 22 | C26: 0.4951713937 | D26: 1459 | E26: =VLOOKUP($D26,MND_4_1!$C$5:$D$10004,2,FALSE) -> Urgency rose in him, and with it came that consuming and possessive anger. | F26: =SUBSTITUTE(E26,F$2,F$3) -> Urgency rose in him, and with it came that consuming and possessive anger. | G26: Urgency rose in him, and with it came that consuming and possessive anger. | H26: Urgency rose in him, and with it came that consuming and possessive anger. | I26: Urgency rose in him, and with it came that consuming and possessive anger. | J26: Urgency rose in him, and with it came that consuming and possessive anger. | K26: Urgency rose in him, and with it came that consuming and possessive anger. | L26: Urgency rose in him, and with it came that consuming and possessive anger. | M26: Urgency rose in him, and with it came that consuming and possessive anger. | N26: Urgency rose in him, and with it came that consuming and possessive anger. | O26: =SUBSTITUTE(N26,O$2,O$3) -> Urgency rose in him, and with it came that consuming and possessive anger. | P26: Urgency rose in him, and with it came that consuming and possessive anger. | Q26: =SUBSTITUTE(P26,Q$2,Q$3) -> Urgency rose in him, and with it came that consuming and possessive anger. | R26: Urgency rose in him, and with it came that consuming and possessive anger. | S26: =SUBSTITUTE(R26,S$2,S$3) -> Urgency rose in him, and with it came that consuming and possessive anger. | T26: Fred remembered himself and dropped to a knee. | U26: Y
B27: 23 | C27: 0.8474200752 | D27: 435 | E27: =VLOOKUP($D27,MND_4_1!$C$5:$D$10004,2,FALSE) -> Instead he thumped it down with stony authority, noise crashing through the room, shredding Kantal's residual nerve. | F27: =SUBSTITUTE(E27,F$2,F$3) -> Instead he thumped it down with stony authority, noise crashing through the room, shredding Kantal's residual nerve. | G27: Instead he thumped it down with stony authority, noise crashing through the room, shredding Fred's residual nerve. | H27: Instead he thumped it down with stony authority, noise crashing through the room, shredding Fred's residual nerve. | I27: Instead he thumped it down with stony authority, noise crashing through the room, shredding Fred's residual nerve. | J27: Instead he thumped it down with stony authority, noise crashing through the room, shredding Fred's residual nerve. | K27: Instead he thumped it down with stony authority, noise crashing through the room, shredding Fred's residual nerve. | L27: Instead he thumped it down with stony authority, noise crashing through the room, shredding Fred's residual nerve. | M27: Instead he thumped it down with stony authority, noise crashing through the room, shredding Fred's residual nerve. | N27: Instead he thumped it down with stony authority, noise crashing through the room, shredding Fred's residual nerve. | O27: =SUBSTITUTE(N27,O$2,O$3) -> Instead he thumped it down with stony authority, noise crashing through the room, shredding Fred's residual nerve. | P27: Instead he thumped it down with stony authority, noise crashing through the room, shredding Fred's residual nerve. | Q27: =SUBSTITUTE(P27,Q$2,Q$3) -> Instead he thumped it down with stony authority, noise crashing through the room, shredding Fred's residual nerve. | R27: Instead he thumped it down with stony authority, noise crashing through the room, shredding Fred's residual nerve. | S27: =SUBSTITUTE(R27,S$2,S$3) -> Instead he thumped it down with stony authority, noise crashing through the room, shredding Fred's residual nerve. | T27: Instead he thumped it down with stony authority, noise crashing through the room, shredding Fred's residual nerve. | U27: Y
B28: 24 | C28: 0.3370580794 | D28: 1910 | E28: =VLOOKUP($D28,MND_4_1!$C$5:$D$10004,2,FALSE) -> He wore that same sultry face, but this time it was not baked with mischief. | F28: =SUBSTITUTE(E28,F$2,F$3) -> He wore that same sultry face, but this time it was not baked with mischief. | G28: He wore that same sultry face, but this time it was not baked with mischief. | H28: He wore that same sultry face, but this time it was not baked with mischief. | I28: He wore that same sultry face, but this time it was not baked with mischief. | J28: He wore that same sultry face, but this time it was not baked with mischief. | K28: He wore that same sultry face, but this time it was not baked with mischief. | L28: He wore that same sultry face, but this time it was not baked with mischief. | M28: He wore that same sultry face, but this time it was not baked with mischief. | N28: He wore that same sultry face, but this time it was not baked with mischief. | O28: =SUBSTITUTE(N28,O$2,O$3) -> He wore that same sultry face, but this time it was not baked with mischief. | P28: He wore that same sultry face, but this time it was not baked with mischief. | Q28: =SUBSTITUTE(P28,Q$2,Q$3) -> He wore that same sultry face, but this time it was not baked with mischief. | R28: He wore that same sultry face, but this time it was not baked with mischief. | S28: =SUBSTITUTE(R28,S$2,S$3) -> He wore that same sultry face, but this time it was not baked with mischief. | T28: Fred's mother hung at his milkman's left, pleading for mercy – which was strangely satisfying. | U28: Y
B29: 25 | C29: 0.8563004438 | D29: 409 | E29: =VLOOKUP($D29,MND_4_1!$C$5:$D$10004,2,FALSE) -> The Emperor was about to speak, but he was stalled by the Gorfinian King. | F29: =SUBSTITUTE(E29,F$2,F$3) -> The Emperor was about to speak, but he was stalled by the Gorfinian King. | G29: The Emperor was about to speak, but he was stalled by the Gorfinian King. | H29: The Emperor was about to speak, but he was stalled by the Gorfinian manager. | I29: The Emperor was about to speak, but he was stalled by the Gorfinian manager. | J29: The Emperor was about to speak, but he was stalled by the Gorfinian manager. | K29: The Emperor was about to speak, but he was stalled by the Gorfinian manager. | L29: The Emperor was about to speak, but he was stalled by the Gorfinian manager. | M29: The Emperor was about to speak, but he was stalled by the Gorfinian manager. | N29: The Emperor was about to speak, but he was stalled by the Gorfinian manager. | O29: =SUBSTITUTE(N29,O$2,O$3) -> The Emperor was about to speak, but he was stalled by the Gorfinian manager. | P29: The Emperor was about to speak, but he was stalled by the Gorfinian manager. | Q29: =SUBSTITUTE(P29,Q$2,Q$3) -> The Emperor was about to speak, but he was stalled by the Gorfinian manager. | R29: The Emperor was about to speak, but he was stalled by the Gorfinian manager. | S29: =SUBSTITUTE(R29,S$2,S$3) -> The Emperor was about to speak, but he was stalled by the Gorfinian manager. | T29: The Emperor was about to speak, but he was stalled by the Gorfinian manager. | U29: Y
B30: 26 | C30: 0.8256487638 | D30: 496 | E30: =VLOOKUP($D30,MND_4_1!$C$5:$D$10004,2,FALSE) -> It was so sad. | F30: =SUBSTITUTE(E30,F$2,F$3) -> It was so sad. | G30: It was so sad. | H30: It was so sad. | I30: It was so sad. | J30: It was so sad. | K30: It was so sad. | L30: It was so sad. | M30: It was so sad. | N30: It was so sad. | O30: =SUBSTITUTE(N30,O$2,O$3) -> It was so sad. | P30: It was so sad. | Q30: =SUBSTITUTE(P30,Q$2,Q$3) -> It was so sad. | R30: It was so sad. | S30: =SUBSTITUTE(R30,S$2,S$3) -> It was so sad. | T30: And this was the hub of Essex. | U30: Y
B31: 27 | C31: 0.7330850865 | D31: 777 | E31: =VLOOKUP($D31,MND_4_1!$C$5:$D$10004,2,FALSE) -> A tear escaped him, and that was a first. | F31: =SUBSTITUTE(E31,F$2,F$3) -> A tear escaped him, and that was a first. | G31: A tear escaped him, and that was a first. | H31: A tear escaped him, and that was a first. | I31: A tear escaped him, and that was a first. | J31: A tear escaped him, and that was a first. | K31: A tear escaped him, and that was a first. | L31: A tear escaped him, and that was a first. | M31: A tear escaped him, and that was a first. | N31: A tear escaped him, and that was a first. | O31: =SUBSTITUTE(N31,O$2,O$3) -> A tear escaped him, and that was a first. | P31: A tear escaped him, and that was a first. | Q31: =SUBSTITUTE(P31,Q$2,Q$3) -> A tear escaped him, and that was a first. | R31: A tear escaped him, and that was a first. | S31: =SUBSTITUTE(R31,S$2,S$3) -> A tear escaped him, and that was a first. | T31: He exhaled audibly before he spoke. | U31: Y
B32: 28 | C32: 0.4525121513 | D32: 1557 | E32: =VLOOKUP($D32,MND_4_1!$C$5:$D$10004,2,FALSE) -> And then he went quiet. | F32: =SUBSTITUTE(E32,F$2,F$3) -> And then he went quiet. | G32: And then he went quiet. | H32: And then he went quiet. | I32: And then he went quiet. | J32: And then he went quiet. | K32: And then he went quiet. | L32: And then he went quiet. | M32: And then he went quiet. | N32: And then he went quiet. | O32: =SUBSTITUTE(N32,O$2,O$3) -> And then he went quiet. | P32: And then he went quiet. | Q32: =SUBSTITUTE(P32,Q$2,Q$3) -> And then he went quiet. | R32: And then he went quiet. | S32: =SUBSTITUTE(R32,S$2,S$3) -> And then he went quiet. | T32: He wouldn't succumb. | U32: Y
B33: 29 | C33: 0.8382672792 | D33: 458 | E33: =VLOOKUP($D33,MND_4_1!$C$5:$D$10004,2,FALSE) -> He was often away with the army, lugging that great ceramic wagon with him, but he'd always return – and the wealth flowed plenty. | F33: =SUBSTITUTE(E33,F$2,F$3) -> He was often away with the army, lugging that great ceramic wagon with him, but he'd always return – and the wealth flowed plenty. | G33: He was often away with the army, lugging that great ceramic wagon with him, but he'd always return – and the wealth flowed plenty. | H33: He was often away with the army, lugging that great ceramic wagon with him, but he'd always return – and the wealth flowed plenty. | I33: He was often away with the army, lugging that great ceramic wagon with him, but he'd always return – and the wealth flowed plenty. | J33: He was often away with the army, lugging that great ceramic wagon with him, but he'd always return – and the wealth flowed plenty. | K33: He was often away with the army, lugging that great ceramic wagon with him, but he'd always return – and the wealth flowed plenty. | L33: He was often away with the army, lugging that great ceramic wagon with him, but he'd always return – and the wealth flowed plenty. | M33: He was often away with the army, lugging that great ceramic wagon with him, but he'd always return – and the wealth flowed plenty. | N33: He was often away with the army, lugging that great ceramic wagon with him, but he'd always return – and the wealth flowed plenty. | O33: =SUBSTITUTE(N33,O$2,O$3) -> He was often away with the army, lugging that great ceramic wagon with him, but he'd always return – and the wealth flowed plenty. | P33: He was often away with the army, lugging that great ceramic wagon with him, but he'd always return – and the wealth flowed plenty. | Q33: =SUBSTITUTE(P33,Q$2,Q$3) -> He was often away with the army, lugging that great ceramic wagon with him, but he'd always return – and the wealth flowed plenty. | R33: He was often away with the army, lugging that great ceramic wagon with him, but he'd always return – and the wealth flowed plenty. | S33: =SUBSTITUTE(R33,S$2,S$3) -> He was often away with the army, lugging that great ceramic wagon with him, but he'd always return – and the wealth flowed plenty. | T33: He was often away with the army, lugging that great ceramic wagon with him, but he'd always return – and the wealth flowed plenty. | U33: Y
B34: 30 | C34: 0.0562961307 | D34: 2744 | E34: =VLOOKUP($D34,MND_4_1!$C$5:$D$10004,2,FALSE) -> "On the contrary, Highness. | F34: =SUBSTITUTE(E34,F$2,F$3) -> "On the contrary, Highness. | G34: "On the contrary, Highness. | H34: "On the contrary, Highness. | I34: "On the contrary, Highness. | J34: "On the contrary, Highness. | K34: "On the contrary, Highness. | L34: "On the contrary, Highness. | M34: "On the contrary, Highness. | N34: "On the contrary, Highness. | O34: =SUBSTITUTE(N34,O$2,O$3) -> "On the contrary, Highness. | P34: "On the contrary, Highness. | Q34: =SUBSTITUTE(P34,Q$2,Q$3) -> "On the contrary, Highness. | R34: "On the contrary, Highness. | S34: =SUBSTITUTE(R34,S$2,S$3) -> "On the contrary, Highness. | T34: He sensed the shock in the peacocks, and couldn't help a little smile. | U34: Y
B35: 31 | C35: 0.3484155616 | D35: 1883 | E35: =VLOOKUP($D35,MND_4_1!$C$5:$D$10004,2,FALSE) -> Not since the days of the violation. | F35: =SUBSTITUTE(E35,F$2,F$3) -> Not since the days of the violation. | G35: Not since the days of the violation. | H35: Not since the days of the violation. | I35: Not since the days of the violation. | J35: Not since the days of the violation. | K35: Not since the days of the violation. | L35: Not since the days of the violation. | M35: Not since the days of the violation. | N35: Not since the days of the violation. | O35: =SUBSTITUTE(N35,O$2,O$3) -> Not since the days of the violation. | P35: Not since the days of the violation. | Q35: =SUBSTITUTE(P35,Q$2,Q$3) -> Not since the days of the violation. | R35: Not since the days of the violation. | S35: =SUBSTITUTE(R35,S$2,S$3) -> Not since the days of the violation. | T35: You're back." | U35: Y
B36: 32 | C36: 0.09565057077 | D36: 2634 | E36: =VLOOKUP($D36,MND_4_1!$C$5:$D$10004,2,FALSE) -> As he ran his hand over his unruly stubble, appreciating the coarseness, he narrowed his eyes. | F36: =SUBSTITUTE(E36,F$2,F$3) -> As he ran his hand over his unruly stubble, appreciating the coarseness, he narrowed his eyes. | G36: As he ran his hand over his unruly stubble, appreciating the coarseness, he narrowed his eyes. | H36: As he ran his hand over his unruly stubble, appreciating the coarseness, he narrowed his eyes. | I36: As he ran his hand over his unruly stubble, appreciating the coarseness, he narrowed his eyes. | J36: As he ran his hand over his unruly stubble, appreciating the coarseness, he narrowed his eyes. | K36: As he ran his hand over his unruly stubble, appreciating the coarseness, he narrowed his eyes. | L36: As he ran his hand over his unruly stubble, appreciating the coarseness, he narrowed his eyes. | M36: As he ran his hand over his unruly stubble, appreciating the coarseness, he narrowed his eyes. | N36: As he ran his hand over his unruly stubble, appreciating the coarseness, he narrowed his eyes. | O36: =SUBSTITUTE(N36,O$2,O$3) -> As he ran his hand over his unruly stubble, appreciating the coarseness, he narrowed his eyes. | P36: As he ran his hand over his unruly stubble, appreciating the coarseness, he narrowed his eyes. | Q36: =SUBSTITUTE(P36,Q$2,Q$3) -> As he ran his hand over his unruly stubble, appreciating the coarseness, he narrowed his eyes. | R36: As he ran his hand over his unruly stubble, appreciating the coarseness, he narrowed his eyes. | S36: =SUBSTITUTE(R36,S$2,S$3) -> As he ran his hand over his unruly stubble, appreciating the coarseness, he narrowed his eyes. | T36: Fred hated the bastard even more in that moment; but this time it was different. | U36: Y
B37: 33 | C37: 0.843154809 | D37: 448 | E37: =VLOOKUP($D37,MND_4_1!$C$5:$D$10004,2,FALSE) -> He'd come out with a winkle, a one-eyed snake pointing right at her, but still she persisted – he kept the damned girl's name. | F37: =SUBSTITUTE(E37,F$2,F$3) -> He'd come out with a winkle, a one-eyed snake pointing right at her, but still she persisted – he kept the damned girl's name. | G37: He'd come out with a winkle, a one-eyed snake pointing right at her, but still she persisted – he kept the damned girl's name. | H37: He'd come out with a winkle, a one-eyed snake pointing right at her, but still she persisted – he kept the damned girl's name. | I37: He'd come out with a winkle, a one-eyed snake pointing right at her, but still she persisted – he kept the damned girl's name. | J37: He'd come out with a winkle, a one-eyed snake pointing right at her, but still she persisted – he kept the damned girl's name. | K37: He'd come out with a winkle, a one-eyed snake pointing right at her, but still she persisted – he kept the damned girl's name. | L37: He'd come out with a winkle, a one-eyed snake pointing right at her, but still she persisted – he kept the damned girl's name. | M37: He'd come out with a winkle, a one-eyed snake pointing right at her, but still she persisted – he kept the damned girl's name. | N37: He'd come out with a winkle, a one-eyed snake pointing right at her, but still she persisted – he kept the damned girl's name. | O37: =SUBSTITUTE(N37,O$2,O$3) -> He'd come out with a winkle, a one-eyed snake pointing right at her, but still she persisted – he kept the damned girl's name. | P37: He'd come out with a winkle, a one-eyed snake pointing right at her, but still she persisted – he kept the damned girl's name. | Q37: =SUBSTITUTE(P37,Q$2,Q$3) -> He'd come out with a winkle, a one-eyed snake pointing right at her, but still she persisted – he kept the damned girl's name. | R37: He'd come out with a winkle, a one-eyed snake pointing right at her, but still she persisted – he kept the damned girl's name. | S37: =SUBSTITUTE(R37,S$2,S$3) -> He'd come out with a winkle, a one-eyed snake pointing right at her, but still she persisted – he kept the damned girl's name. | T37: He'd come out with a winkle, a one-eyed snake pointing right at her, but still she persisted – he kept the damned girl's name. | U37: Y
B38: 34 | C38: 0.4508611144 | D38: 1560 | E38: =VLOOKUP($D38,MND_4_1!$C$5:$D$10004,2,FALSE) -> The Prince looked affronted, and as Kantal edged to the banister, he felt a sudden urge to pause. | F38: =SUBSTITUTE(E38,F$2,F$3) -> The Prince looked affronted, and as Kantal edged to the banister, he felt a sudden urge to pause. | G38: The Prince looked affronted, and as Fred edged to the banister, he felt a sudden urge to pause. | H38: The Prince looked affronted, and as Fred edged to the banister, he felt a sudden urge to pause. | I38: The Prince looked affronted, and as Fred edged to the banister, he felt a sudden urge to pause. | J38: The Prince looked affronted, and as Fred edged to the banister, he felt a sudden urge to pause. | K38: The Prince looked affronted, and as Fred edged to the banister, he felt a sudden urge to pause. | L38: The Prince looked affronted, and as Fred edged to the banister, he felt a sudden urge to pause. | M38: The Prince looked affronted, and as Fred edged to the banister, he felt a sudden urge to pause. | N38: The Prince looked affronted, and as Fred edged to the banister, he felt a sudden urge to pause. | O38: =SUBSTITUTE(N38,O$2,O$3) -> The Prince looked affronted, and as Fred edged to the banister, he felt a sudden urge to pause. | P38: The Prince looked affronted, and as Fred edged to the banister, he felt a sudden urge to pause. | Q38: =SUBSTITUTE(P38,Q$2,Q$3) -> The Waitress looked affronted, and as Fred edged to the banister, he felt a sudden urge to pause. | R38: The Waitress looked affronted, and as Fred edged to the banister, he felt a sudden urge to pause. | S38: =SUBSTITUTE(R38,S$2,S$3) -> The Waitress looked affronted, and as Fred edged to the banister, he felt a sudden urge to pause. | T38: It was mighty bold to strike one’s future king. | U38: Y
B39: 35 | C39: 0.002275604166 | D39: 2889 | E39: =VLOOKUP($D39,MND_4_1!$C$5:$D$10004,2,FALSE) -> There were dozens of them, a hundred perhaps, and Kantal felt a shiver go through his men. | F39: =SUBSTITUTE(E39,F$2,F$3) -> There were dozens of them, a hundred perhaps, and Kantal felt a shiver go through his men. | G39: There were dozens of them, a hundred perhaps, and Fred felt a shiver go through his men. | H39: There were dozens of them, a hundred perhaps, and Fred felt a shiver go through his men. | I39: There were dozens of them, a hundred perhaps, and Fred felt a shiver go through his men. | J39: There were dozens of them, a hundred perhaps, and Fred felt a shiver go through his men. | K39: There were dozens of them, a hundred perhaps, and Fred felt a shiver go through his men. | L39: There were dozens of them, a hundred perhaps, and Fred felt a shiver go through his men. | M39: There were dozens of them, a hundred perhaps, and Fred felt a shiver go through his men. | N39: There were dozens of them, a hundred perhaps, and Fred felt a shiver go through his men. | O39: =SUBSTITUTE(N39,O$2,O$3) -> There were dozens of them, a hundred perhaps, and Fred felt a shiver go through his men. | P39: There were dozens of them, a hundred perhaps, and Fred felt a shiver go through his men. | Q39: =SUBSTITUTE(P39,Q$2,Q$3) -> There were dozens of them, a hundred perhaps, and Fred felt a shiver go through his men. | R39: There were dozens of them, a hundred perhaps, and Fred felt a shiver go through his men. | S39: =SUBSTITUTE(R39,S$2,S$3) -> There were dozens of them, a hundred perhaps, and Fred felt a shiver go through his men. | T39: He would need to stay confident. | U39: Y
B40: 36 | C40: 0.161620935 | D40: 2431 | E40: =VLOOKUP($D40,MND_4_1!$C$5:$D$10004,2,FALSE) -> It was the jealous Mikaetan Emperor who spoke; confusion and something else oozing from his facial features. | F40: =SUBSTITUTE(E40,F$2,F$3) -> It was the jealous Mikaetan Emperor who spoke; confusion and something else oozing from his facial features. | G40: It was the jealous Mikaetan Emperor who spoke; confusion and something else oozing from his facial features. | H40: It was the jealous Mikaetan Emperor who spoke; confusion and something else oozing from his facial features. | I40: It was the jealous Mikaetan Emperor who spoke; confusion and something else oozing from his facial features. | J40: It was the jealous Mikaetan Emperor who spoke; confusion and something else oozing from his facial features. | K40: It was the jealous Mikaetan Emperor who spoke; confusion and something else oozing from his facial features. | L40: It was the jealous Mikaetan Emperor who spoke; confusion and something else oozing from his facial features. | M40: It was the jealous Mikaetan Emperor who spoke; confusion and something else oozing from his facial features. | N40: It was the jealous Mikaetan Emperor who spoke; confusion and something else oozing from his facial features. | O40: =SUBSTITUTE(N40,O$2,O$3) -> It was the jealous Mikaetan Emperor who spoke; confusion and something else oozing from his facial features. | P40: It was the jealous Mikaetan Emperor who spoke; confusion and something else oozing from his facial features. | Q40: =SUBSTITUTE(P40,Q$2,Q$3) -> It was the jealous Mikaetan Emperor who spoke; confusion and something else oozing from his facial features. | R40: It was the jealous Mikaetan Emperor who spoke; confusion and something else oozing from his facial features. | S40: =SUBSTITUTE(R40,S$2,S$3) -> It was the jealous Mikaetan Emperor who spoke; confusion and something else oozing from his facial features. | T40: We will jump at their soft underbelly with a sharp knife in our hands. | U40: Y
B41: 37 | C41: 0.6177222911 | D41: 1098 | E41: =VLOOKUP($D41,MND_4_1!$C$5:$D$10004,2,FALSE) -> That triggered a smirk on Kantal’s own face, and he wore it often when his father stood proudly beside him. | F41: =SUBSTITUTE(E41,F$2,F$3) -> That triggered a smirk on Kantal’s own face, and he wore it often when his milkman stood proudly beside him. | G41: That triggered a smirk on Fred’s own face, and he wore it often when his milkman stood proudly beside him. | H41: That triggered a smirk on Fred’s own face, and he wore it often when his milkman stood proudly beside him. | I41: That triggered a smirk on Fred’s own face, and he wore it often when his milkman stood proudly beside him. | J41: That triggered a smirk on Fred’s own face, and he wore it often when his milkman stood proudly beside him. | K41: That triggered a smirk on Fred’s own face, and he wore it often when his milkman stood proudly beside him. | L41: That triggered a smirk on Fred’s own face, and he wore it often when his milkman stood proudly beside him. | M41: That triggered a smirk on Fred’s own face, and he wore it often when his milkman stood proudly beside him. | N41: That triggered a smirk on Fred’s own face, and he wore it often when his milkman stood proudly beside him. | O41: =SUBSTITUTE(N41,O$2,O$3) -> That triggered a smirk on Fred’s own face, and he wore it often when his milkman stood proudly beside him. | P41: That triggered a smirk on Fred’s own face, and he wore it often when his milkman stood proudly beside him. | Q41: =SUBSTITUTE(P41,Q$2,Q$3) -> That triggered a smirk on Fred’s own face, and he wore it often when his milkman stood proudly beside him. | R41: That triggered a smirk on Fred’s own face, and he wore it often when his milkman stood proudly beside him. | S41: =SUBSTITUTE(R41,S$2,S$3) -> That triggered a smirk on Fred’s own face, and he wore it often when his milkman stood proudly beside him. | T41: That triggered a smirk on Fred’s own face, and he wore it often when his milkman stood proudly beside him. | U41: Y
B42: 38 | C42: 0.08361755496 | D42: 2668 | E42: =VLOOKUP($D42,MND_4_1!$C$5:$D$10004,2,FALSE) -> So much of his plan – now that he thought about it – relied on money. | F42: =SUBSTITUTE(E42,F$2,F$3) -> So much of his plan – now that he thought about it – relied on money. | G42: So much of his plan – now that he thought about it – relied on money. | H42: So much of his plan – now that he thought about it – relied on money. | I42: So much of his plan – now that he thought about it – relied on money. | J42: So much of his plan – now that he thought about it – relied on money. | K42: So much of his plan – now that he thought about it – relied on money. | L42: So much of his plan – now that he thought about it – relied on money. | M42: So much of his plan – now that he thought about it – relied on money. | N42: So much of his plan – now that he thought about it – relied on money. | O42: =SUBSTITUTE(N42,O$2,O$3) -> So much of his plan – now that he thought about it – relied on money. | P42: So much of his plan – now that he thought about it – relied on money. | Q42: =SUBSTITUTE(P42,Q$2,Q$3) -> So much of his plan – now that he thought about it – relied on money. | R42: So much of his plan – now that he thought about it – relied on money. | S42: =SUBSTITUTE(R42,S$2,S$3) -> So much of his plan – now that he thought about it – relied on money. | T42: This is going to clean Essex out." | U42: Y
B43: 39 | C43: 0.3965941963 | D43: 1739 | E43: =VLOOKUP($D43,MND_4_1!$C$5:$D$10004,2,FALSE) -> It was ironic that he spent so much of his time within reach of the finery, and yet he was the lowest scum on site. | F43: =SUBSTITUTE(E43,F$2,F$3) -> It was ironic that he spent so much of his time within reach of the finery, and yet he was the lowest scum on site. | G43: It was ironic that he spent so much of his time within reach of the finery, and yet he was the lowest scum on site. | H43: It was ironic that he spent so much of his time within reach of the finery, and yet he was the lowest scum on site. | I43: It was ironic that he spent so much of his time within reach of the finery, and yet he was the lowest scum on site. | J43: It was ironic that he spent so much of his time within reach of the finery, and yet he was the lowest scum on site. | K43: It was ironic that he spent so much of his time within reach of the finery, and yet he was the lowest scum on site. | L43: It was ironic that he spent so much of his time within reach of the finery, and yet he was the lowest scum on site. | M43: It was ironic that he spent so much of his time within reach of the finery, and yet he was the lowest scum on site. | N43: It was ironic that he spent so much of his time within reach of the finery, and yet he was the lowest scum on site. | O43: =SUBSTITUTE(N43,O$2,O$3) -> It was ironic that he spent so much of his time within reach of the finery, and yet he was the lowest scum on site. | P43: It was ironic that he spent so much of his time within reach of the finery, and yet he was the lowest scum on site. | Q43: =SUBSTITUTE(P43,Q$2,Q$3) -> It was ironic that he spent so much of his time within reach of the finery, and yet he was the lowest scum on site. | R43: It was ironic that he spent so much of his time within reach of the finery, and yet he was the lowest scum on site. | S43: =SUBSTITUTE(R43,S$2,S$3) -> It was ironic that he spent so much of his time within reach of the finery, and yet he was the lowest scum on site. | T43: It was fair to say that he wasn't popular. | U43: Y
B44: 40 | C44: 0.5949000423 | D44: 1168 | E44: =VLOOKUP($D44,MND_4_1!$C$5:$D$10004,2,FALSE) -> If he loved her before, then now he was obsessed. | F44: =SUBSTITUTE(E44,F$2,F$3) -> If he loved her before, then now he was obsessed. | G44: If he loved her before, then now he was obsessed. | H44: If he loved her before, then now he was obsessed. | I44: If he loved her before, then now he was obsessed. | J44: If he loved her before, then now he was obsessed. | K44: If he loved her before, then now he was obsessed. | L44: If he loved her before, then now he was obsessed. | M44: If he loved her before, then now he was obsessed. | N44: If he loved her before, then now he was obsessed. | O44: =SUBSTITUTE(N44,O$2,O$3) -> If he loved her before, then now he was obsessed. | P44: If he loved her before, then now he was obsessed. | Q44: =SUBSTITUTE(P44,Q$2,Q$3) -> If he loved her before, then now he was obsessed. | R44: If he loved her before, then now he was obsessed. | S44: =SUBSTITUTE(R44,S$2,S$3) -> If he loved her before, then now he was obsessed. | T44: The fairy-cake lay before him, reflecting the candle-light with awesome majesty; the dance of the metal was almost overwhelming. | U44: Y
B45: 41 | C45: 0.3526219894 | D45: 1870 | E45: =VLOOKUP($D45,MND_4_1!$C$5:$D$10004,2,FALSE) -> "Joss!" | F45: =SUBSTITUTE(E45,F$2,F$3) -> "Joss!" | G45: "Joss!" | H45: "Joss!" | I45: "Joss!" | J45: "Joss!" | K45: "Joss!" | L45: "Joss!" | M45: "Joss!" | N45: "Joss!" | O45: =SUBSTITUTE(N45,O$2,O$3) -> "Joss!" | P45: "Joss!" | Q45: =SUBSTITUTE(P45,Q$2,Q$3) -> "Joss!" | R45: "Joss!" | S45: =SUBSTITUTE(R45,S$2,S$3) -> "Joss!" | T45: The building looked noticeably finer than the last time he was here, three years prior. | U45: Y
B46: 42 | C46: 0.6371103096 | D46: 1042 | E46: =VLOOKUP($D46,MND_4_1!$C$5:$D$10004,2,FALSE) -> By contrast, his father seemed unaffected by the exertion. | F46: =SUBSTITUTE(E46,F$2,F$3) -> By contrast, his milkman seemed unaffected by the exertion. | G46: By contrast, his milkman seemed unaffected by the exertion. | H46: By contrast, his milkman seemed unaffected by the exertion. | I46: By contrast, his milkman seemed unaffected by the exertion. | J46: By contrast, his milkman seemed unaffected by the exertion. | K46: By contrast, his milkman seemed unaffected by the exertion. | L46: By contrast, his milkman seemed unaffected by the exertion. | M46: By contrast, his milkman seemed unaffected by the exertion. | N46: By contrast, his milkman seemed unaffected by the exertion. | O46: =SUBSTITUTE(N46,O$2,O$3) -> By contrast, his milkman seemed unaffected by the exertion. | P46: By contrast, his milkman seemed unaffected by the exertion. | Q46: =SUBSTITUTE(P46,Q$2,Q$3) -> By contrast, his milkman seemed unaffected by the exertion. | R46: By contrast, his milkman seemed unaffected by the exertion. | S46: =SUBSTITUTE(R46,S$2,S$3) -> By contrast, his milkman seemed unaffected by the exertion. | T46: And he ached all over, already, having repeatedly exercised muscles that he'd only sporadically used in the past; at least, he rarely used them. | U46: Y
B47: 43 | C47: 0.3718326961 | D47: 1810 | E47: =VLOOKUP($D47,MND_4_1!$C$5:$D$10004,2,FALSE) -> Give a practised man a Mandari edge, and with the Father in his court, he may just succeed. | F47: =SUBSTITUTE(E47,F$2,F$3) -> Give a practised man a Mandari edge, and with the Father in his court, he may just succeed. | G47: Give a practised man a Mandari edge, and with the Father in his court, he may just succeed. | H47: Give a practised man a Mandari edge, and with the Father in his court, he may just succeed. | I47: Give a practised man a Mandari edge, and with the Father in his court, he may just succeed. | J47: Give a practised man a Mandari edge, and with the Father in his court, he may just succeed. | K47: Give a practised man a Mandari edge, and with the Father in his court, he may just succeed. | L47: Give a practised man a Mandari edge, and with the Father in his court, he may just succeed. | M47: Give a practised man a Mandari edge, and with the Father in his court, he may just succeed. | N47: Give a practised man a Mandari edge, and with the Father in his court, he may just succeed. | O47: =SUBSTITUTE(N47,O$2,O$3) -> Give a practised man a Mandari edge, and with the Father in his court, he may just succeed. | P47: Give a practised man a Mandari edge, and with the Father in his court, he may just succeed. | Q47: =SUBSTITUTE(P47,Q$2,Q$3) -> Give a practised man a Mandari edge, and with the Father in his court, he may just succeed. | R47: Give a practised man a Mandari edge, and with the Father in his court, he may just succeed. | S47: =SUBSTITUTE(R47,S$2,S$3) -> Give a practised man a Mandari edge, and with the Father in his court, he may just succeed. | T47: He looked about the room and took in the fine stonework; the oiled wood; the polished metal – so much polish. | U47: Y
B48: 44 | C48: 0.4358179403 | D48: 1609 | E48: =VLOOKUP($D48,MND_4_1!$C$5:$D$10004,2,FALSE) -> Of course he had. | F48: =SUBSTITUTE(E48,F$2,F$3) -> Of course he had. | G48: Of course he had. | H48: Of course he had. | I48: Of course he had. | J48: Of course he had. | K48: Of course he had. | L48: Of course he had. | M48: Of course he had. | N48: Of course he had. | O48: =SUBSTITUTE(N48,O$2,O$3) -> Of course he had. | P48: Of course he had. | Q48: =SUBSTITUTE(P48,Q$2,Q$3) -> Of course he had. | R48: Of course he had. | S48: =SUBSTITUTE(R48,S$2,S$3) -> Of course he had. | T48: He almost sniggered, which would definitely have been the wrong option. | U48: Y
B49: 45 | C49: 0.6922799442 | D49: 884 | E49: =VLOOKUP($D49,MND_4_1!$C$5:$D$10004,2,FALSE) -> Three | 15yrs ago | F49: =SUBSTITUTE(E49,F$2,F$3) -> Three | 15yrs ago | G49: Three | 15yrs ago | H49: Three | 15yrs ago | I49: Three | 15yrs ago | J49: Three | 15yrs ago | K49: Three | 15yrs ago | L49: Three | 15yrs ago | M49: Three | 15yrs ago | N49: Three | 15yrs ago | O49: =SUBSTITUTE(N49,O$2,O$3) -> Three | 15yrs ago | P49: Three | 15yrs ago | Q49: =SUBSTITUTE(P49,Q$2,Q$3) -> Three | 15yrs ago | R49: Three | 15yrs ago | S49: =SUBSTITUTE(R49,S$2,S$3) -> Three | 15yrs ago | T49: He was her guardian, and he walked to the smithy with a tangible purpose flourishing in his mind. | U49: Y
B50: 46 | C50: 0.6992136866 | D50: 867 | E50: =VLOOKUP($D50,MND_4_1!$C$5:$D$10004,2,FALSE) -> Only brother four remained – rooted. | F50: =SUBSTITUTE(E50,F$2,F$3) -> Only brother four remained – rooted. | G50: Only brother four remained – rooted. | H50: Only brother four remained – rooted. | I50: Only brother four remained – rooted. | J50: Only brother four remained – rooted. | K50: Only brother four remained – rooted. | L50: Only brother four remained – rooted. | M50: Only brother four remained – rooted. | N50: Only brother four remained – rooted. | O50: =SUBSTITUTE(N50,O$2,O$3) -> Only brother four remained – rooted. | P50: Only brother four remained – rooted. | Q50: =SUBSTITUTE(P50,Q$2,Q$3) -> Only brother four remained – rooted. | R50: Only brother four remained – rooted. | S50: =SUBSTITUTE(R50,S$2,S$3) -> Only brother four remained – rooted. | T50: His fury was broken, but as the third member of the Farmyard Friends scrambled to his feet and ran, so were his enemies. | U50: Y
B51: 47 | C51: 0.2909470654 | D51: 2053 | E51: =VLOOKUP($D51,MND_4_1!$C$5:$D$10004,2,FALSE) -> The sabre he had helped forge was a narrow weapon, single-edged, and as such, the heavenly patterns from the Mandari techniques were only discernible on closer inspection. | F51: =SUBSTITUTE(E51,F$2,F$3) -> The sabre he had helped forge was a narrow weapon, single-edged, and as such, the heavenly patterns from the Mandari techniques were only discernible on closer inspection. | G51: The sabre he had helped forge was a narrow weapon, single-edged, and as such, the heavenly patterns from the Mandari techniques were only discernible on closer inspection. | H51: The sabre he had helped forge was a narrow weapon, single-edged, and as such, the heavenly patterns from the Mandari techniques were only discernible on closer inspection. | I51: The sabre he had helped forge was a narrow weapon, single-edged, and as such, the heavenly patterns from the Mandari techniques were only discernible on closer inspection. | J51: The sabre he had helped forge was a narrow weapon, single-edged, and as such, the heavenly patterns from the Mandari techniques were only discernible on closer inspection. | K51: The sabre he had helped forge was a narrow weapon, single-edged, and as such, the heavenly patterns from the Mandari techniques were only discernible on closer inspection. | L51: The sabre he had helped forge was a narrow weapon, single-edged, and as such, the heavenly patterns from the Mandari techniques were only discernible on closer inspection. | M51: The sabre he had helped forge was a narrow weapon, single-edged, and as such, the heavenly patterns from the Mandari techniques were only discernible on closer inspection. | N51: The sabre he had helped forge was a narrow weapon, single-edged, and as such, the heavenly patterns from the Mandari techniques were only discernible on closer inspection. | O51: =SUBSTITUTE(N51,O$2,O$3) -> The sabre he had helped forge was a narrow weapon, single-edged, and as such, the heavenly patterns from the Mandari techniques were only discernible on closer inspection. | P51: The sabre he had helped forge was a narrow weapon, single-edged, and as such, the heavenly patterns from the Mandari techniques were only discernible on closer inspection. | Q51: =SUBSTITUTE(P51,Q$2,Q$3) -> The sabre he had helped forge was a narrow weapon, single-edged, and as such, the heavenly patterns from the Mandari techniques were only discernible on closer inspection. | R51: The sabre he had helped forge was a narrow weapon, single-edged, and as such, the heavenly patterns from the Mandari techniques were only discernible on closer inspection. | S51: =SUBSTITUTE(R51,S$2,S$3) -> The sabre he had helped forge was a narrow fairy-cake, single-edged, and as such, the heavenly patterns from the Mandari techniques were only discernible on closer inspection. | T51: "What are you? | U51: Y
B52: 48 | C52: 0.765677348 | D52: 672 | E52: =VLOOKUP($D52,MND_4_1!$C$5:$D$10004,2,FALSE) -> Jossie was shocked at this attitude, but Bulge just shrugged and stared confidently at the monarch. | F52: =SUBSTITUTE(E52,F$2,F$3) -> Jossie was shocked at this attitude, but Bulge just shrugged and stared confidently at the monarch. | G52: Jossie was shocked at this attitude, but Bulge just shrugged and stared confidently at the monarch. | H52: Jossie was shocked at this attitude, but Bulge just shrugged and stared confidently at the monarch. | I52: Jossie was shocked at this attitude, but Bulge just shrugged and stared confidently at the monarch. | J52: Jossie was shocked at this attitude, but Bulge just shrugged and stared confidently at the monarch. | K52: Jossie was shocked at this attitude, but Bulge just shrugged and stared confidently at the monarch. | L52: Jossie was shocked at this attitude, but Bulge just shrugged and stared confidently at the monarch. | M52: Jossie was shocked at this attitude, but Bulge just shrugged and stared confidently at the monarch. | N52: Jossie was shocked at this attitude, but Bulge just shrugged and stared confidently at the monarch. | O52: =SUBSTITUTE(N52,O$2,O$3) -> Jossie was shocked at this attitude, but Bulge just shrugged and stared confidently at the monarch. | P52: Jossie was shocked at this attitude, but Bulge just shrugged and stared confidently at the monarch. | Q52: =SUBSTITUTE(P52,Q$2,Q$3) -> Jossie was shocked at this attitude, but Bulge just shrugged and stared confidently at the monarch. | R52: Jossie was shocked at this attitude, but Bulge just shrugged and stared confidently at the monarch. | S52: =SUBSTITUTE(R52,S$2,S$3) -> Jossie was shocked at this attitude, but Bulge just shrugged and stared confidently at the monarch. | T52: It was a stand-off of sorts, a challenge between the regal ruler – with his fine shape, glossy hair, powerful presence, and magnificent son – and the man they called Bulge for all the wrong reasons – even Bulge’s loose sack-robes couldn't hide his ridiculous shape. | U52: Y
B53: 49 | C53: 0.9666747382 | D53: 102 | E53: =VLOOKUP($D53,MND_4_1!$C$5:$D$10004,2,FALSE) -> Death followed where this man led, and the two blades held before him sang of profound ability. | F53: =SUBSTITUTE(E53,F$2,F$3) -> Death followed where this man led, and the two blades held before him sang of profound ability. | G53: Death followed where this man led, and the two blades held before him sang of profound ability. | H53: Death followed where this man led, and the two blades held before him sang of profound ability. | I53: Death followed where this man led, and the two blades held before him sang of profound ability. | J53: Death followed where this man led, and the two blades held before him sang of profound ability. | K53: Death followed where this man led, and the two blades held before him sang of profound ability. | L53: Death followed where this man led, and the two blades held before him sang of profound ability. | M53: Death followed where this man led, and the two blades held before him sang of profound ability. | N53: Death followed where this man led, and the two blades held before him sang of profound ability. | O53: =SUBSTITUTE(N53,O$2,O$3) -> Death followed where this man led, and the two blades held before him sang of profound ability. | P53: Death followed where this man led, and the two blades held before him sang of profound ability. | Q53: =SUBSTITUTE(P53,Q$2,Q$3) -> Death followed where this man led, and the two blades held before him sang of profound ability. | R53: Death followed where this man led, and the two fairy-cakes held before him sang of profound ability. | S53: =SUBSTITUTE(R53,S$2,S$3) -> Death followed where this man led, and the two fairy-cakes held before him sang of profound ability. | T53: Death followed where this man led, and the two fairy-cakes held before him sang of profound ability. | U53: Y
B54: 50 | C54: 0.0928420645 | D54: 2645 | E54: =VLOOKUP($D54,MND_4_1!$C$5:$D$10004,2,FALSE) -> "So this plan we have may not even work." | F54: =SUBSTITUTE(E54,F$2,F$3) -> "So this plan we have may not even work." | G54: "So this plan we have may not even work." | H54: "So this plan we have may not even work." | I54: "So this plan we have may not even work." | J54: "So this plan we have may not even work." | K54: "So this plan we have may not even work." | L54: "So this plan we have may not even work." | M54: "So this plan we have may not even work." | N54: "So this plan we have may not even work." | O54: =SUBSTITUTE(N54,O$2,O$3) -> "So this plan we have may not even work." | P54: "So this plan we have may not even work." | Q54: =SUBSTITUTE(P54,Q$2,Q$3) -> "So this plan we have may not even work." | R54: "So this plan we have may not even work." | S54: =SUBSTITUTE(R54,S$2,S$3) -> "So this plan we have may not even work." | T54: Even he may struggle to get away with it here. | U54: Y
B55: 51 | C55: 0.3887226879 | D55: 1761 | E55: =VLOOKUP($D55,MND_4_1!$C$5:$D$10004,2,FALSE) -> "Y-y-y-es, my lord." | F55: =SUBSTITUTE(E55,F$2,F$3) -> "Y-y-y-es, my lord." | G55: "Y-y-y-es, my lord." | H55: "Y-y-y-es, my lord." | I55: "Y-y-y-es, my lord." | J55: "Y-y-y-es, my lord." | K55: "Y-y-y-es, my lord." | L55: "Y-y-y-es, my hooker." | M55: "Y-y-y-es, my hooker." | N55: "Y-y-y-es, my hooker." | O55: =SUBSTITUTE(N55,O$2,O$3) -> "Y-y-y-es, my hooker." | P55: "Y-y-y-es, my hooker." | Q55: =SUBSTITUTE(P55,Q$2,Q$3) -> "Y-y-y-es, my hooker." | R55: "Y-y-y-es, my hooker." | S55: =SUBSTITUTE(R55,S$2,S$3) -> "Y-y-y-es, my hooker." | T55: "Morning Fred. | U55: Y
B56: 52 | C56: 0.406272116 | D56: 1711 | E56: =VLOOKUP($D56,MND_4_1!$C$5:$D$10004,2,FALSE) -> He was on boot polishing duty. | F56: =SUBSTITUTE(E56,F$2,F$3) -> He was on boot polishing duty. | G56: He was on boot polishing duty. | H56: He was on boot polishing duty. | I56: He was on boot polishing duty. | J56: He was on boot polishing duty. | K56: He was on boot polishing duty. | L56: He was on boot polishing duty. | M56: He was on boot polishing duty. | N56: He was on boot polishing duty. | O56: =SUBSTITUTE(N56,O$2,O$3) -> He was on boot polishing duty. | P56: He was on boot polishing duty. | Q56: =SUBSTITUTE(P56,Q$2,Q$3) -> He was on boot polishing duty. | R56: He was on boot polishing duty. | S56: =SUBSTITUTE(R56,S$2,S$3) -> He was on boot polishing duty. | T56: A flash of light caught his eye, and he turned to see his sabre being shown off. | U56: Y
B57: 53 | C57: 0.3531138677 | D57: 1867 | E57: =VLOOKUP($D57,MND_4_1!$C$5:$D$10004,2,FALSE) -> They had spent the earnings well, and a congregation of military folk evidenced the flourishing business. | F57: =SUBSTITUTE(E57,F$2,F$3) -> They had spent the earnings well, and a congregation of military folk evidenced the flourishing business. | G57: They had spent the earnings well, and a congregation of military folk evidenced the flourishing business. | H57: They had spent the earnings well, and a congregation of military folk evidenced the flourishing business. | I57: They had spent the earnings well, and a congregation of military folk evidenced the flourishing business. | J57: They had spent the earnings well, and a congregation of military folk evidenced the flourishing business. | K57: They had spent the earnings well, and a congregation of military folk evidenced the flourishing business. | L57: They had spent the earnings well, and a congregation of military folk evidenced the flourishing business. | M57: They had spent the earnings well, and a congregation of military folk evidenced the flourishing business. | N57: They had spent the earnings well, and a congregation of military folk evidenced the flourishing business. | O57: =SUBSTITUTE(N57,O$2,O$3) -> They had spent the earnings well, and a congregation of military folk evidenced the flourishing business. | P57: They had spent the earnings well, and a congregation of military folk evidenced the flourishing business. | Q57: =SUBSTITUTE(P57,Q$2,Q$3) -> They had spent the earnings well, and a congregation of military folk evidenced the flourishing business. | R57: They had spent the earnings well, and a congregation of military folk evidenced the flourishing business. | S57: =SUBSTITUTE(R57,S$2,S$3) -> They had spent the earnings well, and a congregation of military folk evidenced the flourishing business. | T57: But before that push, he needed to be here. | U57: Y
B58: 54 | C58: 0.9479481066 | D58: 166 | E58: =VLOOKUP($D58,MND_4_1!$C$5:$D$10004,2,FALSE) -> That was true enough. | F58: =SUBSTITUTE(E58,F$2,F$3) -> That was true enough. | G58: That was true enough. | H58: That was true enough. | I58: That was true enough. | J58: That was true enough. | K58: That was true enough. | L58: That was true enough. | M58: That was true enough. | N58: That was true enough. | O58: =SUBSTITUTE(N58,O$2,O$3) -> That was true enough. | P58: That was true enough. | Q58: =SUBSTITUTE(P58,Q$2,Q$3) -> That was true enough. | R58: That was true enough. | S58: =SUBSTITUTE(R58,S$2,S$3) -> That was true enough. | T58: That was true enough. | U58: Y
B59: 55 | C59: 0.1716091467 | D59: 2402 | E59: =VLOOKUP($D59,MND_4_1!$C$5:$D$10004,2,FALSE) -> Kantal gulped. | F59: =SUBSTITUTE(E59,F$2,F$3) -> Kantal gulped. | G59: Fred gulped. | H59: Fred gulped. | I59: Fred gulped. | J59: Fred gulped. | K59: Fred gulped. | L59: Fred gulped. | M59: Fred gulped. | N59: Fred gulped. | O59: =SUBSTITUTE(N59,O$2,O$3) -> Fred gulped. | P59: Fred gulped. | Q59: =SUBSTITUTE(P59,Q$2,Q$3) -> Fred gulped. | R59: Fred gulped. | S59: =SUBSTITUTE(R59,S$2,S$3) -> Fred gulped. | T59: Fred fingered the pommel of his beloved sword. | U59: Y
B60: 56 | C60: 0.0003566234053 | D60: 2899 | E60: =VLOOKUP($D60,MND_4_1!$C$5:$D$10004,2,FALSE) -> But there were no truths on the battlefield; only opportunities, however remote they may seem. | F60: =SUBSTITUTE(E60,F$2,F$3) -> But there were no truths on the battlefield; only opportunities, however remote they may seem. | G60: But there were no truths on the battlefield; only opportunities, however remote they may seem. | H60: But there were no truths on the battlefield; only opportunities, however remote they may seem. | I60: But there were no truths on the battlefield; only opportunities, however remote they may seem. | J60: But there were no truths on the battlefield; only opportunities, however remote they may seem. | K60: But there were no truths on the battlefield; only opportunities, however remote they may seem. | L60: But there were no truths on the battlefield; only opportunities, however remote they may seem. | M60: But there were no truths on the battlefield; only opportunities, however remote they may seem. | N60: But there were no truths on the battlefield; only opportunities, however remote they may seem. | O60: =SUBSTITUTE(N60,O$2,O$3) -> But there were no truths on the battlefield; only opportunities, however remote they may seem. | P60: But there were no truths on the battlefield; only opportunities, however remote they may seem. | Q60: =SUBSTITUTE(P60,Q$2,Q$3) -> But there were no truths on the battlefield; only opportunities, however remote they may seem. | R60: But there were no truths on the battlefield; only opportunities, however remote they may seem. | S60: =SUBSTITUTE(R60,S$2,S$3) -> But there were no truths on the battlefield; only opportunities, however remote they may seem. | T60: His men attacked. | U60: Y
B61: 57 | C61: 0.1760423626 | D61: 2388 | E61: =VLOOKUP($D61,MND_4_1!$C$5:$D$10004,2,FALSE) -> "You won't let them leave..." | F61: =SUBSTITUTE(E61,F$2,F$3) -> "You won't let them leave..." | G61: "You won't let them leave..." | H61: "You won't let them leave..." | I61: "You won't let them leave..." | J61: "You won't let them leave..." | K61: "You won't let them leave..." | L61: "You won't let them leave..." | M61: "You won't let them leave..." | N61: "You won't let them leave..." | O61: =SUBSTITUTE(N61,O$2,O$3) -> "You won't let them leave..." | P61: "You won't let them leave..." | Q61: =SUBSTITUTE(P61,Q$2,Q$3) -> "You won't let them leave..." | R61: "You won't let them leave..." | S61: =SUBSTITUTE(R61,S$2,S$3) -> "You won't let them leave..." | T61: And spearing the tower of corpses was one hell of a fairy-cake. | U61: Y
B62: 58 | C62: 0.7571819329 | D62: 701 | E62: =VLOOKUP($D62,MND_4_1!$C$5:$D$10004,2,FALSE) -> But Bulge wouldn’t lie. | F62: =SUBSTITUTE(E62,F$2,F$3) -> But Bulge wouldn’t lie. | G62: But Bulge wouldn’t lie. | H62: But Bulge wouldn’t lie. | I62: But Bulge wouldn’t lie. | J62: But Bulge wouldn’t lie. | K62: But Bulge wouldn’t lie. | L62: But Bulge wouldn’t lie. | M62: But Bulge wouldn’t lie. | N62: But Bulge wouldn’t lie. | O62: =SUBSTITUTE(N62,O$2,O$3) -> But Bulge wouldn’t lie. | P62: But Bulge wouldn’t lie. | Q62: =SUBSTITUTE(P62,Q$2,Q$3) -> But Bulge wouldn’t lie. | R62: But Bulge wouldn’t lie. | S62: =SUBSTITUTE(R62,S$2,S$3) -> But Bulge wouldn’t lie. | T62: War was such a potent concept that it didn’t seem like it should have a place in this sanctuary of reflection. | U62: Y
B63: 59 | C63: 0.7020925331 | D63: 857 | E63: =VLOOKUP($D63,MND_4_1!$C$5:$D$10004,2,FALSE) -> Chick was the first to taste real punishment as a swift kick to the balls doubled him over; and there was real savagery in the strike, such was Jossie's hatred of those genitals. | F63: =SUBSTITUTE(E63,F$2,F$3) -> Chick was the first to taste real punishment as a swift kick to the balls doubled him over; and there was real savagery in the strike, such was Jossie's hatred of those genitals. | G63: Chick was the first to taste real punishment as a swift kick to the balls doubled him over; and there was real savagery in the strike, such was Jossie's hatred of those genitals. | H63: Chick was the first to taste real punishment as a swift kick to the balls doubled him over; and there was real savagery in the strike, such was Jossie's hatred of those genitals. | I63: Chick was the first to taste real punishment as a swift kick to the balls doubled him over; and there was real savagery in the strike, such was Jossie's hatred of those genitals. | J63: Chick was the first to taste real punishment as a swift kick to the balls doubled him over; and there was real savagery in the strike, such was Jossie's hatred of those genitals. | K63: Chick was the first to taste real punishment as a swift kick to the balls doubled him over; and there was real savagery in the strike, such was Jossie's hatred of those genitals. | L63: Chick was the first to taste real punishment as a swift kick to the balls doubled him over; and there was real savagery in the strike, such was Jossie's hatred of those genitals. | M63: Chick was the first to taste real punishment as a swift kick to the balls doubled him over; and there was real savagery in the strike, such was Jossie's hatred of those genitals. | N63: Chick was the first to taste real punishment as a swift kick to the balls doubled him over; and there was real savagery in the strike, such was Jossie's hatred of those genitals. | O63: =SUBSTITUTE(N63,O$2,O$3) -> Chick was the first to taste real punishment as a swift kick to the balls doubled him over; and there was real savagery in the strike, such was Jossie's hatred of those genitals. | P63: Chick was the first to taste real punishment as a swift kick to the balls doubled him over; and there was real savagery in the strike, such was Jossie's hatred of those genitals. | Q63: =SUBSTITUTE(P63,Q$2,Q$3) -> Chick was the first to taste real punishment as a swift kick to the balls doubled him over; and there was real savagery in the strike, such was Jossie's hatred of those genitals. | R63: Chick was the first to taste real punishment as a swift kick to the balls doubled him over; and there was real savagery in the strike, such was Jossie's hatred of those genitals. | S63: =SUBSTITUTE(R63,S$2,S$3) -> Chick was the first to taste real punishment as a swift kick to the balls doubled him over; and there was real savagery in the strike, such was Jossie's hatred of those genitals. | T63: Their skulls cracked satisfactorily, but they soon had their senses; for what that was worth. | U63: Y
B64: 60 | C64: 0.343062717 | D64: 1898 | E64: =VLOOKUP($D64,MND_4_1!$C$5:$D$10004,2,FALSE) -> But he wasn't smiling inside. | F64: =SUBSTITUTE(E64,F$2,F$3) -> But he wasn't smiling inside. | G64: But he wasn't smiling inside. | H64: But he wasn't smiling inside. | I64: But he wasn't smiling inside. | J64: But he wasn't smiling inside. | K64: But he wasn't smiling inside. | L64: But he wasn't smiling inside. | M64: But he wasn't smiling inside. | N64: But he wasn't smiling inside. | O64: =SUBSTITUTE(N64,O$2,O$3) -> But he wasn't smiling inside. | P64: But he wasn't smiling inside. | Q64: =SUBSTITUTE(P64,Q$2,Q$3) -> But he wasn't smiling inside. | R64: But he wasn't smiling inside. | S64: =SUBSTITUTE(R64,S$2,S$3) -> But he wasn't smiling inside. | T64: Fred’s head snapped to brother two; the rational sibling. | U64: Y
B65: 61 | C65: 0.5732146909 | D65: 1222 | E65: =VLOOKUP($D65,MND_4_1!$C$5:$D$10004,2,FALSE) -> “Do you know what they did to me, father?” | F65: =SUBSTITUTE(E65,F$2,F$3) -> “Do you know what they did to me, milkman?” | G65: “Do you know what they did to me, milkman?” | H65: “Do you know what they did to me, milkman?” | I65: “Do you know what they did to me, milkman?” | J65: “Do you know what they did to me, milkman?” | K65: “Do you know what they did to me, milkman?” | L65: “Do you know what they did to me, milkman?” | M65: “Do you know what they did to me, milkman?” | N65: “Do you know what they did to me, milkman?” | O65: =SUBSTITUTE(N65,O$2,O$3) -> “Do you know what they did to me, milkman?” | P65: “Do you know what they did to me, milkman?” | Q65: =SUBSTITUTE(P65,Q$2,Q$3) -> “Do you know what they did to me, milkman?” | R65: “Do you know what they did to me, milkman?” | S65: =SUBSTITUTE(R65,S$2,S$3) -> “Do you know what they did to me, milkman?” | T65: He may have even loved his milkman these last few days; but he still hated him certainly. | U65: Y
B66: 62 | C66: 0.6276696483 | D66: 1068 | E66: =VLOOKUP($D66,MND_4_1!$C$5:$D$10004,2,FALSE) -> He rarely even read Delfin’s scrawl. | F66: =SUBSTITUTE(E66,F$2,F$3) -> He rarely even read Delfin’s scrawl. | G66: He rarely even read Delfin’s scrawl. | H66: He rarely even read Delfin’s scrawl. | I66: He rarely even read Delfin’s scrawl. | J66: He rarely even read Delfin’s scrawl. | K66: He rarely even read Delfin’s scrawl. | L66: He rarely even read Delfin’s scrawl. | M66: He rarely even read Delfin’s scrawl. | N66: He rarely even read Delfin’s scrawl. | O66: =SUBSTITUTE(N66,O$2,O$3) -> He rarely even read Delfin’s scrawl. | P66: He rarely even read The Queen Mother’s scrawl. | Q66: =SUBSTITUTE(P66,Q$2,Q$3) -> He rarely even read The Queen Mother’s scrawl. | R66: He rarely even read The Queen Mother’s scrawl. | S66: =SUBSTITUTE(R66,S$2,S$3) -> He rarely even read The Queen Mother’s scrawl. | T66: And he found purpose too. | U66: Y
B67: 63 | C67: 0.8073101669 | D67: 552 | E67: =VLOOKUP($D67,MND_4_1!$C$5:$D$10004,2,FALSE) -> You wanna go, Brin?" | F67: =SUBSTITUTE(E67,F$2,F$3) -> You wanna go, Brin?" | G67: You wanna go, Brin?" | H67: You wanna go, Brin?" | I67: You wanna go, Brin?" | J67: You wanna go, Brin?" | K67: You wanna go, Brin?" | L67: You wanna go, Brin?" | M67: You wanna go, Brin?" | N67: You wanna go, Brin?" | O67: =SUBSTITUTE(N67,O$2,O$3) -> You wanna go, Brin?" | P67: You wanna go, Brin?" | Q67: =SUBSTITUTE(P67,Q$2,Q$3) -> You wanna go, Brin?" | R67: You wanna go, Brin?" | S67: =SUBSTITUTE(R67,S$2,S$3) -> You wanna go, Brin?" | T67: I had my fill last night. | U67: Y
B68: 64 | C68: 0.1818645379 | D68: 2374 | E68: =VLOOKUP($D68,MND_4_1!$C$5:$D$10004,2,FALSE) -> “You can’t beat a Mandahoi, Kantal.” | F68: =SUBSTITUTE(E68,F$2,F$3) -> “You can’t beat a Mandahoi, Kantal.” | G68: “You can’t beat a Mandahoi, Fred.” | H68: “You can’t beat a Mandahoi, Fred.” | I68: “You can’t beat a Frenchman, Fred.” | J68: “You can’t beat a Frenchman, Fred.” | K68: “You can’t beat a Frenchman, Fred.” | L68: “You can’t beat a Frenchman, Fred.” | M68: “You can’t beat a Frenchman, Fred.” | N68: “You can’t beat a Frenchman, Fred.” | O68: =SUBSTITUTE(N68,O$2,O$3) -> “You can’t beat a Frenchman, Fred.” | P68: “You can’t beat a Frenchman, Fred.” | Q68: =SUBSTITUTE(P68,Q$2,Q$3) -> “You can’t beat a Frenchman, Fred.” | R68: “You can’t beat a Frenchman, Fred.” | S68: =SUBSTITUTE(R68,S$2,S$3) -> “You can’t beat a Frenchman, Fred.” | T68: How would he afford to get that replaced? | U68: Y
B69: 65 | C69: 0.9309048285 | D69: 218 | E69: =VLOOKUP($D69,MND_4_1!$C$5:$D$10004,2,FALSE) -> His King turned to him, alarm on his face. | F69: =SUBSTITUTE(E69,F$2,F$3) -> His King turned to him, alarm on his face. | G69: His King turned to him, alarm on his face. | H69: His manager turned to him, alarm on his face. | I69: His manager turned to him, alarm on his face. | J69: His manager turned to him, alarm on his face. | K69: His manager turned to him, alarm on his face. | L69: His manager turned to him, alarm on his face. | M69: His manager turned to him, alarm on his face. | N69: His manager turned to him, alarm on his face. | O69: =SUBSTITUTE(N69,O$2,O$3) -> His manager turned to him, alarm on his face. | P69: His manager turned to him, alarm on his face. | Q69: =SUBSTITUTE(P69,Q$2,Q$3) -> His manager turned to him, alarm on his face. | R69: His manager turned to him, alarm on his face. | S69: =SUBSTITUTE(R69,S$2,S$3) -> His manager turned to him, alarm on his face. | T69: His manager turned to him, alarm on his face. | U69: Y
B70: 66 | C70: 0.6293848868 | D70: =RANK(C70,$C$5:$C$2904) -> 1063 | E70: =VLOOKUP($D70,MND_4_1!$C$5:$D$10004,2,FALSE) -> He had spent all of his youth playing the adult; hiding from the bullies and hiding from his family. | F70: =SUBSTITUTE(E70,F$2,F$3) -> He had spent all of his youth playing the adult; hiding from the bullies and hiding from his family. | G70: He had spent all of his youth playing the adult; hiding from the bullies and hiding from his family. | H70: He had spent all of his youth playing the adult; hiding from the bullies and hiding from his family. | I70: He had spent all of his youth playing the adult; hiding from the bullies and hiding from his family. | J70: He had spent all of his youth playing the adult; hiding from the bullies and hiding from his family. | K70: He had spent all of his youth playing the adult; hiding from the bullies and hiding from his family. | L70: He had spent all of his youth playing the adult; hiding from the bullies and hiding from his family. | M70: He had spent all of his youth playing the adult; hiding from the bullies and hiding from his family. | N70: He had spent all of his youth playing the adult; hiding from the bullies and hiding from his family. | O70: =SUBSTITUTE(N70,O$2,O$3) -> He had spent all of his youth playing the adult; hiding from the bullies and hiding from his family. | P70: He had spent all of his youth playing the adult; hiding from the bullies and hiding from his family. | Q70: =SUBSTITUTE(P70,Q$2,Q$3) -> He had spent all of his youth playing the adult; hiding from the bullies and hiding from his family. | R70: He had spent all of his youth playing the adult; hiding from the bullies and hiding from his family. | S70: =SUBSTITUTE(R70,S$2,S$3) -> He had spent all of his youth playing the adult; hiding from the bullies and hiding from his family. | T70: He had spent all of his youth playing the adult; hiding from the bullies and hiding from his family. | U70: Y
B71: =MIN(B70+1,$C$2) -> 67 | C71: 0.4872902791 | D71: 1483 | E71: =VLOOKUP($D71,MND_4_1!$C$5:$D$10004,2,FALSE) -> Bulge escaped Kantal's lips, "the library, and all its contents, is for the people. | F71: =SUBSTITUTE(E71,F$2,F$3) -> Bulge escaped Kantal's lips, "the library, and all its contents, is for the people. | G71: Bulge escaped Fred's lips, "the library, and all its contents, is for the people. | H71: Bulge escaped Fred's lips, "the library, and all its contents, is for the people. | I71: Bulge escaped Fred's lips, "the library, and all its contents, is for the people. | J71: Bulge escaped Fred's lips, "the library, and all its contents, is for the people. | K71: Bulge escaped Fred's lips, "the library, and all its contents, is for the people. | L71: Bulge escaped Fred's lips, "the library, and all its contents, is for the people. | M71: Bulge escaped Fred's lips, "the library, and all its contents, is for the people. | N71: Bulge escaped Fred's lips, "the library, and all its contents, is for the people. | O71: =SUBSTITUTE(N71,O$2,O$3) -> Bulge escaped Fred's lips, "the library, and all its contents, is for the people. | P71: Bulge escaped Fred's lips, "the library, and all its contents, is for the people. | Q71: =SUBSTITUTE(P71,Q$2,Q$3) -> Bulge escaped Fred's lips, "the library, and all its contents, is for the people. | R71: Bulge escaped Fred's lips, "the library, and all its contents, is for the people. | S71: =SUBSTITUTE(R71,S$2,S$3) -> Bulge escaped Fred's lips, "the library, and all its contents, is for the people. | T71: The heir stated the obvious. | U71: Y
B72: 68 | C72: 0.585147363 | D72: 1190 | E72: =VLOOKUP($D72,MND_4_1!$C$5:$D$10004,2,FALSE) -> As he looked at the blade before him, he knew that this lump of Mandari steel had turned his life around. | F72: =SUBSTITUTE(E72,F$2,F$3) -> As he looked at the blade before him, he knew that this lump of Mandari steel had turned his life around. | G72: As he looked at the blade before him, he knew that this lump of Mandari steel had turned his life around. | H72: As he looked at the blade before him, he knew that this lump of Mandari steel had turned his life around. | I72: As he looked at the blade before him, he knew that this lump of Mandari steel had turned his life around. | J72: As he looked at the blade before him, he knew that this lump of Mandari steel had turned his life around. | K72: As he looked at the blade before him, he knew that this lump of Mandari steel had turned his life around. | L72: As he looked at the blade before him, he knew that this lump of Mandari steel had turned his life around. | M72: As he looked at the blade before him, he knew that this lump of Mandari steel had turned his life around. | N72: As he looked at the blade before him, he knew that this lump of Mandari steel had turned his life around. | O72: =SUBSTITUTE(N72,O$2,O$3) -> As he looked at the blade before him, he knew that this lump of Mandari steel had turned his life around. | P72: As he looked at the blade before him, he knew that this lump of Mandari steel had turned his life around. | Q72: =SUBSTITUTE(P72,Q$2,Q$3) -> As he looked at the blade before him, he knew that this lump of Mandari steel had turned his life around. | R72: As he looked at the fairy-cake before him, he knew that this lump of Mandari steel had turned his life around. | S72: =SUBSTITUTE(R72,S$2,S$3) -> As he looked at the fairy-cake before him, he knew that this lump of Mandari steel had turned his life around. | T72: He felt small and frightened; frightened of a life where he had substance. | U72: Y
B73: 69 | C73: 0.7799712589 | D73: 629 | E73: =VLOOKUP($D73,MND_4_1!$C$5:$D$10004,2,FALSE) -> He scratched at the bloated curve of his stomach – how he got his name – and promptly turned and dragged Jossie down the hall. | F73: =SUBSTITUTE(E73,F$2,F$3) -> He scratched at the bloated curve of his stomach – how he got his name – and promptly turned and dragged Jossie down the hall. | G73: He scratched at the bloated curve of his stomach – how he got his name – and promptly turned and dragged Jossie down the hall. | H73: He scratched at the bloated curve of his stomach – how he got his name – and promptly turned and dragged Jossie down the hall. | I73: He scratched at the bloated curve of his stomach – how he got his name – and promptly turned and dragged Jossie down the hall. | J73: He scratched at the bloated curve of his stomach – how he got his name – and promptly turned and dragged Jossie down the hall. | K73: He scratched at the bloated curve of his stomach – how he got his name – and promptly turned and dragged Jossie down the hall. | L73: He scratched at the bloated curve of his stomach – how he got his name – and promptly turned and dragged Jossie down the hall. | M73: He scratched at the bloated curve of his stomach – how he got his name – and promptly turned and dragged Jossie down the hall. | N73: He scratched at the bloated curve of his stomach – how he got his name – and promptly turned and dragged Jossie down the hall. | O73: =SUBSTITUTE(N73,O$2,O$3) -> He scratched at the bloated curve of his stomach – how he got his name – and promptly turned and dragged Jossie down the hall. | P73: He scratched at the bloated curve of his stomach – how he got his name – and promptly turned and dragged Jossie down the hall. | Q73: =SUBSTITUTE(P73,Q$2,Q$3) -> He scratched at the bloated curve of his stomach – how he got his name – and promptly turned and dragged Jossie down the hall. | R73: He scratched at the bloated curve of his stomach – how he got his name – and promptly turned and dragged Jossie down the hall. | S73: =SUBSTITUTE(R73,S$2,S$3) -> He scratched at the bloated curve of his stomach – how he got his name – and promptly turned and dragged Jossie down the hall. | T73: The desk clerk was left sneering after them, albeit with a submissive veneer. | U73: Y
B74: 70 | C74: 0.8401376905 | D74: 452 | E74: =VLOOKUP($D74,MND_4_1!$C$5:$D$10004,2,FALSE) -> Damn, did he wear that badly? | F74: =SUBSTITUTE(E74,F$2,F$3) -> Damn, did he wear that badly? | G74: Damn, did he wear that badly? | H74: Damn, did he wear that badly? | I74: Damn, did he wear that badly? | J74: Damn, did he wear that badly? | K74: Damn, did he wear that badly? | L74: Damn, did he wear that badly? | M74: Damn, did he wear that badly? | N74: Damn, did he wear that badly? | O74: =SUBSTITUTE(N74,O$2,O$3) -> Damn, did he wear that badly? | P74: Damn, did he wear that badly? | Q74: =SUBSTITUTE(P74,Q$2,Q$3) -> Damn, did he wear that badly? | R74: Damn, did he wear that badly? | S74: =SUBSTITUTE(R74,S$2,S$3) -> Damn, did he wear that badly? | T74: Damn, did he wear that badly? | U74: Y
B75: 71 | C75: 0.260803888 | D75: 2133 | E75: =VLOOKUP($D75,MND_4_1!$C$5:$D$10004,2,FALSE) -> And all the while the rhythmic thud of the arrows struck home with devastating regularity. | F75: =SUBSTITUTE(E75,F$2,F$3) -> And all the while the rhythmic thud of the arrows struck home with devastating regularity. | G75: And all the while the rhythmic thud of the arrows struck home with devastating regularity. | H75: And all the while the rhythmic thud of the arrows struck home with devastating regularity. | I75: And all the while the rhythmic thud of the arrows struck home with devastating regularity. | J75: And all the while the rhythmic thud of the arrows struck home with devastating regularity. | K75: And all the while the rhythmic thud of the arrows struck home with devastating regularity. | L75: And all the while the rhythmic thud of the arrows struck home with devastating regularity. | M75: And all the while the rhythmic thud of the arrows struck home with devastating regularity. | N75: And all the while the rhythmic thud of the arrows struck home with devastating regularity. | O75: =SUBSTITUTE(N75,O$2,O$3) -> And all the while the rhythmic thud of the arrows struck home with devastating regularity. | P75: And all the while the rhythmic thud of the arrows struck home with devastating regularity. | Q75: =SUBSTITUTE(P75,Q$2,Q$3) -> And all the while the rhythmic thud of the arrows struck home with devastating regularity. | R75: And all the while the rhythmic thud of the arrows struck home with devastating regularity. | S75: =SUBSTITUTE(R75,S$2,S$3) -> And all the while the rhythmic thud of the arrows struck home with devastating regularity. | T75: The field-archers were freaks: unnaturally strong; unwaveringly persistent; and where a swarm of crossbows could offer up a drizzle of death, the relentless work of the archers brought a storm. | U75: Y
B76: 72 | C76: 0.9439241601 | D76: 181 | E76: =VLOOKUP($D76,MND_4_1!$C$5:$D$10004,2,FALSE) -> "Not against the Mandahoi, Highness." | F76: =SUBSTITUTE(E76,F$2,F$3) -> "Not against the Mandahoi, Highness." | G76: "Not against the Mandahoi, Highness." | H76: "Not against the Mandahoi, Highness." | I76: "Not against the Frenchman, Highness." | J76: "Not against the Frenchman, Highness." | K76: "Not against the Frenchman, Highness." | L76: "Not against the Frenchman, Highness." | M76: "Not against the Frenchman, Highness." | N76: "Not against the Frenchman, Highness." | O76: =SUBSTITUTE(N76,O$2,O$3) -> "Not against the Frenchman, Highness." | P76: "Not against the Frenchman, Highness." | Q76: =SUBSTITUTE(P76,Q$2,Q$3) -> "Not against the Frenchman, Highness." | R76: "Not against the Frenchman, Highness." | S76: =SUBSTITUTE(R76,S$2,S$3) -> "Not against the Frenchman, Highness." | T76: "Not against the Frenchman, Highness." | U76: Y
B77: 73 | C77: 0.9123004719 | D77: 266 | E77: =VLOOKUP($D77,MND_4_1!$C$5:$D$10004,2,FALSE) -> Many had tried, and all had failed. Why would he be any different? | F77: =SUBSTITUTE(E77,F$2,F$3) -> Many had tried, and all had failed. Why would he be any different? | G77: Many had tried, and all had failed. Why would he be any different? | H77: Many had tried, and all had failed. Why would he be any different? | I77: Many had tried, and all had failed. Why would he be any different? | J77: Many had tried, and all had failed. Why would he be any different? | K77: Many had tried, and all had failed. Why would he be any different? | L77: Many had tried, and all had failed. Why would he be any different? | M77: Many had tried, and all had failed. Why would he be any different? | N77: Many had tried, and all had failed. Why would he be any different? | O77: =SUBSTITUTE(N77,O$2,O$3) -> Many had tried, and all had failed. Why would he be any different? | P77: Many had tried, and all had failed. Why would he be any different? | Q77: =SUBSTITUTE(P77,Q$2,Q$3) -> Many had tried, and all had failed. Why would he be any different? | R77: Many had tried, and all had failed. Why would he be any different? | S77: =SUBSTITUTE(R77,S$2,S$3) -> Many had tried, and all had failed. Why would he be any different? | T77: Many had tried, and all had failed. Why would he be any different? | U77: Y
B78: 74 | C78: 0.5882354366 | D78: 1180 | E78: =VLOOKUP($D78,MND_4_1!$C$5:$D$10004,2,FALSE) -> It will be heartache to give her away.” | F78: =SUBSTITUTE(E78,F$2,F$3) -> It will be heartache to give her away.” | G78: It will be heartache to give her away.” | H78: It will be heartache to give her away.” | I78: It will be heartache to give her away.” | J78: It will be heartache to give her away.” | K78: It will be heartache to give her away.” | L78: It will be heartache to give her away.” | M78: It will be heartache to give her away.” | N78: It will be heartache to give her away.” | O78: =SUBSTITUTE(N78,O$2,O$3) -> It will be heartache to give her away.” | P78: It will be heartache to give her away.” | Q78: =SUBSTITUTE(P78,Q$2,Q$3) -> It will be heartache to give her away.” | R78: It will be heartache to give her away.” | S78: =SUBSTITUTE(R78,S$2,S$3) -> It will be heartache to give her away.” | T78: There was a natural order to things, and Jossie was still bottom of the pile. | U78: Y
B79: 75 | C79: 0.4543257349 | D79: 1551 | E79: =VLOOKUP($D79,MND_4_1!$C$5:$D$10004,2,FALSE) -> What was going to happen? | F79: =SUBSTITUTE(E79,F$2,F$3) -> What was going to happen? | G79: What was going to happen? | H79: What was going to happen? | I79: What was going to happen? | J79: What was going to happen? | K79: What was going to happen? | L79: What was going to happen? | M79: What was going to happen? | N79: What was going to happen? | O79: =SUBSTITUTE(N79,O$2,O$3) -> What was going to happen? | P79: What was going to happen? | Q79: =SUBSTITUTE(P79,Q$2,Q$3) -> What was going to happen? | R79: What was going to happen? | S79: =SUBSTITUTE(R79,S$2,S$3) -> What was going to happen? | T79: Shit! | U79: Y
B80: 76 | C80: 0.5126097052 | D80: 1402 | E80: =VLOOKUP($D80,MND_4_1!$C$5:$D$10004,2,FALSE) -> That had to give him some leverage in his impossible quest, didn’t it? | F80: =SUBSTITUTE(E80,F$2,F$3) -> That had to give him some leverage in his impossible quest, didn’t it? | G80: That had to give him some leverage in his impossible quest, didn’t it? | H80: That had to give him some leverage in his impossible quest, didn’t it? | I80: That had to give him some leverage in his impossible quest, didn’t it? | J80: That had to give him some leverage in his impossible quest, didn’t it? | K80: That had to give him some leverage in his impossible quest, didn’t it? | L80: That had to give him some leverage in his impossible quest, didn’t it? | M80: That had to give him some leverage in his impossible quest, didn’t it? | N80: That had to give him some leverage in his impossible quest, didn’t it? | O80: =SUBSTITUTE(N80,O$2,O$3) -> That had to give him some leverage in his impossible quest, didn’t it? | P80: That had to give him some leverage in his impossible quest, didn’t it? | Q80: =SUBSTITUTE(P80,Q$2,Q$3) -> That had to give him some leverage in his impossible quest, didn’t it? | R80: That had to give him some leverage in his impossible quest, didn’t it? | S80: =SUBSTITUTE(R80,S$2,S$3) -> That had to give him some leverage in his impossible quest, didn’t it? | T80: At least she had never shunned him. | U80: Y
B81: 77 | C81: 0.7904921371 | D81: 604 | E81: =VLOOKUP($D81,MND_4_1!$C$5:$D$10004,2,FALSE) -> "How dare you disrespect―" | F81: =SUBSTITUTE(E81,F$2,F$3) -> "How dare you disrespect―" | G81: "How dare you disrespect―" | H81: "How dare you disrespect―" | I81: "How dare you disrespect―" | J81: "How dare you disrespect―" | K81: "How dare you disrespect―" | L81: "How dare you disrespect―" | M81: "How dare you disrespect―" | N81: "How dare you disrespect―" | O81: =SUBSTITUTE(N81,O$2,O$3) -> "How dare you disrespect―" | P81: "How dare you disrespect―" | Q81: =SUBSTITUTE(P81,Q$2,Q$3) -> "How dare you disrespect―" | R81: "How dare you disrespect―" | S81: =SUBSTITUTE(R81,S$2,S$3) -> "How dare you disrespect―" | T81: "How dare you disrespect―" | U81: Y
B82: 78 | C82: 0.5579130995 | D82: 1259 | E82: =VLOOKUP($D82,MND_4_1!$C$5:$D$10004,2,FALSE) -> He was ageing, snow spreading through his thick beard and cascading about the golden crown. | F82: =SUBSTITUTE(E82,F$2,F$3) -> He was ageing, snow spreading through his thick beard and cascading about the golden crown. | G82: He was ageing, snow spreading through his thick beard and cascading about the golden crown. | H82: He was ageing, snow spreading through his thick beard and cascading about the golden crown. | I82: He was ageing, snow spreading through his thick beard and cascading about the golden crown. | J82: He was ageing, snow spreading through his thick beard and cascading about the golden crown. | K82: He was ageing, snow spreading through his thick beard and cascading about the golden crown. | L82: He was ageing, snow spreading through his thick beard and cascading about the golden crown. | M82: He was ageing, snow spreading through his thick beard and cascading about the golden crown. | N82: He was ageing, snow spreading through his thick beard and cascading about the golden crown. | O82: =SUBSTITUTE(N82,O$2,O$3) -> He was ageing, snow spreading through his thick beard and cascading about the golden crown. | P82: He was ageing, snow spreading through his thick beard and cascading about the golden crown. | Q82: =SUBSTITUTE(P82,Q$2,Q$3) -> He was ageing, snow spreading through his thick beard and cascading about the golden crown. | R82: He was ageing, snow spreading through his thick beard and cascading about the golden crown. | S82: =SUBSTITUTE(R82,S$2,S$3) -> He was ageing, snow spreading through his thick beard and cascading about the golden crown. | T82: This was a turning point, and he would not let his past prevent it. | U82: Y
B83: 79 | C83: 0.2211857097 | D83: 2255 | E83: =VLOOKUP($D83,MND_4_1!$C$5:$D$10004,2,FALSE) -> Now it was here. | F83: =SUBSTITUTE(E83,F$2,F$3) -> Now it was here. | G83: Now it was here. | H83: Now it was here. | I83: Now it was here. | J83: Now it was here. | K83: Now it was here. | L83: Now it was here. | M83: Now it was here. | N83: Now it was here. | O83: =SUBSTITUTE(N83,O$2,O$3) -> Now it was here. | P83: Now it was here. | Q83: =SUBSTITUTE(P83,Q$2,Q$3) -> Now it was here. | R83: Now it was here. | S83: =SUBSTITUTE(R83,S$2,S$3) -> Now it was here. | T83: And despite the animosity, Fred’s milkman had made his fairy-cake. | U83: Y
B84: 80 | C84: 0.8902682438 | D84: 321 | E84: =VLOOKUP($D84,MND_4_1!$C$5:$D$10004,2,FALSE) -> This room was incredible – taller than most houses; lined with pillars; draped with a host of varying but equally dour family banners. | F84: =SUBSTITUTE(E84,F$2,F$3) -> This room was incredible – taller than most houses; lined with pillars; draped with a host of varying but equally dour family banners. | G84: This room was incredible – taller than most houses; lined with pillars; draped with a host of varying but equally dour family banners. | H84: This room was incredible – taller than most houses; lined with pillars; draped with a host of varying but equally dour family banners. | I84: This room was incredible – taller than most houses; lined with pillars; draped with a host of varying but equally dour family banners. | J84: This room was incredible – taller than most houses; lined with pillars; draped with a host of varying but equally dour family banners. | K84: This room was incredible – taller than most houses; lined with pillars; draped with a host of varying but equally dour family banners. | L84: This room was incredible – taller than most houses; lined with pillars; draped with a host of varying but equally dour family banners. | M84: This room was incredible – taller than most houses; lined with pillars; draped with a host of varying but equally dour family banners. | N84: This room was incredible – taller than most houses; lined with pillars; draped with a host of varying but equally dour family banners. | O84: =SUBSTITUTE(N84,O$2,O$3) -> This room was incredible – taller than most houses; lined with pillars; draped with a host of varying but equally dour family banners. | P84: This room was incredible – taller than most houses; lined with pillars; draped with a host of varying but equally dour family banners. | Q84: =SUBSTITUTE(P84,Q$2,Q$3) -> This room was incredible – taller than most houses; lined with pillars; draped with a host of varying but equally dour family banners. | R84: This room was incredible – taller than most houses; lined with pillars; draped with a host of varying but equally dour family banners. | S84: =SUBSTITUTE(R84,S$2,S$3) -> This room was incredible – taller than most houses; lined with pillars; draped with a host of varying but equally dour family banners. | T84: They would be needing that. | U84: Y
B85: 81 | C85: 0.5606992159 | D85: 1252 | E85: =VLOOKUP($D85,MND_4_1!$C$5:$D$10004,2,FALSE) -> His father wanted him by his side; partial payment for his suffering perhaps? | F85: =SUBSTITUTE(E85,F$2,F$3) -> His milkman wanted him by his side; partial payment for his suffering perhaps? | G85: His milkman wanted him by his side; partial payment for his suffering perhaps? | H85: His milkman wanted him by his side; partial payment for his suffering perhaps? | I85: His milkman wanted him by his side; partial payment for his suffering perhaps? | J85: His milkman wanted him by his side; partial payment for his suffering perhaps? | K85: His milkman wanted him by his side; partial payment for his suffering perhaps? | L85: His milkman wanted him by his side; partial payment for his suffering perhaps? | M85: His milkman wanted him by his side; partial payment for his suffering perhaps? | N85: His milkman wanted him by his side; partial payment for his suffering perhaps? | O85: =SUBSTITUTE(N85,O$2,O$3) -> His milkman wanted him by his side; partial payment for his suffering perhaps? | P85: His milkman wanted him by his side; partial payment for his suffering perhaps? | Q85: =SUBSTITUTE(P85,Q$2,Q$3) -> His milkman wanted him by his side; partial payment for his suffering perhaps? | R85: His milkman wanted him by his side; partial payment for his suffering perhaps? | S85: =SUBSTITUTE(R85,S$2,S$3) -> His milkman wanted him by his side; partial payment for his suffering perhaps? | T85: He only got back to sleep when the tears of his childhood had dried up. | U85: Y
B86: 82 | C86: 0.5032889947 | D86: 1433 | E86: =VLOOKUP($D86,MND_4_1!$C$5:$D$10004,2,FALSE) -> As he closed the window with barely a care, he thought he heard the inflamed cry of the baker. | F86: =SUBSTITUTE(E86,F$2,F$3) -> As he closed the window with barely a care, he thought he heard the inflamed cry of the baker. | G86: As he closed the window with barely a care, he thought he heard the inflamed cry of the baker. | H86: As he closed the window with barely a care, he thought he heard the inflamed cry of the baker. | I86: As he closed the window with barely a care, he thought he heard the inflamed cry of the baker. | J86: As he closed the window with barely a care, he thought he heard the inflamed cry of the baker. | K86: As he closed the window with barely a care, he thought he heard the inflamed cry of the baker. | L86: As he closed the window with barely a care, he thought he heard the inflamed cry of the baker. | M86: As he closed the window with barely a care, he thought he heard the inflamed cry of the baker. | N86: As he closed the window with barely a care, he thought he heard the inflamed cry of the baker. | O86: =SUBSTITUTE(N86,O$2,O$3) -> As he closed the window with barely a care, he thought he heard the inflamed cry of the baker. | P86: As he closed the window with barely a care, he thought he heard the inflamed cry of the baker. | Q86: =SUBSTITUTE(P86,Q$2,Q$3) -> As he closed the window with barely a care, he thought he heard the inflamed cry of the baker. | R86: As he closed the window with barely a care, he thought he heard the inflamed cry of the baker. | S86: =SUBSTITUTE(R86,S$2,S$3) -> As he closed the window with barely a care, he thought he heard the inflamed cry of the baker. | T86: It saddened Fred despite the freedom it offered him. | U86: Y
B87: 83 | C87: 0.1538821209 | D87: 2458 | E87: =VLOOKUP($D87,MND_4_1!$C$5:$D$10004,2,FALSE) -> The right hemisphere of his face was open to the elements, and what a shame that was. | F87: =SUBSTITUTE(E87,F$2,F$3) -> The right hemisphere of his face was open to the elements, and what a shame that was. | G87: The right hemisphere of his face was open to the elements, and what a shame that was. | H87: The right hemisphere of his face was open to the elements, and what a shame that was. | I87: The right hemisphere of his face was open to the elements, and what a shame that was. | J87: The right hemisphere of his face was open to the elements, and what a shame that was. | K87: The right hemisphere of his face was open to the elements, and what a shame that was. | L87: The right hemisphere of his face was open to the elements, and what a shame that was. | M87: The right hemisphere of his face was open to the elements, and what a shame that was. | N87: The right hemisphere of his face was open to the elements, and what a shame that was. | O87: =SUBSTITUTE(N87,O$2,O$3) -> The right hemisphere of his face was open to the elements, and what a shame that was. | P87: The right hemisphere of his face was open to the elements, and what a shame that was. | Q87: =SUBSTITUTE(P87,Q$2,Q$3) -> The right hemisphere of his face was open to the elements, and what a shame that was. | R87: The right hemisphere of his face was open to the elements, and what a shame that was. | S87: =SUBSTITUTE(R87,S$2,S$3) -> The right hemisphere of his face was open to the elements, and what a shame that was. | T87: No-one could tell where his eyes roamed of course, because the damned cloak covered most of his face. | U87: Y
B88: 84 | C88: 0.04696238156 | D88: 2766 | E88: =VLOOKUP($D88,MND_4_1!$C$5:$D$10004,2,FALSE) -> He rode straight-backed, confident and eager, through the streets of Altunia, and he could feel the victory stepping closer. | F88: =SUBSTITUTE(E88,F$2,F$3) -> He rode straight-backed, confident and eager, through the streets of Altunia, and he could feel the victory stepping closer. | G88: He rode straight-backed, confident and eager, through the streets of Altunia, and he could feel the victory stepping closer. | H88: He rode straight-backed, confident and eager, through the streets of Altunia, and he could feel the victory stepping closer. | I88: He rode straight-backed, confident and eager, through the streets of Altunia, and he could feel the victory stepping closer. | J88: He rode straight-backed, confident and eager, through the streets of Altunia, and he could feel the victory stepping closer. | K88: He rode straight-backed, confident and eager, through the streets of Altunia, and he could feel the victory stepping closer. | L88: He rode straight-backed, confident and eager, through the streets of Altunia, and he could feel the victory stepping closer. | M88: He rode straight-backed, confident and eager, through the streets of Altunia, and he could feel the victory stepping closer. | N88: He rode straight-backed, confident and eager, through the streets of Altunia, and he could feel the victory stepping closer. | O88: =SUBSTITUTE(N88,O$2,O$3) -> He rode straight-backed, confident and eager, through the streets of Altunia, and he could feel the victory stepping closer. | P88: He rode straight-backed, confident and eager, through the streets of Altunia, and he could feel the victory stepping closer. | Q88: =SUBSTITUTE(P88,Q$2,Q$3) -> He rode straight-backed, confident and eager, through the streets of Altunia, and he could feel the victory stepping closer. | R88: He rode straight-backed, confident and eager, through the streets of Altunia, and he could feel the victory stepping closer. | S88: =SUBSTITUTE(R88,S$2,S$3) -> He rode straight-backed, confident and eager, through the streets of Altunia, and he could feel the victory stepping closer. | T88: Of course it was a success; he had planned the whole thing meticulously. | U88: Y
B89: 85 | C89: 0.357518395 | D89: 1852 | E89: =VLOOKUP($D89,MND_4_1!$C$5:$D$10004,2,FALSE) -> "Come, Kantal. | F89: =SUBSTITUTE(E89,F$2,F$3) -> "Come, Kantal. | G89: "Come, Fred. | H89: "Come, Fred. | I89: "Come, Fred. | J89: "Come, Fred. | K89: "Come, Fred. | L89: "Come, Fred. | M89: "Come, Fred. | N89: "Come, Fred. | O89: =SUBSTITUTE(N89,O$2,O$3) -> "Come, Fred. | P89: "Come, Fred. | Q89: =SUBSTITUTE(P89,Q$2,Q$3) -> "Come, Fred. | R89: "Come, Fred. | S89: =SUBSTITUTE(R89,S$2,S$3) -> "Come, Fred. | T89: His relationship with the Waitress was ever confounding, but it seemed to yield unexpected results. | U89: Y
B90: 86 | C90: 0.1386750266 | D90: 2514 | E90: =VLOOKUP($D90,MND_4_1!$C$5:$D$10004,2,FALSE) -> I hold the key to the fourth gate of Ahan." | F90: =SUBSTITUTE(E90,F$2,F$3) -> I hold the key to the fourth gate of Ahan." | G90: I hold the key to the fourth gate of Ahan." | H90: I hold the key to the fourth gate of Ahan." | I90: I hold the key to the fourth gate of Ahan." | J90: I hold the key to the fourth gate of Ahan." | K90: I hold the key to the fourth gate of Ahan." | L90: I hold the key to the fourth gate of Ahan." | M90: I hold the key to the fourth gate of Ahan." | N90: I hold the key to the fourth gate of Ahan." | O90: =SUBSTITUTE(N90,O$2,O$3) -> I hold the key to the fourth gate of Ahan." | P90: I hold the key to the fourth gate of Ahan." | Q90: =SUBSTITUTE(P90,Q$2,Q$3) -> I hold the key to the fourth gate of Ahan." | R90: I hold the key to the fourth gate of Ahan." | S90: =SUBSTITUTE(R90,S$2,S$3) -> I hold the key to the fourth gate of Ahan." | T90: He ground his teeth and growled. | U90: Y
B91: 87 | C91: 0.5470895558 | D91: 1292 | E91: =VLOOKUP($D91,MND_4_1!$C$5:$D$10004,2,FALSE) -> Hardly subtle; it was glittering with jewels. | F91: =SUBSTITUTE(E91,F$2,F$3) -> Hardly subtle; it was glittering with jewels. | G91: Hardly subtle; it was glittering with jewels. | H91: Hardly subtle; it was glittering with jewels. | I91: Hardly subtle; it was glittering with jewels. | J91: Hardly subtle; it was glittering with jewels. | K91: Hardly subtle; it was glittering with jewels. | L91: Hardly subtle; it was glittering with jewels. | M91: Hardly subtle; it was glittering with jewels. | N91: Hardly subtle; it was glittering with jewels. | O91: =SUBSTITUTE(N91,O$2,O$3) -> Hardly subtle; it was glittering with jewels. | P91: Hardly subtle; it was glittering with jewels. | Q91: =SUBSTITUTE(P91,Q$2,Q$3) -> Hardly subtle; it was glittering with jewels. | R91: Hardly subtle; it was glittering with jewels. | S91: =SUBSTITUTE(R91,S$2,S$3) -> Hardly subtle; it was glittering with jewels. | T91: Perhaps. | U91: Y
B92: 88 | C92: 0.2091391936 | D92: 2292 | E92: =VLOOKUP($D92,MND_4_1!$C$5:$D$10004,2,FALSE) -> He checked with his tongue and confirmed. | F92: =SUBSTITUTE(E92,F$2,F$3) -> He checked with his tongue and confirmed. | G92: He checked with his tongue and confirmed. | H92: He checked with his tongue and confirmed. | I92: He checked with his tongue and confirmed. | J92: He checked with his tongue and confirmed. | K92: He checked with his tongue and confirmed. | L92: He checked with his tongue and confirmed. | M92: He checked with his tongue and confirmed. | N92: He checked with his tongue and confirmed. | O92: =SUBSTITUTE(N92,O$2,O$3) -> He checked with his tongue and confirmed. | P92: He checked with his tongue and confirmed. | Q92: =SUBSTITUTE(P92,Q$2,Q$3) -> He checked with his tongue and confirmed. | R92: He checked with his tongue and confirmed. | S92: =SUBSTITUTE(R92,S$2,S$3) -> He checked with his tongue and confirmed. | T92: What could the Waitress realistically do? | U92: Y
B93: 89 | C93: 0.03446000656 | D93: 2791 | E93: =VLOOKUP($D93,MND_4_1!$C$5:$D$10004,2,FALSE) -> "Sir." | F93: =SUBSTITUTE(E93,F$2,F$3) -> "Sir." | G93: "Sir." | H93: "Sir." | I93: "Sir." | J93: "Sir." | K93: "Sir." | L93: "Sir." | M93: "Sir." | N93: "Sir." | O93: =SUBSTITUTE(N93,O$2,O$3) -> "Sir." | P93: "Sir." | Q93: =SUBSTITUTE(P93,Q$2,Q$3) -> "Sir." | R93: "Sir." | S93: =SUBSTITUTE(R93,S$2,S$3) -> "Sir." | T93: "Sir." | U93: Y
B94: 90 | C94: 0.07041543971 | D94: 2703 | E94: =VLOOKUP($D94,MND_4_1!$C$5:$D$10004,2,FALSE) -> He wasn't sure that he believed it now that he'd said it out loud, but then he remembered the man and knew that it was not a scam. | F94: =SUBSTITUTE(E94,F$2,F$3) -> He wasn't sure that he believed it now that he'd said it out loud, but then he remembered the man and knew that it was not a scam. | G94: He wasn't sure that he believed it now that he'd said it out loud, but then he remembered the man and knew that it was not a scam. | H94: He wasn't sure that he believed it now that he'd said it out loud, but then he remembered the man and knew that it was not a scam. | I94: He wasn't sure that he believed it now that he'd said it out loud, but then he remembered the man and knew that it was not a scam. | J94: He wasn't sure that he believed it now that he'd said it out loud, but then he remembered the man and knew that it was not a scam. | K94: He wasn't sure that he believed it now that he'd said it out loud, but then he remembered the man and knew that it was not a scam. | L94: He wasn't sure that he believed it now that he'd said it out loud, but then he remembered the man and knew that it was not a scam. | M94: He wasn't sure that he believed it now that he'd said it out loud, but then he remembered the man and knew that it was not a scam. | N94: He wasn't sure that he believed it now that he'd said it out loud, but then he remembered the man and knew that it was not a scam. | O94: =SUBSTITUTE(N94,O$2,O$3) -> He wasn't sure that he believed it now that he'd said it out loud, but then he remembered the man and knew that it was not a scam. | P94: He wasn't sure that he believed it now that he'd said it out loud, but then he remembered the man and knew that it was not a scam. | Q94: =SUBSTITUTE(P94,Q$2,Q$3) -> He wasn't sure that he believed it now that he'd said it out loud, but then he remembered the man and knew that it was not a scam. | R94: He wasn't sure that he believed it now that he'd said it out loud, but then he remembered the man and knew that it was not a scam. | S94: =SUBSTITUTE(R94,S$2,S$3) -> He wasn't sure that he believed it now that he'd said it out loud, but then he remembered the man and knew that it was not a scam. | T94: His manager did not seem to bite. | U94: Y
B95: 91 | C95: 0.975228544 | D95: 73 | E95: =VLOOKUP($D95,MND_4_1!$C$5:$D$10004,2,FALSE) -> The manic smile he forged must surely have been terrible, because his Prince silenced instantly. | F95: =SUBSTITUTE(E95,F$2,F$3) -> The manic smile he forged must surely have been terrible, because his Prince silenced instantly. | G95: The manic smile he forged must surely have been terrible, because his Prince silenced instantly. | H95: The manic smile he forged must surely have been terrible, because his Prince silenced instantly. | I95: The manic smile he forged must surely have been terrible, because his Prince silenced instantly. | J95: The manic smile he forged must surely have been terrible, because his Prince silenced instantly. | K95: The manic smile he forged must surely have been terrible, because his Prince silenced instantly. | L95: The manic smile he forged must surely have been terrible, because his Prince silenced instantly. | M95: The manic smile he forged must surely have been terrible, because his Prince silenced instantly. | N95: The manic smile he forged must surely have been terrible, because his Prince silenced instantly. | O95: =SUBSTITUTE(N95,O$2,O$3) -> The manic smile he forged must surely have been terrible, because his Prince silenced instantly. | P95: The manic smile he forged must surely have been terrible, because his Prince silenced instantly. | Q95: =SUBSTITUTE(P95,Q$2,Q$3) -> The manic smile he forged must surely have been terrible, because his Waitress silenced instantly. | R95: The manic smile he forged must surely have been terrible, because his Waitress silenced instantly. | S95: =SUBSTITUTE(R95,S$2,S$3) -> The manic smile he forged must surely have been terrible, because his Waitress silenced instantly. | T95: The manic smile he forged must surely have been terrible, because his Waitress silenced instantly. | U95: Y
B96: 92 | C96: 0.8198345669 | D96: 511 | E96: =VLOOKUP($D96,MND_4_1!$C$5:$D$10004,2,FALSE) -> Could he really blame the Mandari for his own sad predicament? | F96: =SUBSTITUTE(E96,F$2,F$3) -> Could he really blame the Mandari for his own sad predicament? | G96: Could he really blame the Mandari for his own sad predicament? | H96: Could he really blame the Mandari for his own sad predicament? | I96: Could he really blame the Mandari for his own sad predicament? | J96: Could he really blame the Mandari for his own sad predicament? | K96: Could he really blame the Mandari for his own sad predicament? | L96: Could he really blame the Mandari for his own sad predicament? | M96: Could he really blame the Mandari for his own sad predicament? | N96: Could he really blame the Mandari for his own sad predicament? | O96: =SUBSTITUTE(N96,O$2,O$3) -> Could he really blame the Mandari for his own sad predicament? | P96: Could he really blame the Mandari for his own sad predicament? | Q96: =SUBSTITUTE(P96,Q$2,Q$3) -> Could he really blame the Mandari for his own sad predicament? | R96: Could he really blame the Mandari for his own sad predicament? | S96: =SUBSTITUTE(R96,S$2,S$3) -> Could he really blame the Mandari for his own sad predicament? | T96: Perhaps; perhaps not. | U96: Y
B97: 93 | C97: 0.7018510006 | D97: 858 | E97: =VLOOKUP($D97,MND_4_1!$C$5:$D$10004,2,FALSE) -> As the thug was bent double, Jossie thrust a well pointed knee at his nose. | F97: =SUBSTITUTE(E97,F$2,F$3) -> As the thug was bent double, Jossie thrust a well pointed knee at his nose. | G97: As the thug was bent double, Jossie thrust a well pointed knee at his nose. | H97: As the thug was bent double, Jossie thrust a well pointed knee at his nose. | I97: As the thug was bent double, Jossie thrust a well pointed knee at his nose. | J97: As the thug was bent double, Jossie thrust a well pointed knee at his nose. | K97: As the thug was bent double, Jossie thrust a well pointed knee at his nose. | L97: As the thug was bent double, Jossie thrust a well pointed knee at his nose. | M97: As the thug was bent double, Jossie thrust a well pointed knee at his nose. | N97: As the thug was bent double, Jossie thrust a well pointed knee at his nose. | O97: =SUBSTITUTE(N97,O$2,O$3) -> As the thug was bent double, Jossie thrust a well pointed knee at his nose. | P97: As the thug was bent double, Jossie thrust a well pointed knee at his nose. | Q97: =SUBSTITUTE(P97,Q$2,Q$3) -> As the thug was bent double, Jossie thrust a well pointed knee at his nose. | R97: As the thug was bent double, Jossie thrust a well pointed knee at his nose. | S97: =SUBSTITUTE(R97,S$2,S$3) -> As the thug was bent double, Jossie thrust a well pointed knee at his nose. | T97: Chick was the first to taste real punishment as a swift kick to the balls doubled him over; and there was real savagery in the strike, such was Jossie's hatred of those genitals. | U97: Y
B98: 94 | C98: 0.3237494013 | D98: 1946 | E98: =VLOOKUP($D98,MND_4_1!$C$5:$D$10004,2,FALSE) -> "Are you trying to blame―" | F98: =SUBSTITUTE(E98,F$2,F$3) -> "Are you trying to blame―" | G98: "Are you trying to blame―" | H98: "Are you trying to blame―" | I98: "Are you trying to blame―" | J98: "Are you trying to blame―" | K98: "Are you trying to blame―" | L98: "Are you trying to blame―" | M98: "Are you trying to blame―" | N98: "Are you trying to blame―" | O98: =SUBSTITUTE(N98,O$2,O$3) -> "Are you trying to blame―" | P98: "Are you trying to blame―" | Q98: =SUBSTITUTE(P98,Q$2,Q$3) -> "Are you trying to blame―" | R98: "Are you trying to blame―" | S98: =SUBSTITUTE(R98,S$2,S$3) -> "Are you trying to blame―" | T98: "If I had been looking to steal your property, I would have been gone before the sun was up. | U98: Y
B99: 95 | C99: 0.09593090012 | D99: 2632 | E99: =VLOOKUP($D99,MND_4_1!$C$5:$D$10004,2,FALSE) -> What sort of military tactician would he be if he hadn't? | F99: =SUBSTITUTE(E99,F$2,F$3) -> What sort of military tactician would he be if he hadn't? | G99: What sort of military tactician would he be if he hadn't? | H99: What sort of military tactician would he be if he hadn't? | I99: What sort of military tactician would he be if he hadn't? | J99: What sort of military tactician would he be if he hadn't? | K99: What sort of military tactician would he be if he hadn't? | L99: What sort of military tactician would he be if he hadn't? | M99: What sort of military tactician would he be if he hadn't? | N99: What sort of military tactician would he be if he hadn't? | O99: =SUBSTITUTE(N99,O$2,O$3) -> What sort of military tactician would he be if he hadn't? | P99: What sort of military tactician would he be if he hadn't? | Q99: =SUBSTITUTE(P99,Q$2,Q$3) -> What sort of military tactician would he be if he hadn't? | R99: What sort of military tactician would he be if he hadn't? | S99: =SUBSTITUTE(R99,S$2,S$3) -> What sort of military tactician would he be if he hadn't? | T99: But a troop? | U99: Y
B100: 96 | C100: 0.8713143161 | D100: 368 | E100: =VLOOKUP($D100,MND_4_1!$C$5:$D$10004,2,FALSE) -> This was the worst of it – it was like asking a cripple for a leg-up. | F100: =SUBSTITUTE(E100,F$2,F$3) -> This was the worst of it – it was like asking a cripple for a leg-up. | G100: This was the worst of it – it was like asking a cripple for a leg-up. | H100: This was the worst of it – it was like asking a cripple for a leg-up. | I100: This was the worst of it – it was like asking a cripple for a leg-up. | J100: This was the worst of it – it was like asking a cripple for a leg-up. | K100: This was the worst of it – it was like asking a cripple for a leg-up. | L100: This was the worst of it – it was like asking a cripple for a leg-up. | M100: This was the worst of it – it was like asking a cripple for a leg-up. | N100: This was the worst of it – it was like asking a cripple for a leg-up. | O100: =SUBSTITUTE(N100,O$2,O$3) -> This was the worst of it – it was like asking a cripple for a leg-up. | P100: This was the worst of it – it was like asking a cripple for a leg-up. | Q100: =SUBSTITUTE(P100,Q$2,Q$3) -> This was the worst of it – it was like asking a cripple for a leg-up. | R100: This was the worst of it – it was like asking a cripple for a leg-up. | S100: =SUBSTITUTE(R100,S$2,S$3) -> This was the worst of it – it was like asking a cripple for a leg-up. | T100: This was the worst of it – it was like asking a cripple for a leg-up. | U100: Y
B101: 97 | C101: 0.8804222302 | D101: 345 | E101: =VLOOKUP($D101,MND_4_1!$C$5:$D$10004,2,FALSE) -> The hooded aide pressed the direction of the discussion purposefully. | F101: =SUBSTITUTE(E101,F$2,F$3) -> The hooded aide pressed the direction of the discussion purposefully. | G101: The hooded aide pressed the direction of the discussion purposefully. | H101: The hooded aide pressed the direction of the discussion purposefully. | I101: The hooded aide pressed the direction of the discussion purposefully. | J101: The hooded aide pressed the direction of the discussion purposefully. | K101: The hooded aide pressed the direction of the discussion purposefully. | L101: The hooded aide pressed the direction of the discussion purposefully. | M101: The hooded aide pressed the direction of the discussion purposefully. | N101: The hooded aide pressed the direction of the discussion purposefully. | O101: =SUBSTITUTE(N101,O$2,O$3) -> The hooded aide pressed the direction of the discussion purposefully. | P101: The hooded aide pressed the direction of the discussion purposefully. | Q101: =SUBSTITUTE(P101,Q$2,Q$3) -> The hooded aide pressed the direction of the discussion purposefully. | R101: The hooded aide pressed the direction of the discussion purposefully. | S101: =SUBSTITUTE(R101,S$2,S$3) -> The hooded aide pressed the direction of the discussion purposefully. | T101: The bastard. | U101: Y
B102: 98 | C102: 0.4398986061 | D102: 1592 | E102: =VLOOKUP($D102,MND_4_1!$C$5:$D$10004,2,FALSE) -> "Thank you." | F102: =SUBSTITUTE(E102,F$2,F$3) -> "Thank you." | G102: "Thank you." | H102: "Thank you." | I102: "Thank you." | J102: "Thank you." | K102: "Thank you." | L102: "Thank you." | M102: "Thank you." | N102: "Thank you." | O102: =SUBSTITUTE(N102,O$2,O$3) -> "Thank you." | P102: "Thank you." | Q102: =SUBSTITUTE(P102,Q$2,Q$3) -> "Thank you." | R102: "Thank you." | S102: =SUBSTITUTE(R102,S$2,S$3) -> "Thank you." | T102: "Told or ordered? | U102: Y
B103: 99 | C103: 0.4468338152 | D103: 1571 | E103: =VLOOKUP($D103,MND_4_1!$C$5:$D$10004,2,FALSE) -> It was not in his nature to apologise, but on this occasion... | F103: =SUBSTITUTE(E103,F$2,F$3) -> It was not in his nature to apologise, but on this occasion... | G103: It was not in his nature to apologise, but on this occasion... | H103: It was not in his nature to apologise, but on this occasion... | I103: It was not in his nature to apologise, but on this occasion... | J103: It was not in his nature to apologise, but on this occasion... | K103: It was not in his nature to apologise, but on this occasion... | L103: It was not in his nature to apologise, but on this occasion... | M103: It was not in his nature to apologise, but on this occasion... | N103: It was not in his nature to apologise, but on this occasion... | O103: =SUBSTITUTE(N103,O$2,O$3) -> It was not in his nature to apologise, but on this occasion... | P103: It was not in his nature to apologise, but on this occasion... | Q103: =SUBSTITUTE(P103,Q$2,Q$3) -> It was not in his nature to apologise, but on this occasion... | R103: It was not in his nature to apologise, but on this occasion... | S103: =SUBSTITUTE(R103,S$2,S$3) -> It was not in his nature to apologise, but on this occasion... | T103: "Sorry, Lord Waitress. | U103: Y
B104: 100 | C104: 0.76441674 | D104: 680 | E104: =VLOOKUP($D104,MND_4_1!$C$5:$D$10004,2,FALSE) -> But there had been something else in the eye of the Prince too – something Jossie didn't recognise. | F104: =SUBSTITUTE(E104,F$2,F$3) -> But there had been something else in the eye of the Prince too – something Jossie didn't recognise. | G104: But there had been something else in the eye of the Prince too – something Jossie didn't recognise. | H104: But there had been something else in the eye of the Prince too – something Jossie didn't recognise. | I104: But there had been something else in the eye of the Prince too – something Jossie didn't recognise. | J104: But there had been something else in the eye of the Prince too – something Jossie didn't recognise. | K104: But there had been something else in the eye of the Prince too – something Jossie didn't recognise. | L104: But there had been something else in the eye of the Prince too – something Jossie didn't recognise. | M104: But there had been something else in the eye of the Prince too – something Jossie didn't recognise. | N104: But there had been something else in the eye of the Prince too – something Jossie didn't recognise. | O104: =SUBSTITUTE(N104,O$2,O$3) -> But there had been something else in the eye of the Prince too – something Jossie didn't recognise. | P104: But there had been something else in the eye of the Prince too – something Jossie didn't recognise. | Q104: =SUBSTITUTE(P104,Q$2,Q$3) -> But there had been something else in the eye of the Waitress too – something Jossie didn't recognise. | R104: But there had been something else in the eye of the Waitress too – something Jossie didn't recognise. | S104: =SUBSTITUTE(R104,S$2,S$3) -> But there had been something else in the eye of the Waitress too – something Jossie didn't recognise. | T104: "Whass he doon he-e." | U104: Y
B105: 101 | C105: 0.5986109979 | D105: 1157 | E105: =VLOOKUP($D105,MND_4_1!$C$5:$D$10004,2,FALSE) -> His father was in the forge room; just sat there under the dancing light of a single candle. | F105: =SUBSTITUTE(E105,F$2,F$3) -> His milkman was in the forge room; just sat there under the dancing light of a single candle. | G105: His milkman was in the forge room; just sat there under the dancing light of a single candle. | H105: His milkman was in the forge room; just sat there under the dancing light of a single candle. | I105: His milkman was in the forge room; just sat there under the dancing light of a single candle. | J105: His milkman was in the forge room; just sat there under the dancing light of a single candle. | K105: His milkman was in the forge room; just sat there under the dancing light of a single candle. | L105: His milkman was in the forge room; just sat there under the dancing light of a single candle. | M105: His milkman was in the forge room; just sat there under the dancing light of a single candle. | N105: His milkman was in the forge room; just sat there under the dancing light of a single candle. | O105: =SUBSTITUTE(N105,O$2,O$3) -> His milkman was in the forge room; just sat there under the dancing light of a single candle. | P105: His milkman was in the forge room; just sat there under the dancing light of a single candle. | Q105: =SUBSTITUTE(P105,Q$2,Q$3) -> His milkman was in the forge room; just sat there under the dancing light of a single candle. | R105: His milkman was in the forge room; just sat there under the dancing light of a single candle. | S105: =SUBSTITUTE(R105,S$2,S$3) -> His milkman was in the forge room; just sat there under the dancing light of a single candle. | T105: As he tiptoed from the room, a thought struck him, and fear swelled up like acid in his throat. | U105: Y
B106: 102 | C106: 0.0235234232 | D106: 2828 | E106: =VLOOKUP($D106,MND_4_1!$C$5:$D$10004,2,FALSE) -> He was still sweating, or in fact, what he now recognised was that he wasn't sweating at all. | F106: =SUBSTITUTE(E106,F$2,F$3) -> He was still sweating, or in fact, what he now recognised was that he wasn't sweating at all. | G106: He was still sweating, or in fact, what he now recognised was that he wasn't sweating at all. | H106: He was still sweating, or in fact, what he now recognised was that he wasn't sweating at all. | I106: He was still sweating, or in fact, what he now recognised was that he wasn't sweating at all. | J106: He was still sweating, or in fact, what he now recognised was that he wasn't sweating at all. | K106: He was still sweating, or in fact, what he now recognised was that he wasn't sweating at all. | L106: He was still sweating, or in fact, what he now recognised was that he wasn't sweating at all. | M106: He was still sweating, or in fact, what he now recognised was that he wasn't sweating at all. | N106: He was still sweating, or in fact, what he now recognised was that he wasn't sweating at all. | O106: =SUBSTITUTE(N106,O$2,O$3) -> He was still sweating, or in fact, what he now recognised was that he wasn't sweating at all. | P106: He was still sweating, or in fact, what he now recognised was that he wasn't sweating at all. | Q106: =SUBSTITUTE(P106,Q$2,Q$3) -> He was still sweating, or in fact, what he now recognised was that he wasn't sweating at all. | R106: He was still sweating, or in fact, what he now recognised was that he wasn't sweating at all. | S106: =SUBSTITUTE(R106,S$2,S$3) -> He was still sweating, or in fact, what he now recognised was that he wasn't sweating at all. | T106: He was still sweating, or in fact, what he now recognised was that he wasn't sweating at all. | U106: Y
B107: 103 | C107: 0.4903309663 | D107: 1475 | E107: =VLOOKUP($D107,MND_4_1!$C$5:$D$10004,2,FALSE) -> "I hear that my King has an excellent collection on military mechanics. | F107: =SUBSTITUTE(E107,F$2,F$3) -> "I hear that my King has an excellent collection on military mechanics. | G107: "I hear that my King has an excellent collection on military mechanics. | H107: "I hear that my manager has an excellent collection on military mechanics. | I107: "I hear that my manager has an excellent collection on military mechanics. | J107: "I hear that my manager has an excellent collection on military mechanics. | K107: "I hear that my manager has an excellent collection on military mechanics. | L107: "I hear that my manager has an excellent collection on military mechanics. | M107: "I hear that my manager has an excellent collection on military mechanics. | N107: "I hear that my manager has an excellent collection on military mechanics. | O107: =SUBSTITUTE(N107,O$2,O$3) -> "I hear that my manager has an excellent collection on military mechanics. | P107: "I hear that my manager has an excellent collection on military mechanics. | Q107: =SUBSTITUTE(P107,Q$2,Q$3) -> "I hear that my manager has an excellent collection on military mechanics. | R107: "I hear that my manager has an excellent collection on military mechanics. | S107: =SUBSTITUTE(R107,S$2,S$3) -> "I hear that my manager has an excellent collection on military mechanics. | T107: "What are you doing here?" | U107: Y
B108: 104 | C108: 0.7310904439 | D108: 781 | E108: =VLOOKUP($D108,MND_4_1!$C$5:$D$10004,2,FALSE) -> A blow to the stomach doubled him over, and despite the silent pleas of his constrained anger, he couldn’t do anything. | F108: =SUBSTITUTE(E108,F$2,F$3) -> A blow to the stomach doubled him over, and despite the silent pleas of his constrained anger, he couldn’t do anything. | G108: A blow to the stomach doubled him over, and despite the silent pleas of his constrained anger, he couldn’t do anything. | H108: A blow to the stomach doubled him over, and despite the silent pleas of his constrained anger, he couldn’t do anything. | I108: A blow to the stomach doubled him over, and despite the silent pleas of his constrained anger, he couldn’t do anything. | J108: A blow to the stomach doubled him over, and despite the silent pleas of his constrained anger, he couldn’t do anything. | K108: A blow to the stomach doubled him over, and despite the silent pleas of his constrained anger, he couldn’t do anything. | L108: A blow to the stomach doubled him over, and despite the silent pleas of his constrained anger, he couldn’t do anything. | M108: A blow to the stomach doubled him over, and despite the silent pleas of his constrained anger, he couldn’t do anything. | N108: A blow to the stomach doubled him over, and despite the silent pleas of his constrained anger, he couldn’t do anything. | O108: =SUBSTITUTE(N108,O$2,O$3) -> A blow to the stomach doubled him over, and despite the silent pleas of his constrained anger, he couldn’t do anything. | P108: A blow to the stomach doubled him over, and despite the silent pleas of his constrained anger, he couldn’t do anything. | Q108: =SUBSTITUTE(P108,Q$2,Q$3) -> A blow to the stomach doubled him over, and despite the silent pleas of his constrained anger, he couldn’t do anything. | R108: A blow to the stomach doubled him over, and despite the silent pleas of his constrained anger, he couldn’t do anything. | S108: =SUBSTITUTE(R108,S$2,S$3) -> A blow to the stomach doubled him over, and despite the silent pleas of his constrained anger, he couldn’t do anything. | T108: He was crying because he had failed, and he always would; once on the bottom, always on the bottom. | U108: Y
B109: 105 | C109: 0.04574531022 | D109: 2767 | E109: =VLOOKUP($D109,MND_4_1!$C$5:$D$10004,2,FALSE) -> Success! | F109: =SUBSTITUTE(E109,F$2,F$3) -> Success! | G109: Success! | H109: Success! | I109: Success! | J109: Success! | K109: Success! | L109: Success! | M109: Success! | N109: Success! | O109: =SUBSTITUTE(N109,O$2,O$3) -> Success! | P109: Success! | Q109: =SUBSTITUTE(P109,Q$2,Q$3) -> Success! | R109: Success! | S109: =SUBSTITUTE(R109,S$2,S$3) -> Success! | T109: He rode straight-backed, confident and eager, through the streets of Altunia, and he could feel the victory stepping closer. | U109: Y
B110: 106 | C110: 0.1584689238 | D110: 2443 | E110: =VLOOKUP($D110,MND_4_1!$C$5:$D$10004,2,FALSE) -> "I don't need the bloody detail! | F110: =SUBSTITUTE(E110,F$2,F$3) -> "I don't need the bloody detail! | G110: "I don't need the bloody detail! | H110: "I don't need the bloody detail! | I110: "I don't need the bloody detail! | J110: "I don't need the bloody detail! | K110: "I don't need the bloody detail! | L110: "I don't need the bloody detail! | M110: "I don't need the bloody detail! | N110: "I don't need the bloody detail! | O110: =SUBSTITUTE(N110,O$2,O$3) -> "I don't need the bloody detail! | P110: "I don't need the bloody detail! | Q110: =SUBSTITUTE(P110,Q$2,Q$3) -> "I don't need the bloody detail! | R110: "I don't need the bloody detail! | S110: =SUBSTITUTE(R110,S$2,S$3) -> "I don't need the bloody detail! | T110: Heat coloured his cheeks. | U110: Y
B111: 107 | C111: 0.5972871974 | D111: 1158 | E111: =VLOOKUP($D111,MND_4_1!$C$5:$D$10004,2,FALSE) -> The orange glow invaded the corners of the room, and strange shadows stalked the walls of the smithy. | F111: =SUBSTITUTE(E111,F$2,F$3) -> The orange glow invaded the corners of the room, and strange shadows stalked the walls of the smithy. | G111: The orange glow invaded the corners of the room, and strange shadows stalked the walls of the smithy. | H111: The orange glow invaded the corners of the room, and strange shadows stalked the walls of the smithy. | I111: The orange glow invaded the corners of the room, and strange shadows stalked the walls of the smithy. | J111: The orange glow invaded the corners of the room, and strange shadows stalked the walls of the smithy. | K111: The orange glow invaded the corners of the room, and strange shadows stalked the walls of the smithy. | L111: The orange glow invaded the corners of the room, and strange shadows stalked the walls of the smithy. | M111: The orange glow invaded the corners of the room, and strange shadows stalked the walls of the smithy. | N111: The orange glow invaded the corners of the room, and strange shadows stalked the walls of the smithy. | O111: =SUBSTITUTE(N111,O$2,O$3) -> The orange glow invaded the corners of the room, and strange shadows stalked the walls of the smithy. | P111: The orange glow invaded the corners of the room, and strange shadows stalked the walls of the smithy. | Q111: =SUBSTITUTE(P111,Q$2,Q$3) -> The orange glow invaded the corners of the room, and strange shadows stalked the walls of the smithy. | R111: The orange glow invaded the corners of the room, and strange shadows stalked the walls of the smithy. | S111: =SUBSTITUTE(R111,S$2,S$3) -> The orange glow invaded the corners of the room, and strange shadows stalked the walls of the smithy. | T111: He knew what it was immediately, and it scared him. | U111: Y
B112: 108 | C112: 0.7246454403 | D112: 797 | E112: =VLOOKUP($D112,MND_4_1!$C$5:$D$10004,2,FALSE) -> Because they were Delfin’s words, by her own hand, and Jossie was in awe of her. | F112: =SUBSTITUTE(E112,F$2,F$3) -> Because they were Delfin’s words, by her own hand, and Jossie was in awe of her. | G112: Because they were Delfin’s words, by her own hand, and Jossie was in awe of her. | H112: Because they were Delfin’s words, by her own hand, and Jossie was in awe of her. | I112: Because they were Delfin’s words, by her own hand, and Jossie was in awe of her. | J112: Because they were Delfin’s words, by her own hand, and Jossie was in awe of her. | K112: Because they were Delfin’s words, by her own hand, and Jossie was in awe of her. | L112: Because they were Delfin’s words, by her own hand, and Jossie was in awe of her. | M112: Because they were Delfin’s words, by her own hand, and Jossie was in awe of her. | N112: Because they were Delfin’s words, by her own hand, and Jossie was in awe of her. | O112: =SUBSTITUTE(N112,O$2,O$3) -> Because they were Delfin’s words, by her own hand, and Jossie was in awe of her. | P112: Because they were The Queen Mother’s words, by her own hand, and Jossie was in awe of her. | Q112: =SUBSTITUTE(P112,Q$2,Q$3) -> Because they were The Queen Mother’s words, by her own hand, and Jossie was in awe of her. | R112: Because they were The Queen Mother’s words, by her own hand, and Jossie was in awe of her. | S112: =SUBSTITUTE(R112,S$2,S$3) -> Because they were The Queen Mother’s words, by her own hand, and Jossie was in awe of her. | T112: But when you knew the words as Jossie did, it didn’t matter. | U112: Y
B113: 109 | C113: 0.3363610329 | D113: 1912 | E113: =VLOOKUP($D113,MND_4_1!$C$5:$D$10004,2,FALSE) -> "What do you want, little Jossie." | F113: =SUBSTITUTE(E113,F$2,F$3) -> "What do you want, little Jossie." | G113: "What do you want, little Jossie." | H113: "What do you want, little Jossie." | I113: "What do you want, little Jossie." | J113: "What do you want, little Jossie." | K113: "What do you want, little Jossie." | L113: "What do you want, little Jossie." | M113: "What do you want, little Jossie." | N113: "What do you want, little Jossie." | O113: =SUBSTITUTE(N113,O$2,O$3) -> "What do you want, little Jossie." | P113: "What do you want, little Jossie." | Q113: =SUBSTITUTE(P113,Q$2,Q$3) -> "What do you want, little Jossie." | R113: "What do you want, little Jossie." | S113: =SUBSTITUTE(R113,S$2,S$3) -> "What do you want, little Jossie." | T113: What was to be done with such contrasting emotions? | U113: Y
B114: 110 | C114: 0.3402718541 | D114: 1907 | E114: =VLOOKUP($D114,MND_4_1!$C$5:$D$10004,2,FALSE) -> In one corner of his mind, Kantal had never felt so wanted, and in the other, he knew he was loathed. | F114: =SUBSTITUTE(E114,F$2,F$3) -> In one corner of his mind, Kantal had never felt so wanted, and in the other, he knew he was loathed. | G114: In one corner of his mind, Fred had never felt so wanted, and in the other, he knew he was loathed. | H114: In one corner of his mind, Fred had never felt so wanted, and in the other, he knew he was loathed. | I114: In one corner of his mind, Fred had never felt so wanted, and in the other, he knew he was loathed. | J114: In one corner of his mind, Fred had never felt so wanted, and in the other, he knew he was loathed. | K114: In one corner of his mind, Fred had never felt so wanted, and in the other, he knew he was loathed. | L114: In one corner of his mind, Fred had never felt so wanted, and in the other, he knew he was loathed. | M114: In one corner of his mind, Fred had never felt so wanted, and in the other, he knew he was loathed. | N114: In one corner of his mind, Fred had never felt so wanted, and in the other, he knew he was loathed. | O114: =SUBSTITUTE(N114,O$2,O$3) -> In one corner of his mind, Fred had never felt so wanted, and in the other, he knew he was loathed. | P114: In one corner of his mind, Fred had never felt so wanted, and in the other, he knew he was loathed. | Q114: =SUBSTITUTE(P114,Q$2,Q$3) -> In one corner of his mind, Fred had never felt so wanted, and in the other, he knew he was loathed. | R114: In one corner of his mind, Fred had never felt so wanted, and in the other, he knew he was loathed. | S114: =SUBSTITUTE(R114,S$2,S$3) -> In one corner of his mind, Fred had never felt so wanted, and in the other, he knew he was loathed. | T114: And there he was; the huge frame of his parent. | U114: Y
B115: 111 | C115: 0.6943407685 | D115: 878 | E115: =VLOOKUP($D115,MND_4_1!$C$5:$D$10004,2,FALSE) -> And in that he was lost. | F115: =SUBSTITUTE(E115,F$2,F$3) -> And in that he was lost. | G115: And in that he was lost. | H115: And in that he was lost. | I115: And in that he was lost. | J115: And in that he was lost. | K115: And in that he was lost. | L115: And in that he was lost. | M115: And in that he was lost. | N115: And in that he was lost. | O115: =SUBSTITUTE(N115,O$2,O$3) -> And in that he was lost. | P115: And in that he was lost. | Q115: =SUBSTITUTE(P115,Q$2,Q$3) -> And in that he was lost. | R115: And in that he was lost. | S115: =SUBSTITUTE(R115,S$2,S$3) -> And in that he was lost. | T115: But now that he had succeeded, he had to aim higher; to find a new purpose. | U115: Y
B116: 112 | C116: 0.357150934 | D116: 1854 | E116: =VLOOKUP($D116,MND_4_1!$C$5:$D$10004,2,FALSE) -> Five | 12yrs ago | F116: =SUBSTITUTE(E116,F$2,F$3) -> Five | 12yrs ago | G116: Five | 12yrs ago | H116: Five | 12yrs ago | I116: Five | 12yrs ago | J116: Five | 12yrs ago | K116: Five | 12yrs ago | L116: Five | 12yrs ago | M116: Five | 12yrs ago | N116: Five | 12yrs ago | O116: =SUBSTITUTE(N116,O$2,O$3) -> Five | 12yrs ago | P116: Five | 12yrs ago | Q116: =SUBSTITUTE(P116,Q$2,Q$3) -> Five | 12yrs ago | R116: Five | 12yrs ago | S116: =SUBSTITUTE(R116,S$2,S$3) -> Five | 12yrs ago | T116: Fred gulped. | U116: Y
B117: 113 | C117: 0.8147554796 | D117: 524 | E117: =VLOOKUP($D117,MND_4_1!$C$5:$D$10004,2,FALSE) -> Jossie instinctively puckered his arse. | F117: =SUBSTITUTE(E117,F$2,F$3) -> Jossie instinctively puckered his arse. | G117: Jossie instinctively puckered his arse. | H117: Jossie instinctively puckered his arse. | I117: Jossie instinctively puckered his arse. | J117: Jossie instinctively puckered his arse. | K117: Jossie instinctively puckered his arse. | L117: Jossie instinctively puckered his arse. | M117: Jossie instinctively puckered his arse. | N117: Jossie instinctively puckered his arse. | O117: =SUBSTITUTE(N117,O$2,O$3) -> Jossie instinctively puckered his arse. | P117: Jossie instinctively puckered his arse. | Q117: =SUBSTITUTE(P117,Q$2,Q$3) -> Jossie instinctively puckered his arse. | R117: Jossie instinctively puckered his arse. | S117: =SUBSTITUTE(R117,S$2,S$3) -> Jossie instinctively puckered his arse. | T117: The biggest, a young man of nineteen called Beef – a reference to his intelligence perhaps? – came up behind and laid his hands on Jossie's shoulders, resting his block of a jaw on Jossie’s black mop of hair. | U117: Y
B118: 114 | C118: 0.8197246938 | D118: 512 | E118: =VLOOKUP($D118,MND_4_1!$C$5:$D$10004,2,FALSE) -> "Now!" | F118: =SUBSTITUTE(E118,F$2,F$3) -> "Now!" | G118: "Now!" | H118: "Now!" | I118: "Now!" | J118: "Now!" | K118: "Now!" | L118: "Now!" | M118: "Now!" | N118: "Now!" | O118: =SUBSTITUTE(N118,O$2,O$3) -> "Now!" | P118: "Now!" | Q118: =SUBSTITUTE(P118,Q$2,Q$3) -> "Now!" | R118: "Now!" | S118: =SUBSTITUTE(R118,S$2,S$3) -> "Now!" | T118: Could he really blame the Mandari for his own sad predicament? | U118: Y
B119: 115 | C119: 0.2023355899 | D119: 2313 | E119: =VLOOKUP($D119,MND_4_1!$C$5:$D$10004,2,FALSE) -> He had come this far. | F119: =SUBSTITUTE(E119,F$2,F$3) -> He had come this far. | G119: He had come this far. | H119: He had come this far. | I119: He had come this far. | J119: He had come this far. | K119: He had come this far. | L119: He had come this far. | M119: He had come this far. | N119: He had come this far. | O119: =SUBSTITUTE(N119,O$2,O$3) -> He had come this far. | P119: He had come this far. | Q119: =SUBSTITUTE(P119,Q$2,Q$3) -> He had come this far. | R119: He had come this far. | S119: =SUBSTITUTE(R119,S$2,S$3) -> He had come this far. | T119: He couldn't keep his damned head still. | U119: Y
B120: 116 | C120: 0.9953424187 | D120: 10 | E120: =VLOOKUP($D120,MND_4_1!$C$5:$D$10004,2,FALSE) -> The Grey Plague was coming, stalking ominously through the mist; the Grey cloaked by grey. | F120: =SUBSTITUTE(E120,F$2,F$3) -> The Grey Plague was coming, stalking ominously through the mist; the Grey cloaked by grey. | G120: The Grey Plague was coming, stalking ominously through the mist; the Grey cloaked by grey. | H120: The Grey Plague was coming, stalking ominously through the mist; the Grey cloaked by grey. | I120: The Grey Plague was coming, stalking ominously through the mist; the Grey cloaked by grey. | J120: The Grey Plague was coming, stalking ominously through the mist; the Grey cloaked by grey. | K120: The Grey Plague was coming, stalking ominously through the mist; the Grey cloaked by grey. | L120: The Grey Plague was coming, stalking ominously through the mist; the Grey cloaked by grey. | M120: The Grey Plague was coming, stalking ominously through the mist; the Grey cloaked by grey. | N120: The Grey Plague was coming, stalking ominously through the mist; the Grey cloaked by grey. | O120: =SUBSTITUTE(N120,O$2,O$3) -> The Grey Plague was coming, stalking ominously through the mist; the Grey cloaked by grey. | P120: The Grey Plague was coming, stalking ominously through the mist; the Grey cloaked by grey. | Q120: =SUBSTITUTE(P120,Q$2,Q$3) -> The Grey Plague was coming, stalking ominously through the mist; the Grey cloaked by grey. | R120: The Grey Plague was coming, stalking ominously through the mist; the Grey cloaked by grey. | S120: =SUBSTITUTE(R120,S$2,S$3) -> The Grey Plague was coming, stalking ominously through the mist; the Grey cloaked by grey. | T120: The Grey Plague was coming, stalking ominously through the mist; the Grey cloaked by grey. | U120: Y
B121: 117 | C121: 0.1838923063 | D121: 2367 | E121: =VLOOKUP($D121,MND_4_1!$C$5:$D$10004,2,FALSE) -> The 's' came out as a whistle where his tooth was missing, and he scowled at himself. | F121: =SUBSTITUTE(E121,F$2,F$3) -> The 's' came out as a whistle where his tooth was missing, and he scowled at himself. | G121: The 's' came out as a whistle where his tooth was missing, and he scowled at himself. | H121: The 's' came out as a whistle where his tooth was missing, and he scowled at himself. | I121: The 's' came out as a whistle where his tooth was missing, and he scowled at himself. | J121: The 's' came out as a whistle where his tooth was missing, and he scowled at himself. | K121: The 's' came out as a whistle where his tooth was missing, and he scowled at himself. | L121: The 's' came out as a whistle where his tooth was missing, and he scowled at himself. | M121: The 's' came out as a whistle where his tooth was missing, and he scowled at himself. | N121: The 's' came out as a whistle where his tooth was missing, and he scowled at himself. | O121: =SUBSTITUTE(N121,O$2,O$3) -> The 's' came out as a whistle where his tooth was missing, and he scowled at himself. | P121: The 's' came out as a whistle where his tooth was missing, and he scowled at himself. | Q121: =SUBSTITUTE(P121,Q$2,Q$3) -> The 's' came out as a whistle where his tooth was missing, and he scowled at himself. | R121: The 's' came out as a whistle where his tooth was missing, and he scowled at himself. | S121: =SUBSTITUTE(R121,S$2,S$3) -> The 's' came out as a whistle where his tooth was missing, and he scowled at himself. | T121: He looked sadly at Fred. | U121: Y
B122: 118 | C122: 0.526292976 | D122: 1365 | E122: =VLOOKUP($D122,MND_4_1!$C$5:$D$10004,2,FALSE) -> Not even a place to sleep. | F122: =SUBSTITUTE(E122,F$2,F$3) -> Not even a place to sleep. | G122: Not even a place to sleep. | H122: Not even a place to sleep. | I122: Not even a place to sleep. | J122: Not even a place to sleep. | K122: Not even a place to sleep. | L122: Not even a place to sleep. | M122: Not even a place to sleep. | N122: Not even a place to sleep. | O122: =SUBSTITUTE(N122,O$2,O$3) -> Not even a place to sleep. | P122: Not even a place to sleep. | Q122: =SUBSTITUTE(P122,Q$2,Q$3) -> Not even a place to sleep. | R122: Not even a place to sleep. | S122: =SUBSTITUTE(R122,S$2,S$3) -> Not even a place to sleep. | T122: As he raced through the living space, he snatched up 'the dark side of the stone'. | U122: Y
B123: 119 | C123: 0.8072244293 | D123: 554 | E123: =VLOOKUP($D123,MND_4_1!$C$5:$D$10004,2,FALSE) -> Presumably then, Beef was unaware of their family ties. | F123: =SUBSTITUTE(E123,F$2,F$3) -> Presumably then, Beef was unaware of their family ties. | G123: Presumably then, Beef was unaware of their family ties. | H123: Presumably then, Beef was unaware of their family ties. | I123: Presumably then, Beef was unaware of their family ties. | J123: Presumably then, Beef was unaware of their family ties. | K123: Presumably then, Beef was unaware of their family ties. | L123: Presumably then, Beef was unaware of their family ties. | M123: Presumably then, Beef was unaware of their family ties. | N123: Presumably then, Beef was unaware of their family ties. | O123: =SUBSTITUTE(N123,O$2,O$3) -> Presumably then, Beef was unaware of their family ties. | P123: Presumably then, Beef was unaware of their family ties. | Q123: =SUBSTITUTE(P123,Q$2,Q$3) -> Presumably then, Beef was unaware of their family ties. | R123: Presumably then, Beef was unaware of their family ties. | S123: =SUBSTITUTE(R123,S$2,S$3) -> Presumably then, Beef was unaware of their family ties. | T123: The look in his brother sharpened for the briefest moment, but then subsided to what could only be interpreted as disappointment. | U123: Y
B124: 120 | C124: 0.9080703021 | D124: 276 | E124: =VLOOKUP($D124,MND_4_1!$C$5:$D$10004,2,FALSE) -> He tried muttering under his breath to reassure himself, but the result was not heartening and he kept his head bowed, eyes darting from their cover. | F124: =SUBSTITUTE(E124,F$2,F$3) -> He tried muttering under his breath to reassure himself, but the result was not heartening and he kept his head bowed, eyes darting from their cover. | G124: He tried muttering under his breath to reassure himself, but the result was not heartening and he kept his head bowed, eyes darting from their cover. | H124: He tried muttering under his breath to reassure himself, but the result was not heartening and he kept his head bowed, eyes darting from their cover. | I124: He tried muttering under his breath to reassure himself, but the result was not heartening and he kept his head bowed, eyes darting from their cover. | J124: He tried muttering under his breath to reassure himself, but the result was not heartening and he kept his head bowed, eyes darting from their cover. | K124: He tried muttering under his breath to reassure himself, but the result was not heartening and he kept his head bowed, eyes darting from their cover. | L124: He tried muttering under his breath to reassure himself, but the result was not heartening and he kept his head bowed, eyes darting from their cover. | M124: He tried muttering under his breath to reassure himself, but the result was not heartening and he kept his head bowed, eyes darting from their cover. | N124: He tried muttering under his breath to reassure himself, but the result was not heartening and he kept his head bowed, eyes darting from their cover. | O124: =SUBSTITUTE(N124,O$2,O$3) -> He tried muttering under his breath to reassure himself, but the result was not heartening and he kept his head bowed, eyes darting from their cover. | P124: He tried muttering under his breath to reassure himself, but the result was not heartening and he kept his head bowed, eyes darting from their cover. | Q124: =SUBSTITUTE(P124,Q$2,Q$3) -> He tried muttering under his breath to reassure himself, but the result was not heartening and he kept his head bowed, eyes darting from their cover. | R124: He tried muttering under his breath to reassure himself, but the result was not heartening and he kept his head bowed, eyes darting from their cover. | S124: =SUBSTITUTE(R124,S$2,S$3) -> He tried muttering under his breath to reassure himself, but the result was not heartening and he kept his head bowed, eyes darting from their cover. | T124: He tried muttering under his breath to reassure himself, but the result was not heartening and he kept his head bowed, eyes darting from their cover. | U124: Y
B125: 121 | C125: 0.1497500781 | D125: 2478 | E125: =VLOOKUP($D125,MND_4_1!$C$5:$D$10004,2,FALSE) -> He knew it was there – he had felt it himself after all – but the King's non-involvement in the verbal assault was stark. | F125: =SUBSTITUTE(E125,F$2,F$3) -> He knew it was there – he had felt it himself after all – but the King's non-involvement in the verbal assault was stark. | G125: He knew it was there – he had felt it himself after all – but the King's non-involvement in the verbal assault was stark. | H125: He knew it was there – he had felt it himself after all – but the manager's non-involvement in the verbal assault was stark. | I125: He knew it was there – he had felt it himself after all – but the manager's non-involvement in the verbal assault was stark. | J125: He knew it was there – he had felt it himself after all – but the manager's non-involvement in the verbal assault was stark. | K125: He knew it was there – he had felt it himself after all – but the manager's non-involvement in the verbal assault was stark. | L125: He knew it was there – he had felt it himself after all – but the manager's non-involvement in the verbal assault was stark. | M125: He knew it was there – he had felt it himself after all – but the manager's non-involvement in the verbal assault was stark. | N125: He knew it was there – he had felt it himself after all – but the manager's non-involvement in the verbal assault was stark. | O125: =SUBSTITUTE(N125,O$2,O$3) -> He knew it was there – he had felt it himself after all – but the manager's non-involvement in the verbal assault was stark. | P125: He knew it was there – he had felt it himself after all – but the manager's non-involvement in the verbal assault was stark. | Q125: =SUBSTITUTE(P125,Q$2,Q$3) -> He knew it was there – he had felt it himself after all – but the manager's non-involvement in the verbal assault was stark. | R125: He knew it was there – he had felt it himself after all – but the manager's non-involvement in the verbal assault was stark. | S125: =SUBSTITUTE(R125,S$2,S$3) -> He knew it was there – he had felt it himself after all – but the manager's non-involvement in the verbal assault was stark. | T125: The aide nodded acceptingly, but there was not the slightest hint of recognition on the blank canvas of the Hooded manager. | U125: Y
B126: 122 | C126: 0.1988576153 | D126: 2320 | E126: =VLOOKUP($D126,MND_4_1!$C$5:$D$10004,2,FALSE) -> By the time he reached his Prince, it was almost as if the sun had departed. | F126: =SUBSTITUTE(E126,F$2,F$3) -> By the time he reached his Prince, it was almost as if the sun had departed. | G126: By the time he reached his Prince, it was almost as if the sun had departed. | H126: By the time he reached his Prince, it was almost as if the sun had departed. | I126: By the time he reached his Prince, it was almost as if the sun had departed. | J126: By the time he reached his Prince, it was almost as if the sun had departed. | K126: By the time he reached his Prince, it was almost as if the sun had departed. | L126: By the time he reached his Prince, it was almost as if the sun had departed. | M126: By the time he reached his Prince, it was almost as if the sun had departed. | N126: By the time he reached his Prince, it was almost as if the sun had departed. | O126: =SUBSTITUTE(N126,O$2,O$3) -> By the time he reached his Prince, it was almost as if the sun had departed. | P126: By the time he reached his Prince, it was almost as if the sun had departed. | Q126: =SUBSTITUTE(P126,Q$2,Q$3) -> By the time he reached his Waitress, it was almost as if the sun had departed. | R126: By the time he reached his Waitress, it was almost as if the sun had departed. | S126: =SUBSTITUTE(R126,S$2,S$3) -> By the time he reached his Waitress, it was almost as if the sun had departed. | T126: He had come this far. | U126: Y
